Workbook

Sheet PESSOA FÍSICA
A1: CATEGORIA | B1: INSCRIÇÃO | C1: CIDADE | D1: UF | E1: REGIÃO | F1: AVALIADOR | G1: CRITÉRIOS DE AVALIAÇÃO E SELEÇÃO 1 | H1: CRITÉRIOS DE AVALIAÇÃO E SELEÇÃO 2 | I1: CRITÉRIOS DE AVALIAÇÃO E SELEÇÃO 3 | J1: CRITÉRIOS DE AVALIAÇÃO E SELEÇÃO 4 | K1: CRITÉRIOS DE AVALIAÇÃO E SELEÇÃO 5 | L1: CRITÉRIOS DE AVALIAÇÃO E SELEÇÃO 6 | M1: CRITÉRIOS DE AVALIAÇÃO E SELEÇÃO 7 | N1: CRITÉRIOS DE AVALIAÇÃO E SELEÇÃO 8 | O1: PONTUAÇÃO EXTRA - Pessoa com deficiência | P1: PONTUAÇÃO EXTRA - Mulher | Q1: PONTUAÇÃO EXTRA - Pessoa negra | R1: PONTUAÇÃO EXTRA -Indígena, matriz africana, de terreiro ou de povos ou de comunidades tradicionais | S1: PONTUAÇÃO EXTRA LGBTQIA+ | T1: PONTUAÇÃO EXTRA Idosa com 60 anos ou mais? | U1: NOTA POR AVALIADOR | V1: OBSERVAÇÃO | W1: NOTA PRELIMINAR | X1: STATUS
A2: PESSOA FÍSICA | B2: =HYPERLINK("https://mapas.cultura.gov.br/inscricao/1234170252","on-1234170252") -> on-1234170252 | C2: Cabo Frio | D2: RJ | E2: SUDESTE | F2: Avaliador 1 | G2: 20 | H2: 15 | I2: 15 | J2: 10 | K2: 10 | L2: 10 | M2: 10 | N2: 10 | O2: 0 | P2: 3 | Q2: 0 | R2: 3 | S2: 0 | T2: 0 | U2: =SUM(G2:T2) -> 106 | W2: =AVERAGE(U2,U3) -> 106 | X2: PRÉ-SELECIONADO
A3: PESSOA FÍSICA | B3: =HYPERLINK("https://mapas.cultura.gov.br/inscricao/1234170252","on-1234170252") -> on-1234170252 | C3: Cabo Frio | D3: RJ | E3: SUDESTE | F3: Avaliador 2 | G3: 20 | H3: 15 | I3: 15 | J3: 10 | K3: 10 | L3: 10 | M3: 10 | N3: 10 | O3: 0 | P3: 3 | Q3: 0 | R3: 3 | S3: 0 | T3: 0 | U3: 106 | W3: =W2 -> 106
A4: PESSOA FÍSICA | B4: =HYPERLINK("https://mapas.cultura.gov.br/inscricao/390588732","on-390588732") -> on-390588732 | C4: Alfenas | D4: MG | E4: SUDESTE | F4: Avaliador 1 | G4: 20 | H4: 15 | I4: 15 | J4: 10 | K4: 10 | L4: 10 | M4: 10 | N4: 10 | O4: 0 | P4: 0 | Q4: 3 | R4: 3 | S4: 0 | T4: 0 | U4: 106 | W4: =AVERAGE(U4,U5) -> 106 | X4: PRÉ-SELECIONADO
A5: PESSOA FÍSICA | B5: =HYPERLINK("https://mapas.cultura.gov.br/inscricao/390588732","on-390588732") -> on-390588732 | C5: Alfenas | D5: MG | E5: SUDESTE | F5: Avaliador 2 | G5: 20 | H5: 15 | I5: 15 | J5: 10 | K5: 10 | L5: 10 | M5: 10 | N5: 10 | O5: 0 | P5: 0 | Q5: 3 | R5: 3 | S5: 0 | T5: 0 | U5: 106 | W5: =W4 -> 106
A6: PESSOA FÍSICA | B6: =HYPERLINK("https://mapas.cultura.gov.br/inscricao/1363846324","on-1363846324") -> on-1363846324 | C6: São Paulo | D6: SP | E6: SUDESTE | F6: Avaliador 1 | G6: 20 | H6: 15 | I6: 15 | J6: 10 | K6: 10 | L6: 10 | M6: 10 | N6: 10 | O6: 0 | P6: 0 | Q6: 3 | R6: 0 | S6: 0 | T6: 3 | U6: 106 | W6: =AVERAGE(U6,U7) -> 106 | X6: PRÉ-SELECIONADO
A7: PESSOA FÍSICA | B7: =HYPERLINK("https://mapas.cultura.gov.br/inscricao/1363846324","on-1363846324") -> on-1363846324 | C7: São Paulo | D7: SP | E7: SUDESTE | F7: Avaliador 2 | G7: 20 | H7: 15 | I7: 15 | J7: 10 | K7: 10 | L7: 10 | M7: 10 | N7: 10 | O7: 0 | P7: 0 | Q7: 3 | R7: 0 | S7: 0 | T7: 3 | U7: 106 | W7: =W6 -> 106
A8: PESSOA FÍSICA | B8: =HYPERLINK("https://mapas.cultura.gov.br/inscricao/1797390066","on-1797390066") -> on-1797390066 | C8: Rio de Janeiro | D8: RJ | E8: SUDESTE | F8: Avaliador 1 | G8: 20 | H8: 15 | I8: 15 | J8: 10 | K8: 10 | L8: 10 | M8: 10 | N8: 10 | O8: 0 | P8: 3 | Q8: 3 | R8: 0 | S8: 0 | T8: 0 | U8: 106 | W8: =AVERAGE(U8,U9) -> 106 | X8: PRÉ-SELECIONADO
A9: PESSOA FÍSICA | B9: =HYPERLINK("https://mapas.cultura.gov.br/inscricao/1797390066","on-1797390066") -> on-1797390066 | C9: Rio de Janeiro | D9: RJ | E9: SUDESTE | F9: Avaliador 2 | G9: 20 | H9: 15 | I9: 15 | J9: 10 | K9: 10 | L9: 10 | M9: 10 | N9: 10 | O9: 0 | P9: 3 | Q9: 3 | R9: 0 | S9: 0 | T9: 0 | U9: 106 | W9: =W8 -> 106
A10: PESSOA FÍSICA | B10: =HYPERLINK("https://mapas.cultura.gov.br/inscricao/806273528","on-806273528") -> on-806273528 | C10: Rio de Janeiro | D10: RJ | E10: SUDESTE | F10: Avaliador 1 | G10: 20 | H10: 15 | I10: 15 | J10: 10 | K10: 10 | L10: 10 | M10: 10 | N10: 8 | O10: 0 | P10: 3 | Q10: 3 | R10: 0 | S10: 0 | T10: 0 | U10: 104 | W10: =AVERAGE(U10,U11) -> 105 | X10: PRÉ-SELECIONADO
A11: PESSOA FÍSICA | B11: =HYPERLINK("https://mapas.cultura.gov.br/inscricao/806273528","on-806273528") -> on-806273528 | C11: Rio de Janeiro | D11: RJ | E11: SUDESTE | F11: Avaliador 2 | G11: 20 | H11: 15 | I11: 15 | J11: 10 | K11: 10 | L11: 10 | M11: 10 | N11: 10 | O11: 0 | P11: 3 | Q11: 3 | R11: 0 | S11: 0 | T11: 0 | U11: 106 | W11: =W10 -> 105
A12: PESSOA FÍSICA | B12: =HYPERLINK("https://mapas.cultura.gov.br/inscricao/583856760","on-583856760") -> on-583856760 | C12: Niterói | D12: RJ | E12: SUDESTE | F12: Avaliador 1 | G12: 20 | H12: 15 | I12: 15 | J12: 10 | K12: 10 | L12: 10 | M12: 10 | N12: 8 | O12: 0 | P12: 3 | Q12: 3 | R12: 0 | S12: 0 | T12: 0 | U12: 104 | W12: =AVERAGE(U12,U13) -> 104 | X12: PRÉ-SELECIONADO
A13: PESSOA FÍSICA | B13: =HYPERLINK("https://mapas.cultura.gov.br/inscricao/583856760","on-583856760") -> on-583856760 | C13: Niterói | D13: RJ | E13: SUDESTE | F13: Avaliador 2 | G13: 20 | H13: 15 | I13: 15 | J13: 10 | K13: 10 | L13: 10 | M13: 10 | N13: 8 | O13: 0 | P13: 3 | Q13: 3 | R13: 0 | S13: 0 | T13: 0 | U13: 104 | W13: =W12 -> 104
A14: PESSOA FÍSICA | B14: =HYPERLINK("https://mapas.cultura.gov.br/inscricao/1693185328","on-1693185328") -> on-1693185328 | C14: Lavras | D14: MG | E14: SUDESTE | F14: Avaliador 1 | G14: 20 | H14: 15 | I14: 15 | J14: 10 | K14: 0 | L14: 10 | M14: 10 | N14: 8 | O14: 0 | P14: 3 | Q14: 3 | R14: 0 | S14: 3 | T14: 0 | U14: 97 | W14: =AVERAGE(U14,U15) -> 103 | X14: PRÉ-SELECIONADO
A15: PESSOA FÍSICA | B15: =HYPERLINK("https://mapas.cultura.gov.br/inscricao/1693185328","on-1693185328") -> on-1693185328 | C15: Lavras | D15: MG | E15: SUDESTE | F15: Avaliador 2 | G15: 20 | H15: 15 | I15: 15 | J15: 10 | K15: 10 | L15: 10 | M15: 10 | N15: 10 | O15: 0 | P15: 3 | Q15: 3 | R15: 0 | S15: 3 | T15: 0 | U15: 109 | W15: =W14 -> 103
A16: PESSOA FÍSICA | B16: =HYPERLINK("https://mapas.cultura.gov.br/inscricao/1899810339","on-1899810339") -> on-1899810339 | C16: Uberlândia | D16: MG | E16: SUDESTE | F16: Avaliador 1 | G16: 20 | H16: 12 | I16: 8 | J16: 10 | K16: 10 | L16: 10 | M16: 10 | N16: 8 | O16: 0 | P16: 3 | Q16: 3 | R16: 3 | S16: 0 | T16: 0 | U16: 97 | W16: =AVERAGE(U16,U17) -> 103 | X16: PRÉ-SELECIONADO
A17: PESSOA FÍSICA | B17: =HYPERLINK("https://mapas.cultura.gov.br/inscricao/1899810339","on-1899810339") -> on-1899810339 | C17: Uberlândia | D17: MG | E17: SUDESTE | F17: Avaliador 2 | G17: 20 | H17: 15 | I17: 15 | J17: 10 | K17: 10 | L17: 10 | M17: 10 | N17: 10 | O17: 0 | P17: 3 | Q17: 3 | R17: 3 | S17: 0 | T17: 0 | U17: 109 | W17: =W16 -> 103
A18: PESSOA FÍSICA | B18: =HYPERLINK("https://mapas.cultura.gov.br/inscricao/696372191","on-696372191") -> on-696372191 | C18: Divinópolis | D18: MG | E18: SUDESTE | F18: Avaliador 1 | G18: 20 | H18: 8 | I18: 15 | J18: 10 | K18: 10 | L18: 5 | M18: 10 | N18: 10 | O18: 0 | P18: 3 | Q18: 3 | R18: 3 | S18: 0 | T18: 0 | U18: 97 | W18: =AVERAGE(U18,U19) -> 103 | X18: PRÉ-SELECIONADO
A19: PESSOA FÍSICA | B19: =HYPERLINK("https://mapas.cultura.gov.br/inscricao/696372191","on-696372191") -> on-696372191 | C19: Divinópolis | D19: MG | E19: SUDESTE | F19: Avaliador 2 | G19: 20 | H19: 15 | I19: 15 | J19: 10 | K19: 10 | L19: 10 | M19: 10 | N19: 10 | O19: 0 | P19: 3 | Q19: 3 | R19: 3 | S19: 0 | T19: 0 | U19: 109 | W19: =W18 -> 103
A20: PESSOA FÍSICA | B20: =HYPERLINK("https://mapas.cultura.gov.br/inscricao/745127964","on-745127964") -> on-745127964 | C20: Belo Horizonte | D20: MG | E20: SUDESTE | F20: Avaliador 1 | G20: 15 | H20: 15 | I20: 15 | J20: 8 | K20: 10 | L20: 10 | M20: 10 | N20: 10 | O20: 0 | P20: 0 | Q20: 3 | R20: 3 | S20: 0 | T20: 0 | U20: 99 | W20: =AVERAGE(U20,U21) -> 102.5 | X20: PRÉ-SELECIONADO
A21: PESSOA FÍSICA | B21: =HYPERLINK("https://mapas.cultura.gov.br/inscricao/745127964","on-745127964") -> on-745127964 | C21: Belo Horizonte | D21: MG | E21: SUDESTE | F21: Avaliador 2 | G21: 20 | H21: 15 | I21: 15 | J21: 10 | K21: 10 | L21: 10 | M21: 10 | N21: 10 | O21: 0 | P21: 0 | Q21: 3 | R21: 3 | S21: 0 | T21: 0 | U21: 106 | W21: =W20 -> 102.5
A22: PESSOA FÍSICA | B22: =HYPERLINK("https://mapas.cultura.gov.br/inscricao/1788009680","on-1788009680") -> on-1788009680 | C22: Rio de Janeiro | D22: RJ | E22: SUDESTE | F22: Avaliador 1 | G22: 20 | H22: 15 | I22: 15 | J22: 5 | K22: 10 | L22: 10 | M22: 10 | N22: 8 | O22: 0 | P22: 0 | Q22: 3 | R22: 3 | S22: 0 | T22: 0 | U22: 99 | W22: =AVERAGE(U22,U23) -> 101.5 | X22: PRÉ-SELECIONADO
A23: PESSOA FÍSICA | B23: =HYPERLINK("https://mapas.cultura.gov.br/inscricao/1788009680","on-1788009680") -> on-1788009680 | C23: Rio de Janeiro | D23: RJ | E23: SUDESTE | F23: Avaliador 2 | G23: 20 | H23: 15 | I23: 15 | J23: 8 | K23: 10 | L23: 10 | M23: 10 | N23: 10 | O23: 0 | P23: 0 | Q23: 3 | R23: 3 | S23: 0 | T23: 0 | U23: 104 | W23: =W22 -> 101.5
A24: PESSOA FÍSICA | B24: =HYPERLINK("https://mapas.cultura.gov.br/inscricao/504993929","on-504993929") -> on-504993929 | C24: São Bernardo do Campo | D24: SP | E24: SUDESTE | F24: Avaliador 1 | G24: 20 | H24: 15 | I24: 15 | J24: 10 | K24: 10 | L24: 10 | M24: 10 | N24: 10 | O24: 0 | P24: 0 | Q24: 3 | R24: 0 | S24: 0 | T24: 3 | U24: 106 | W24: =AVERAGE(U24,U25) -> 101.5 | X24: PRÉ-SELECIONADO
A25: PESSOA FÍSICA | B25: =HYPERLINK("https://mapas.cultura.gov.br/inscricao/504993929","on-504993929") -> on-504993929 | C25: São Bernardo do Campo | D25: SP | E25: SUDESTE | F25: Avaliador 2 | G25: 20 | H25: 15 | I25: 12 | J25: 10 | K25: 10 | L25: 8 | M25: 8 | N25: 8 | O25: 0 | P25: 0 | Q25: 3 | R25: 0 | S25: 0 | T25: 3 | U25: 97 | W25: =W24 -> 101.5
A26: PESSOA FÍSICA | B26: =HYPERLINK("https://mapas.cultura.gov.br/inscricao/1357168249","on-1357168249") -> on-1357168249 | C26: Rio de Janeiro | D26: RJ | E26: SUDESTE | F26: Avaliador 1 | G26: 20 | H26: 15 | I26: 15 | J26: 8 | K26: 8 | L26: 10 | M26: 10 | N26: 10 | O26: 0 | P26: 0 | Q26: 3 | R26: 0 | S26: 0 | T26: 0 | U26: 99 | W26: =AVERAGE(U26,U27) -> 101 | X26: PRÉ-SELECIONADO
A27: PESSOA FÍSICA | B27: =HYPERLINK("https://mapas.cultura.gov.br/inscricao/1357168249","on-1357168249") -> on-1357168249 | C27: Rio de Janeiro | D27: RJ | E27: SUDESTE | F27: Avaliador 2 | G27: 20 | H27: 15 | I27: 15 | J27: 10 | K27: 10 | L27: 10 | M27: 10 | N27: 10 | O27: 0 | P27: 0 | Q27: 3 | R27: 0 | S27: 0 | T27: 0 | U27: 103 | W27: =W26 -> 101
A28: PESSOA FÍSICA | B28: =HYPERLINK("https://mapas.cultura.gov.br/inscricao/551870168","on-551870168") -> on-551870168 | C28: São João de Meriti | D28: RJ | E28: SUDESTE | F28: Avaliador 1 | G28: 20 | H28: 15 | I28: 15 | J28: 10 | K28: 8 | L28: 10 | M28: 10 | N28: 8 | O28: 0 | P28: 0 | Q28: 3 | R28: 0 | S28: 0 | T28: 0 | U28: 99 | W28: =AVERAGE(U28,U29) -> 101 | X28: PRÉ-SELECIONADO
A29: PESSOA FÍSICA | B29: =HYPERLINK("https://mapas.cultura.gov.br/inscricao/551870168","on-551870168") -> on-551870168 | C29: São João de Meriti | D29: RJ | E29: SUDESTE | F29: Avaliador 2 | G29: 20 | H29: 15 | I29: 15 | J29: 10 | K29: 10 | L29: 10 | M29: 10 | N29: 10 | O29: 0 | P29: 0 | Q29: 3 | R29: 0 | S29: 0 | T29: 0 | U29: 103 | W29: =W28 -> 101
A30: PESSOA FÍSICA | B30: =HYPERLINK("https://mapas.cultura.gov.br/inscricao/338014605","on-338014605") -> on-338014605 | C30: Ilhabela | D30: SP | E30: SUDESTE | F30: Avaliador 1 | G30: 20 | H30: 15 | I30: 15 | J30: 10 | K30: 10 | L30: 10 | M30: 8 | N30: 10 | O30: 0 | P30: 0 | Q30: 3 | R30: 0 | S30: 0 | T30: 0 | U30: 101 | W30: =AVERAGE(U30,U31) -> 101 | X30: PRÉ-SELECIONADO
A31: PESSOA FÍSICA | B31: =HYPERLINK("https://mapas.cultura.gov.br/inscricao/338014605","on-338014605") -> on-338014605 | C31: Ilhabela | D31: SP | E31: SUDESTE | F31: Avaliador 2 | G31: 20 | H31: 15 | I31: 15 | J31: 10 | K31: 10 | L31: 10 | M31: 8 | N31: 10 | O31: 0 | P31: 0 | Q31: 3 | R31: 0 | S31: 0 | T31: 0 | U31: 101 | W31: =W30 -> 101
A32: PESSOA FÍSICA | B32: =HYPERLINK("https://mapas.cultura.gov.br/inscricao/239070309","on-239070309") -> on-239070309 | C32: São Paulo | D32: SP | E32: SUDESTE | F32: Avaliador 1 | G32: 20 | H32: 15 | I32: 15 | J32: 8 | K32: 10 | L32: 10 | M32: 10 | N32: 10 | O32: 0 | P32: 0 | Q32: 3 | R32: 0 | S32: 0 | T32: 0 | U32: 101 | W32: =AVERAGE(U32,U33) -> 101 | X32: PRÉ-SELECIONADO
A33: PESSOA FÍSICA | B33: =HYPERLINK("https://mapas.cultura.gov.br/inscricao/239070309","on-239070309") -> on-239070309 | C33: São Paulo | D33: SP | E33: SUDESTE | F33: Avaliador 2 | G33: 20 | H33: 15 | I33: 15 | J33: 8 | K33: 10 | L33: 10 | M33: 10 | N33: 10 | O33: 0 | P33: 0 | Q33: 3 | R33: 0 | S33: 0 | T33: 0 | U33: 101 | W33: =W32 -> 101
A34: PESSOA FÍSICA | B34: =HYPERLINK("https://mapas.cultura.gov.br/inscricao/36372390","on-36372390") -> on-36372390 | C34: São Paulo | D34: SP | E34: SUDESTE | F34: Avaliador 1 | G34: 15 | H34: 15 | I34: 12 | J34: 10 | K34: 8 | L34: 10 | M34: 10 | N34: 8 | O34: 0 | P34: 3 | Q34: 3 | R34: 0 | S34: 3 | T34: 0 | U34: 97 | W34: =AVERAGE(U34,U35) -> 100.5 | X34: PRÉ-SELECIONADO
A35: PESSOA FÍSICA | B35: =HYPERLINK("https://mapas.cultura.gov.br/inscricao/36372390","on-36372390") -> on-36372390 | C35: São Paulo | D35: SP | E35: SUDESTE | F35: Avaliador 2 | G35: 20 | H35: 12 | I35: 15 | J35: 10 | K35: 10 | L35: 10 | M35: 10 | N35: 8 | O35: 0 | P35: 3 | Q35: 3 | R35: 0 | S35: 3 | T35: 0 | U35: 104 | W35: =W34 -> 100.5
A36: PESSOA FÍSICA | B36: =HYPERLINK("https://mapas.cultura.gov.br/inscricao/1888350788","on-1888350788") -> on-1888350788 | C36: Rio de Janeiro | D36: RJ | E36: SUDESTE | F36: Avaliador 1 | G36: 20 | H36: 15 | I36: 15 | J36: 8 | K36: 10 | L36: 10 | M36: 8 | N36: 8 | O36: 0 | P36: 0 | Q36: 3 | R36: 0 | S36: 0 | T36: 0 | U36: 97 | W36: =AVERAGE(U36,U37) -> 100 | X36: PRÉ-SELECIONADO
A37: PESSOA FÍSICA | B37: =HYPERLINK("https://mapas.cultura.gov.br/inscricao/1888350788","on-1888350788") -> on-1888350788 | C37: Rio de Janeiro | D37: RJ | E37: SUDESTE | F37: Avaliador 2 | G37: 20 | H37: 15 | I37: 15 | J37: 10 | K37: 10 | L37: 10 | M37: 10 | N37: 10 | O37: 0 | P37: 0 | Q37: 3 | R37: 0 | S37: 0 | T37: 0 | U37: 103 | W37: =W36 -> 100
A38: PESSOA FÍSICA | B38: =HYPERLINK("https://mapas.cultura.gov.br/inscricao/2042555365","on-2042555365") -> on-2042555365 | C38: Rio de Janeiro | D38: RJ | E38: SUDESTE | F38: Avaliador 1 | G38: 20 | H38: 12 | I38: 12 | J38: 10 | K38: 10 | L38: 10 | M38: 10 | N38: 10 | O38: 0 | P38: 0 | Q38: 3 | R38: 3 | S38: 0 | T38: 0 | U38: 100 | W38: =AVERAGE(U38,U39) -> 100 | X38: PRÉ-SELECIONADO
A39: PESSOA FÍSICA | B39: =HYPERLINK("https://mapas.cultura.gov.br/inscricao/2042555365","on-2042555365") -> on-2042555365 | C39: Rio de Janeiro | D39: RJ | E39: SUDESTE | F39: Avaliador 2 | G39: 20 | H39: 12 | I39: 12 | J39: 10 | K39: 10 | L39: 10 | M39: 10 | N39: 10 | O39: 0 | P39: 0 | Q39: 3 | R39: 3 | S39: 0 | T39: 0 | U39: 100 | W39: =W38 -> 100
A40: PESSOA FÍSICA | B40: =HYPERLINK("https://mapas.cultura.gov.br/inscricao/783742925","on-783742925") -> on-783742925 | C40: Belo Horizonte | D40: MG | E40: SUDESTE | F40: Avaliador 1 | G40: 20 | H40: 15 | I40: 15 | J40: 10 | K40: 10 | L40: 10 | M40: 10 | N40: 8 | O40: 0 | P40: 0 | Q40: 3 | R40: 0 | S40: 0 | T40: 0 | U40: 101 | W40: =AVERAGE(U40,U41) -> 99.5 | X40: PRÉ-SELECIONADO
A41: PESSOA FÍSICA | B41: =HYPERLINK("https://mapas.cultura.gov.br/inscricao/783742925","on-783742925") -> on-783742925 | C41: Belo Horizonte | D41: MG | E41: SUDESTE | F41: Avaliador 2 | G41: 20 | H41: 15 | I41: 12 | J41: 8 | K41: 10 | L41: 10 | M41: 10 | N41: 10 | O41: 0 | P41: 0 | Q41: 3 | R41: 0 | S41: 0 | T41: 0 | U41: 98 | W41: =W40 -> 99.5
A42: PESSOA FÍSICA | B42: =HYPERLINK("https://mapas.cultura.gov.br/inscricao/1061935128","on-1061935128") -> on-1061935128 | C42: Belo Horizonte | D42: MG | E42: SUDESTE | F42: Avaliador 1 | G42: 20 | H42: 4 | I42: 15 | J42: 10 | K42: 10 | L42: 10 | M42: 10 | N42: 8 | O42: 0 | P42: 0 | Q42: 3 | R42: 0 | S42: 3 | T42: 0 | U42: 93 | W42: =AVERAGE(U42,U43) -> 99.5 | X42: PRÉ-SELECIONADO
A43: PESSOA FÍSICA | B43: =HYPERLINK("https://mapas.cultura.gov.br/inscricao/1061935128","on-1061935128") -> on-1061935128 | C43: Belo Horizonte | D43: MG | E43: SUDESTE | F43: Avaliador 2 | G43: 20 | H43: 15 | I43: 15 | J43: 10 | K43: 10 | L43: 10 | M43: 10 | N43: 10 | O43: 0 | P43: 0 | Q43: 3 | R43: 0 | S43: 3 | T43: 0 | U43: 106 | W43: =W42 -> 99.5
A44: PESSOA FÍSICA | B44: =HYPERLINK("https://mapas.cultura.gov.br/inscricao/1246009301","on-1246009301") -> on-1246009301 | C44: São Paulo | D44: SP | E44: SUDESTE | F44: Avaliador 1 | G44: 20 | H44: 15 | I44: 15 | J44: 10 | K44: 10 | L44: 10 | M44: 10 | N44: 10 | O44: 0 | P44: 0 | Q44: 3 | R44: 3 | S44: 0 | T44: 3 | U44: 109 | W44: =AVERAGE(U44,U45) -> 99.5 | X44: PRÉ-SELECIONADO
A45: PESSOA FÍSICA | B45: =HYPERLINK("https://mapas.cultura.gov.br/inscricao/1246009301","on-1246009301") -> on-1246009301 | C45: São Paulo | D45: SP | E45: SUDESTE | F45: Avaliador 2 | G45: 20 | H45: 0 | I45: 15 | J45: 8 | K45: 8 | L45: 10 | M45: 10 | N45: 10 | O45: 0 | P45: 0 | Q45: 3 | R45: 3 | S45: 0 | T45: 3 | U45: 90 | W45: =W44 -> 99.5
A46: PESSOA FÍSICA | B46: =HYPERLINK("https://mapas.cultura.gov.br/inscricao/1013881467","on-1013881467") -> on-1013881467 | C46: Rio de Janeiro | D46: RJ | E46: SUDESTE | F46: Avaliador 1 | G46: 20 | H46: 15 | I46: 15 | J46: 10 | K46: 10 | L46: 10 | M46: 10 | N46: 5 | O46: 0 | P46: 3 | Q46: 0 | R46: 0 | S46: 3 | T46: 0 | U46: 101 | W46: =AVERAGE(U46,U47) -> 99 | X46: PRÉ-SELECIONADO
A47: PESSOA FÍSICA | B47: =HYPERLINK("https://mapas.cultura.gov.br/inscricao/1013881467","on-1013881467") -> on-1013881467 | C47: Rio de Janeiro | D47: RJ | E47: SUDESTE | F47: Avaliador 2 | G47: 20 | H47: 15 | I47: 12 | J47: 10 | K47: 8 | L47: 8 | M47: 8 | N47: 10 | O47: 0 | P47: 3 | Q47: 0 | R47: 0 | S47: 3 | T47: 0 | U47: 97 | W47: =W46 -> 99
A48: PESSOA FÍSICA | B48: =HYPERLINK("https://mapas.cultura.gov.br/inscricao/1083083753","on-1083083753") -> on-1083083753 | C48: Duque de Caxias | D48: RJ | E48: SUDESTE | F48: Avaliador 1 | G48: 20 | H48: 12 | I48: 12 | J48: 8 | K48: 8 | L48: 8 | M48: 8 | N48: 3 | O48: 0 | P48: 3 | Q48: 3 | R48: 0 | S48: 3 | T48: 0 | U48: 88 | W48: =AVERAGE(U48,U49) -> 98.5 | X48: PRÉ-SELECIONADO
A49: PESSOA FÍSICA | B49: =HYPERLINK("https://mapas.cultura.gov.br/inscricao/1083083753","on-1083083753") -> on-1083083753 | C49: Duque de Caxias | D49: RJ | E49: SUDESTE | F49: Avaliador 2 | G49: 20 | H49: 15 | I49: 15 | J49: 10 | K49: 10 | L49: 10 | M49: 10 | N49: 10 | O49: 0 | P49: 3 | Q49: 3 | R49: 0 | S49: 3 | T49: 0 | U49: 109 | W49: =W48 -> 98.5
A50: PESSOA FÍSICA | B50: =HYPERLINK("https://mapas.cultura.gov.br/inscricao/1902499449","on-1902499449") -> on-1902499449 | C50: São Paulo | D50: SP | E50: SUDESTE | F50: Avaliador 1 | G50: 20 | H50: 15 | I50: 15 | J50: 10 | K50: 8 | L50: 8 | M50: 8 | N50: 8 | O50: 0 | P50: 3 | Q50: 3 | R50: 0 | S50: 0 | T50: 0 | U50: 98 | W50: =AVERAGE(U50,U51) -> 98 | X50: PRÉ-SELECIONADO
A51: PESSOA FÍSICA | B51: =HYPERLINK("https://mapas.cultura.gov.br/inscricao/1902499449","on-1902499449") -> on-1902499449 | C51: São Paulo | D51: SP | E51: SUDESTE | F51: Avaliador 2 | G51: 20 | H51: 15 | I51: 15 | J51: 10 | K51: 8 | L51: 8 | M51: 8 | N51: 8 | O51: 0 | P51: 3 | Q51: 3 | R51: 0 | S51: 0 | T51: 0 | U51: 98 | W51: =W50 -> 98
A52: PESSOA FÍSICA | B52: =HYPERLINK("https://mapas.cultura.gov.br/inscricao/2114115491","on-2114115491") -> on-2114115491 | C52: Niteroi | D52: RJ | E52: SUDESTE | F52: Avaliador 1 | G52: 20 | H52: 15 | I52: 15 | J52: 8 | K52: 10 | L52: 10 | M52: 10 | N52: 10 | O52: 0 | P52: 0 | Q52: 0 | R52: 0 | S52: 0 | T52: 0 | U52: 98 | W52: =AVERAGE(U52,U53) -> 98 | X52: PRÉ-SELECIONADO
A53: PESSOA FÍSICA | B53: =HYPERLINK("https://mapas.cultura.gov.br/inscricao/2114115491","on-2114115491") -> on-2114115491 | C53: Niteroi | D53: RJ | E53: SUDESTE | F53: Avaliador 2 | G53: 20 | H53: 15 | I53: 15 | J53: 8 | K53: 10 | L53: 10 | M53: 10 | N53: 10 | O53: 0 | P53: 0 | Q53: 0 | R53: 0 | S53: 0 | T53: 0 | U53: 98 | W53: =W52 -> 98
A54: PESSOA FÍSICA | B54: =HYPERLINK("https://mapas.cultura.gov.br/inscricao/910797328","on-910797328") -> on-910797328 | C54: Rio de Janeiro | D54: RJ | E54: SUDESTE | F54: Avaliador 1 | G54: 20 | H54: 12 | I54: 15 | J54: 8 | K54: 8 | L54: 10 | M54: 10 | N54: 5 | O54: 0 | P54: 3 | Q54: 0 | R54: 0 | S54: 0 | T54: 3 | U54: 94 | W54: =AVERAGE(U54,U55) -> 98 | X54: PRÉ-SELECIONADO
A55: PESSOA FÍSICA | B55: =HYPERLINK("https://mapas.cultura.gov.br/inscricao/910797328","on-910797328") -> on-910797328 | C55: Rio de Janeiro | D55: RJ | E55: SUDESTE | F55: Avaliador 2 | G55: 20 | H55: 15 | I55: 15 | J55: 10 | K55: 8 | L55: 10 | M55: 10 | N55: 8 | O55: 0 | P55: 3 | Q55: 0 | R55: 0 | S55: 0 | T55: 3 | U55: 102 | W55: =W54 -> 98
A56: PESSOA FÍSICA | B56: =HYPERLINK("https://mapas.cultura.gov.br/inscricao/1761536975","on-1761536975") -> on-1761536975 | C56: Mesquita | D56: RJ | E56: SUDESTE | F56: Avaliador 1 | G56: 15 | H56: 15 | I56: 12 | J56: 10 | K56: 8 | L56: 10 | M56: 10 | N56: 10 | O56: 0 | P56: 0 | Q56: 3 | R56: 0 | S56: 0 | T56: 0 | U56: 93 | W56: =AVERAGE(U56,U57) -> 98 | X56: PRÉ-SELECIONADO
A57: PESSOA FÍSICA | B57: =HYPERLINK("https://mapas.cultura.gov.br/inscricao/1761536975","on-1761536975") -> on-1761536975 | C57: Mesquita | D57: RJ | E57: SUDESTE | F57: Avaliador 2 | G57: 20 | H57: 15 | I57: 15 | J57: 10 | K57: 10 | L57: 10 | M57: 10 | N57: 10 | O57: 0 | P57: 0 | Q57: 3 | R57: 0 | S57: 0 | T57: 0 | U57: 103 | W57: =W56 -> 98
A58: PESSOA FÍSICA | B58: =HYPERLINK("https://mapas.cultura.gov.br/inscricao/486390568","on-486390568") -> on-486390568 | C58: São Paulo | D58: SP | E58: SUDESTE | F58: Avaliador 1 | G58: 20 | H58: 15 | I58: 12 | J58: 10 | K58: 8 | L58: 10 | M58: 8 | N58: 8 | O58: 0 | P58: 3 | Q58: 0 | R58: 0 | S58: 3 | T58: 0 | U58: 97 | W58: =AVERAGE(U58,U59) -> 97 | X58: PRÉ-SELECIONADO
A59: PESSOA FÍSICA | B59: =HYPERLINK("https://mapas.cultura.gov.br/inscricao/486390568","on-486390568") -> on-486390568 | C59: São Paulo | D59: SP | E59: SUDESTE | F59: Avaliador 2 | G59: 20 | H59: 15 | I59: 12 | J59: 10 | K59: 8 | L59: 10 | M59: 8 | N59: 8 | O59: 0 | P59: 3 | Q59: 0 | R59: 0 | S59: 3 | T59: 0 | U59: 97 | W59: =W58 -> 97
A60: PESSOA FÍSICA | B60: =HYPERLINK("https://mapas.cultura.gov.br/inscricao/121932388","on-121932388") -> on-121932388 | C60: Nilópolis | D60: RJ | E60: SUDESTE | F60: Avaliador 1 | G60: 20 | H60: 15 | I60: 15 | J60: 8 | K60: 10 | L60: 10 | M60: 8 | N60: 3 | O60: 0 | P60: 0 | Q60: 3 | R60: 0 | S60: 0 | T60: 0 | U60: 92 | W60: =AVERAGE(U60,U61) -> 96.5 | X60: PRÉ-SELECIONADO
A61: PESSOA FÍSICA | B61: =HYPERLINK("https://mapas.cultura.gov.br/inscricao/121932388","on-121932388") -> on-121932388 | C61: Nilópolis | D61: RJ | E61: SUDESTE | F61: Avaliador 2 | G61: 20 | H61: 15 | I61: 15 | J61: 10 | K61: 10 | L61: 10 | M61: 10 | N61: 8 | O61: 0 | P61: 0 | Q61: 3 | R61: 0 | S61: 0 | T61: 0 | U61: 101 | W61: =W60 -> 96.5
A62: PESSOA FÍSICA | B62: =HYPERLINK("https://mapas.cultura.gov.br/inscricao/2070260641","on-2070260641") -> on-2070260641 | C62: Ribeirão Preto | D62: SP | E62: SUDESTE | F62: Avaliador 1 | G62: 20 | H62: 15 | I62: 15 | J62: 8 | K62: 8 | L62: 8 | M62: 8 | N62: 8 | O62: 0 | P62: 0 | Q62: 3 | R62: 0 | S62: 3 | T62: 0 | U62: 96 | W62: =AVERAGE(U62,U63) -> 96 | X62: PRÉ-SELECIONADO
A63: PESSOA FÍSICA | B63: =HYPERLINK("https://mapas.cultura.gov.br/inscricao/2070260641","on-2070260641") -> on-2070260641 | C63: Ribeirão Preto | D63: SP | E63: SUDESTE | F63: Avaliador 2 | G63: 20 | H63: 15 | I63: 15 | J63: 8 | K63: 8 | L63: 8 | M63: 8 | N63: 8 | O63: 0 | P63: 0 | Q63: 3 | R63: 0 | S63: 3 | T63: 0 | U63: 96 | W63: =W62 -> 96
A64: PESSOA FÍSICA | B64: =HYPERLINK("https://mapas.cultura.gov.br/inscricao/1886695533","on-1886695533") -> on-1886695533 | C64: Campinas | D64: SP | E64: SUDESTE | F64: Avaliador 1 | G64: 20 | H64: 15 | I64: 15 | J64: 10 | K64: 10 | L64: 10 | M64: 8 | N64: 5 | O64: 0 | P64: 0 | Q64: 3 | R64: 0 | S64: 0 | T64: 0 | U64: 96 | W64: =AVERAGE(U64,U65) -> 96 | X64: PRÉ-SELECIONADO
A65: PESSOA FÍSICA | B65: =HYPERLINK("https://mapas.cultura.gov.br/inscricao/1886695533","on-1886695533") -> on-1886695533 | C65: Campinas | D65: SP | E65: SUDESTE | F65: Avaliador 2 | G65: 20 | H65: 15 | I65: 15 | J65: 10 | K65: 10 | L65: 10 | M65: 8 | N65: 5 | O65: 0 | P65: 0 | Q65: 3 | R65: 0 | S65: 0 | T65: 0 | U65: 96 | W65: =W64 -> 96
A66: PESSOA FÍSICA | B66: =HYPERLINK("https://mapas.cultura.gov.br/inscricao/802797352","on-802797352") -> on-802797352 | C66: Rio de Janeiro | D66: RJ | E66: SUDESTE | F66: Avaliador 1 | G66: 20 | H66: 15 | I66: 15 | J66: 10 | K66: 8 | L66: 10 | M66: 10 | N66: 8 | O66: 0 | P66: 3 | Q66: 3 | R66: 0 | S66: 0 | T66: 0 | U66: =SUM(G66:T66) -> 102 | W66: =AVERAGE(U66,U67) -> 96 | X66: PRÉ-SELECIONADO
A67: PESSOA FÍSICA | B67: =HYPERLINK("https://mapas.cultura.gov.br/inscricao/802797352","on-802797352") -> on-802797352 | C67: Rio de Janeiro | D67: RJ | E67: SUDESTE | F67: Avaliador 2 | G67: 15 | H67: 15 | I67: 12 | J67: 10 | K67: 8 | L67: 8 | M67: 8 | N67: 8 | O67: 0 | P67: 3 | Q67: 3 | R67: 0 | S67: 0 | T67: 0 | U67: 90 | W67: =W66 -> 96
A68: PESSOA FÍSICA | B68: =HYPERLINK("https://mapas.cultura.gov.br/inscricao/1558170050","on-1558170050") -> on-1558170050 | C68: São Paulo | D68: SP | E68: SUDESTE | F68: Avaliador 1 | G68: 20 | H68: 15 | I68: 15 | J68: 8 | K68: 8 | L68: 10 | M68: 8 | N68: 10 | O68: 0 | P68: 0 | Q68: 3 | R68: 0 | S68: 0 | T68: 0 | U68: 97 | W68: =AVERAGE(U68,U69) -> 95.5 | X68: PRÉ-SELECIONADO
A69: PESSOA FÍSICA | B69: =HYPERLINK("https://mapas.cultura.gov.br/inscricao/1558170050","on-1558170050") -> on-1558170050 | C69: São Paulo | D69: SP | E69: SUDESTE | F69: Avaliador 2 | G69: 20 | H69: 15 | I69: 15 | J69: 5 | K69: 8 | L69: 10 | M69: 8 | N69: 10 | O69: 0 | P69: 0 | Q69: 3 | R69: 0 | S69: 0 | T69: 0 | U69: 94 | W69: =W68 -> 95.5
A70: PESSOA FÍSICA | B70: =HYPERLINK("https://mapas.cultura.gov.br/inscricao/403479117","on-403479117") -> on-403479117 | C70: Uberaba | D70: MG | E70: SUDESTE | F70: Avaliador 1 | G70: 20 | H70: 15 | I70: 15 | J70: 5 | K70: 8 | L70: 10 | M70: 10 | N70: 8 | O70: 0 | P70: 0 | Q70: 0 | R70: 0 | S70: 0 | T70: 0 | U70: 91 | W70: =AVERAGE(U70,U71) -> 95.5 | X70: PRÉ-SELECIONADO
A71: PESSOA FÍSICA | B71: =HYPERLINK("https://mapas.cultura.gov.br/inscricao/403479117","on-403479117") -> on-403479117 | C71: Uberaba | D71: MG | E71: SUDESTE | F71: Avaliador 2 | G71: 20 | H71: 15 | I71: 15 | J71: 10 | K71: 10 | L71: 10 | M71: 10 | N71: 10 | O71: 0 | P71: 0 | Q71: 0 | R71: 0 | S71: 0 | T71: 0 | U71: 100 | W71: =W70 -> 95.5
A72: PESSOA FÍSICA | B72: =HYPERLINK("https://mapas.cultura.gov.br/inscricao/1477479357","on-1477479357") -> on-1477479357 | C72: Vitória | D72: ES | E72: SUDESTE | F72: Avaliador 1 | G72: 15 | H72: 12 | I72: 15 | J72: 10 | K72: 10 | L72: 8 | M72: 10 | N72: 3 | O72: 0 | P72: 3 | Q72: 3 | R72: 0 | S72: 3 | T72: 0 | U72: 92 | W72: =AVERAGE(U72,U73) -> 95.5 | X72: PRÉ-SELECIONADO
A73: PESSOA FÍSICA | B73: =HYPERLINK("https://mapas.cultura.gov.br/inscricao/1477479357","on-1477479357") -> on-1477479357 | C73: Vitória | D73: ES | E73: SUDESTE | F73: Avaliador 2 | G73: 20 | H73: 15 | I73: 15 | J73: 10 | K73: 10 | L73: 10 | M73: 10 | N73: 0 | O73: 0 | P73: 3 | Q73: 3 | R73: 0 | S73: 3 | T73: 0 | U73: 99 | W73: =W72 -> 95.5
A74: PESSOA FÍSICA | B74: =HYPERLINK("https://mapas.cultura.gov.br/inscricao/1547216677","on-1547216677") -> on-1547216677 | C74: São Paulo | D74: SP | E74: SUDESTE | F74: Avaliador 1 | G74: 20 | H74: 15 | I74: 15 | J74: 8 | K74: 10 | L74: 10 | M74: 10 | N74: 10 | O74: 0 | P74: 0 | Q74: 3 | R74: 0 | S74: 0 | T74: 0 | U74: 101 | W74: =AVERAGE(U74,U75) -> 95.5 | X74: PRÉ-SELECIONADO
A75: PESSOA FÍSICA | B75: =HYPERLINK("https://mapas.cultura.gov.br/inscricao/1547216677","on-1547216677") -> on-1547216677 | C75: São Paulo | D75: SP | E75: SUDESTE | F75: Avaliador 2 | G75: 20 | H75: 8 | I75: 15 | J75: 8 | K75: 10 | L75: 8 | M75: 10 | N75: 8 | O75: 0 | P75: 0 | Q75: 3 | R75: 0 | S75: 0 | T75: 0 | U75: 90 | W75: =W74 -> 95.5
A76: PESSOA FÍSICA | B76: =HYPERLINK("https://mapas.cultura.gov.br/inscricao/1669179289","on-1669179289") -> on-1669179289 | C76: Belo Horizonte | D76: MG | E76: SUDESTE | F76: Avaliador 1 | G76: 20 | H76: 15 | I76: 15 | J76: 10 | K76: 3 | L76: 3 | M76: 10 | N76: 8 | O76: 0 | P76: 0 | Q76: 3 | R76: 0 | S76: 0 | T76: 0 | U76: 87 | W76: =AVERAGE(U76,U77) -> 95 | X76: PRÉ-SELECIONADO
A77: PESSOA FÍSICA | B77: =HYPERLINK("https://mapas.cultura.gov.br/inscricao/1669179289","on-1669179289") -> on-1669179289 | C77: Belo Horizonte | D77: MG | E77: SUDESTE | F77: Avaliador 2 | G77: 20 | H77: 15 | I77: 15 | J77: 10 | K77: 10 | L77: 10 | M77: 10 | N77: 10 | O77: 0 | P77: 0 | Q77: 3 | R77: 0 | S77: 0 | T77: 0 | U77: 103 | W77: =W76 -> 95
A78: PESSOA FÍSICA | B78: =HYPERLINK("https://mapas.cultura.gov.br/inscricao/1240179047","on-1240179047") -> on-1240179047 | C78: Ribeirão das Neves | D78: MG | E78: SUDESTE | F78: Avaliador 1 | G78: 15 | H78: 15 | I78: 15 | J78: 10 | K78: 8 | L78: 10 | M78: 10 | N78: 10 | O78: 0 | P78: 3 | Q78: 3 | R78: 3 | S78: 0 | T78: 0 | U78: 102 | W78: =AVERAGE(U78,U79) -> 95 | X78: PRÉ-SELECIONADO
A79: PESSOA FÍSICA | B79: =HYPERLINK("https://mapas.cultura.gov.br/inscricao/1240179047","on-1240179047") -> on-1240179047 | C79: Ribeirão das Neves | D79: MG | E79: SUDESTE | F79: Avaliador 2 | G79: 15 | H79: 8 | I79: 12 | J79: 8 | K79: 8 | L79: 10 | M79: 8 | N79: 10 | O79: 0 | P79: 3 | Q79: 3 | R79: 3 | S79: 0 | T79: 0 | U79: 88 | W79: =W78 -> 95
A80: PESSOA FÍSICA | B80: =HYPERLINK("https://mapas.cultura.gov.br/inscricao/383903824","on-383903824") -> on-383903824 | C80: São Gonçalo | D80: RJ | E80: SUDESTE | F80: Avaliador 1 | G80: 20 | H80: 15 | I80: 15 | J80: 5 | K80: 8 | L80: 10 | M80: 10 | N80: 10 | O80: 0 | P80: 0 | Q80: 3 | R80: 0 | S80: 0 | T80: 0 | U80: 96 | W80: =AVERAGE(U80,U81) -> 95 | X80: PRÉ-SELECIONADO
A81: PESSOA FÍSICA | B81: =HYPERLINK("https://mapas.cultura.gov.br/inscricao/383903824","on-383903824") -> on-383903824 | C81: São Gonçalo | D81: RJ | E81: SUDESTE | F81: Avaliador 2 | G81: 20 | H81: 15 | I81: 15 | J81: 5 | K81: 8 | L81: 10 | M81: 10 | N81: 8 | O81: 0 | P81: 0 | Q81: 3 | R81: 0 | S81: 0 | T81: 0 | U81: 94 | W81: =W80 -> 95
A82: PESSOA FÍSICA | B82: =HYPERLINK("https://mapas.cultura.gov.br/inscricao/293121771","on-293121771") -> on-293121771 | C82: São Paulo | D82: SP | E82: SUDESTE | F82: Avaliador 1 | G82: 20 | H82: 15 | I82: 15 | J82: 8 | K82: 8 | L82: 10 | M82: 10 | N82: 8 | O82: 0 | P82: 0 | Q82: 3 | R82: 0 | S82: 0 | T82: 0 | U82: 97 | W82: =AVERAGE(U82,U83) -> 94.5 | X82: PRÉ-SELECIONADO
A83: PESSOA FÍSICA | B83: =HYPERLINK("https://mapas.cultura.gov.br/inscricao/293121771","on-293121771") -> on-293121771 | C83: São Paulo | D83: SP | E83: SUDESTE | F83: Avaliador 2 | G83: 20 | H83: 15 | I83: 15 | J83: 5 | K83: 8 | L83: 8 | M83: 10 | N83: 8 | O83: 0 | P83: 0 | Q83: 3 | R83: 0 | S83: 0 | T83: 0 | U83: 92 | W83: =W82 -> 94.5
A84: PESSOA FÍSICA | B84: =HYPERLINK("https://mapas.cultura.gov.br/inscricao/522387392","on-522387392") -> on-522387392 | C84: São Paulo | D84: SP | E84: SUDESTE | F84: Avaliador 1 | G84: 20 | H84: 15 | I84: 15 | J84: 10 | K84: 10 | L84: 10 | M84: 8 | N84: 8 | O84: 0 | P84: 0 | Q84: 3 | R84: 0 | S84: 3 | T84: 0 | U84: 102 | W84: =AVERAGE(U84,U85) -> 94.5 | X84: PRÉ-SELECIONADO
A85: PESSOA FÍSICA | B85: =HYPERLINK("https://mapas.cultura.gov.br/inscricao/522387392","on-522387392") -> on-522387392 | C85: São Paulo | D85: SP | E85: SUDESTE | F85: Avaliador 2 | G85: 20 | H85: 0 | I85: 15 | J85: 10 | K85: 8 | L85: 10 | M85: 10 | N85: 8 | O85: 0 | P85: 0 | Q85: 3 | R85: 0 | S85: 3 | T85: 0 | U85: 87 | W85: =W84 -> 94.5
A86: PESSOA FÍSICA | B86: =HYPERLINK("https://mapas.cultura.gov.br/inscricao/1216803701","on-1216803701") -> on-1216803701 | C86: Serra | D86: ES | E86: SUDESTE | F86: Avaliador 1 | G86: 20 | H86: 15 | I86: 15 | J86: 10 | K86: 8 | L86: 10 | M86: 10 | N86: 3 | O86: 0 | P86: 0 | Q86: 3 | R86: 0 | S86: 0 | T86: 0 | U86: 94 | W86: =AVERAGE(U86,U87) -> 94 | X86: PRÉ-SELECIONADO
A87: PESSOA FÍSICA | B87: =HYPERLINK("https://mapas.cultura.gov.br/inscricao/1216803701","on-1216803701") -> on-1216803701 | C87: Serra | D87: ES | E87: SUDESTE | F87: Avaliador 2 | G87: 20 | H87: 15 | I87: 15 | J87: 10 | K87: 8 | L87: 10 | M87: 10 | N87: 3 | O87: 0 | P87: 0 | Q87: 3 | R87: 0 | S87: 0 | T87: 0 | U87: 94 | W87: =W86 -> 94
A88: PESSOA FÍSICA | B88: =HYPERLINK("https://mapas.cultura.gov.br/inscricao/584484246","on-584484246") -> on-584484246 | C88: Vitória | D88: ES | E88: SUDESTE | F88: Avaliador 1 | G88: 20 | H88: 15 | I88: 15 | J88: 8 | K88: 10 | L88: 10 | M88: 10 | N88: 3 | O88: 0 | P88: 0 | Q88: 3 | R88: 0 | S88: 0 | T88: 0 | U88: 94 | W88: =AVERAGE(U88,U89) -> 94 | X88: PRÉ-SELECIONADO
A89: PESSOA FÍSICA | B89: =HYPERLINK("https://mapas.cultura.gov.br/inscricao/584484246","on-584484246") -> on-584484246 | C89: Vitória | D89: ES | E89: SUDESTE | F89: Avaliador 2 | G89: 20 | H89: 15 | I89: 15 | J89: 8 | K89: 10 | L89: 10 | M89: 10 | N89: 3 | O89: 0 | P89: 0 | Q89: 3 | R89: 0 | S89: 0 | T89: 0 | U89: 94 | W89: =W88 -> 94
A90: PESSOA FÍSICA | B90: =HYPERLINK("https://mapas.cultura.gov.br/inscricao/1250990635","on-1250990635") -> on-1250990635 | C90: São Gonçalo | D90: RJ | E90: SUDESTE | F90: Avaliador 1 | G90: 20 | H90: 15 | I90: 15 | J90: 10 | K90: 10 | L90: 10 | M90: 10 | N90: 5 | O90: 0 | P90: 0 | Q90: 0 | R90: 0 | S90: 0 | T90: 0 | U90: 95 | W90: =AVERAGE(U90,U91) -> 94 | X90: PRÉ-SELECIONADO
A91: PESSOA FÍSICA | B91: =HYPERLINK("https://mapas.cultura.gov.br/inscricao/1250990635","on-1250990635") -> on-1250990635 | C91: São Gonçalo | D91: RJ | E91: SUDESTE | F91: Avaliador 2 | G91: 20 | H91: 15 | I91: 15 | J91: 10 | K91: 10 | L91: 10 | M91: 10 | N91: 3 | O91: 0 | P91: 0 | Q91: 0 | R91: 0 | S91: 0 | T91: 0 | U91: 93 | W91: =W90 -> 94
A92: PESSOA FÍSICA | B92: =HYPERLINK("https://mapas.cultura.gov.br/inscricao/1189857943","on-1189857943") -> on-1189857943 | C92: São Paulo | D92: SP | E92: SUDESTE | F92: Avaliador 1 | G92: 20 | H92: 15 | I92: 15 | J92: 10 | K92: 8 | L92: 10 | M92: 8 | N92: 8 | O92: 0 | P92: 0 | Q92: 0 | R92: 0 | S92: 0 | T92: 0 | U92: 94 | W92: =AVERAGE(U92,U93) -> 94 | X92: PRÉ-SELECIONADO
A93: PESSOA FÍSICA | B93: =HYPERLINK("https://mapas.cultura.gov.br/inscricao/1189857943","on-1189857943") -> on-1189857943 | C93: São Paulo | D93: SP | E93: SUDESTE | F93: Avaliador 2 | G93: 20 | H93: 15 | I93: 15 | J93: 10 | K93: 8 | L93: 10 | M93: 8 | N93: 8 | O93: 0 | P93: 0 | Q93: 0 | R93: 0 | S93: 0 | T93: 0 | U93: 94 | W93: =W92 -> 94
A94: PESSOA FÍSICA | B94: =HYPERLINK("https://mapas.cultura.gov.br/inscricao/421105263","on-421105263") -> on-421105263 | C94: Santo André | D94: SP | E94: SUDESTE | F94: Avaliador 1 | G94: 20 | H94: 12 | I94: 15 | J94: 8 | K94: 8 | L94: 10 | M94: 8 | N94: 10 | O94: 0 | P94: 0 | Q94: 3 | R94: 0 | S94: 0 | T94: 0 | U94: 94 | W94: =AVERAGE(U94,U95) -> 94 | X94: PRÉ-SELECIONADO
A95: PESSOA FÍSICA | B95: =HYPERLINK("https://mapas.cultura.gov.br/inscricao/421105263","on-421105263") -> on-421105263 | C95: Santo André | D95: SP | E95: SUDESTE | F95: Avaliador 2 | G95: 20 | H95: 12 | I95: 15 | J95: 8 | K95: 8 | L95: 10 | M95: 8 | N95: 10 | O95: 0 | P95: 0 | Q95: 3 | R95: 0 | S95: 0 | T95: 0 | U95: 94 | W95: =W94 -> 94
A96: PESSOA FÍSICA | B96: =HYPERLINK("https://mapas.cultura.gov.br/inscricao/1052890883","on-1052890883") -> on-1052890883 | C96: Vila Velha | D96: ES | E96: SUDESTE | F96: Avaliador 1 | G96: 15 | H96: 15 | I96: 15 | J96: 10 | K96: 10 | L96: 10 | M96: 10 | N96: 3 | O96: 0 | P96: 3 | Q96: 0 | R96: 0 | S96: 3 | T96: 0 | U96: 94 | W96: =AVERAGE(U96,U97) -> 94 | X96: PRÉ-SELECIONADO
A97: PESSOA FÍSICA | B97: =HYPERLINK("https://mapas.cultura.gov.br/inscricao/1052890883","on-1052890883") -> on-1052890883 | C97: Vila Velha | D97: ES | E97: SUDESTE | F97: Avaliador 2 | G97: 15 | H97: 15 | I97: 15 | J97: 10 | K97: 10 | L97: 10 | M97: 10 | N97: 3 | O97: 0 | P97: 3 | Q97: 0 | R97: 0 | S97: 3 | T97: 0 | U97: 94 | W97: =W96 -> 94
A98: PESSOA FÍSICA | B98: =HYPERLINK("https://mapas.cultura.gov.br/inscricao/469140421","on-469140421") -> on-469140421 | C98: Diadema | D98: SP | E98: SUDESTE | F98: Avaliador 1 | G98: 20 | H98: 12 | I98: 15 | J98: 8 | K98: 10 | L98: 10 | M98: 8 | N98: 8 | O98: 0 | P98: 0 | Q98: 3 | R98: 0 | S98: 0 | T98: 0 | U98: 94 | W98: =AVERAGE(U98,U99) -> 94 | X98: PRÉ-SELECIONADO
A99: PESSOA FÍSICA | B99: =HYPERLINK("https://mapas.cultura.gov.br/inscricao/469140421","on-469140421") -> on-469140421 | C99: Diadema | D99: SP | E99: SUDESTE | F99: Avaliador 2 | G99: 20 | H99: 12 | I99: 15 | J99: 8 | K99: 10 | L99: 10 | M99: 8 | N99: 8 | O99: 0 | P99: 0 | Q99: 3 | R99: 0 | S99: 0 | T99: 0 | U99: 94 | W99: =W98 -> 94
A100: PESSOA FÍSICA | B100: =HYPERLINK("https://mapas.cultura.gov.br/inscricao/1815604864","on-1815604864") -> on-1815604864 | C100: Serra | D100: ES | E100: SUDESTE | F100: Avaliador 1 | G100: 20 | H100: 15 | I100: 15 | J100: 10 | K100: 8 | L100: 8 | M100: 5 | N100: 0 | O100: 0 | P100: 3 | Q100: 3 | R100: 0 | S100: 3 | T100: 0 | U100: 90 | W100: =AVERAGE(U100,U101) -> 93.5 | X100: PRÉ-SELECIONADO
A101: PESSOA FÍSICA | B101: =HYPERLINK("https://mapas.cultura.gov.br/inscricao/1815604864","on-1815604864") -> on-1815604864 | C101: Serra | D101: ES | E101: SUDESTE | F101: Avaliador 2 | G101: 20 | H101: 15 | I101: 15 | J101: 10 | K101: 8 | L101: 10 | M101: 10 | N101: 0 | O101: 0 | P101: 3 | Q101: 3 | R101: 0 | S101: 3 | T101: 0 | U101: 97 | W101: =W100 -> 93.5
A102: PESSOA FÍSICA | B102: =HYPERLINK("https://mapas.cultura.gov.br/inscricao/783667937","on-783667937") -> on-783667937 | C102: São Mateus | D102: ES | E102: SUDESTE | F102: Avaliador 1 | G102: 20 | H102: 15 | I102: 15 | J102: 8 | K102: 5 | L102: 10 | M102: 8 | N102: 0 | O102: 0 | P102: 3 | Q102: 3 | R102: 0 | S102: 3 | T102: 0 | U102: 90 | W102: =AVERAGE(U102,U103) -> 93.5 | X102: PRÉ-SELECIONADO
A103: PESSOA FÍSICA | B103: =HYPERLINK("https://mapas.cultura.gov.br/inscricao/783667937","on-783667937") -> on-783667937 | C103: São Mateus | D103: ES | E103: SUDESTE | F103: Avaliador 2 | G103: 20 | H103: 15 | I103: 15 | J103: 8 | K103: 10 | L103: 10 | M103: 10 | N103: 0 | O103: 0 | P103: 3 | Q103: 3 | R103: 0 | S103: 3 | T103: 0 | U103: 97 | W103: =W102 -> 93.5
A104: PESSOA FÍSICA | B104: =HYPERLINK("https://mapas.cultura.gov.br/inscricao/3584216","on-3584216") -> on-3584216 | C104: Ibirité | D104: MG | E104: SUDESTE | F104: Avaliador 1 | G104: 15 | H104: 15 | I104: 15 | J104: 8 | K104: 10 | L104: 10 | M104: 10 | N104: 5 | O104: 0 | P104: 0 | Q104: 3 | R104: 0 | S104: 0 | T104: 0 | U104: 91 | W104: =AVERAGE(U104,U105) -> 93.5 | X104: PRÉ-SELECIONADO
A105: PESSOA FÍSICA | B105: =HYPERLINK("https://mapas.cultura.gov.br/inscricao/3584216","on-3584216") -> on-3584216 | C105: Ibirité | D105: MG | E105: SUDESTE | F105: Avaliador 2 | G105: 20 | H105: 15 | I105: 15 | J105: 8 | K105: 10 | L105: 10 | M105: 10 | N105: 5 | O105: 0 | P105: 0 | Q105: 3 | R105: 0 | S105: 0 | T105: 0 | U105: 96 | W105: =W104 -> 93.5
A106: PESSOA FÍSICA | B106: =HYPERLINK("https://mapas.cultura.gov.br/inscricao/500204710","on-500204710") -> on-500204710 | C106: Campinas | D106: SP | E106: SUDESTE | F106: Avaliador 1 | G106: 20 | H106: 12 | I106: 12 | J106: 10 | K106: 8 | L106: 8 | M106: 8 | N106: 8 | O106: 0 | P106: 3 | Q106: 0 | R106: 0 | S106: 3 | T106: 0 | U106: 92 | W106: =AVERAGE(U106,U107) -> 93.5 | X106: PRÉ-SELECIONADO
A107: PESSOA FÍSICA | B107: =HYPERLINK("https://mapas.cultura.gov.br/inscricao/500204710","on-500204710") -> on-500204710 | C107: Campinas | D107: SP | E107: SUDESTE | F107: Avaliador 2 | G107: 20 | H107: 15 | I107: 12 | J107: 10 | K107: 8 | L107: 8 | M107: 8 | N107: 8 | O107: 0 | P107: 3 | Q107: 0 | R107: 0 | S107: 3 | T107: 0 | U107: 95 | W107: =W106 -> 93.5
A108: PESSOA FÍSICA | B108: =HYPERLINK("https://mapas.cultura.gov.br/inscricao/866098578","on-866098578") -> on-866098578 | C108: São Paulo | D108: SP | E108: SUDESTE | F108: Avaliador 1 | G108: 15 | H108: 15 | I108: 12 | J108: 10 | K108: 10 | L108: 10 | M108: 10 | N108: 5 | O108: 0 | P108: 3 | Q108: 0 | R108: 0 | S108: 0 | T108: 0 | U108: 90 | W108: =AVERAGE(U108,U109) -> 93.5 | X108: PRÉ-SELECIONADO
A109: PESSOA FÍSICA | B109: =HYPERLINK("https://mapas.cultura.gov.br/inscricao/866098578","on-866098578") -> on-866098578 | C109: São Paulo | D109: SP | E109: SUDESTE | F109: Avaliador 2 | G109: 20 | H109: 15 | I109: 15 | J109: 8 | K109: 8 | L109: 8 | M109: 10 | N109: 10 | O109: 0 | P109: 3 | Q109: 0 | R109: 0 | S109: 0 | T109: 0 | U109: 97 | W109: =W108 -> 93.5
A110: PESSOA FÍSICA | B110: =HYPERLINK("https://mapas.cultura.gov.br/inscricao/1318054776","on-1318054776") -> on-1318054776 | C110: Santa Luzia | D110: MG | E110: SUDESTE | F110: Avaliador 1 | G110: 20 | H110: 15 | I110: 15 | J110: 0 | K110: 10 | L110: 10 | M110: 10 | N110: 10 | O110: 0 | P110: 0 | Q110: 3 | R110: 0 | S110: 0 | T110: 0 | U110: 93 | W110: =AVERAGE(U110,U111) -> 93 | X110: PRÉ-SELECIONADO
A111: PESSOA FÍSICA | B111: =HYPERLINK("https://mapas.cultura.gov.br/inscricao/1318054776","on-1318054776") -> on-1318054776 | C111: Santa Luzia | D111: MG | E111: SUDESTE | F111: Avaliador 2 | G111: 20 | H111: 15 | I111: 15 | J111: 0 | K111: 10 | L111: 10 | M111: 10 | N111: 10 | O111: 0 | P111: 0 | Q111: 3 | R111: 0 | S111: 0 | T111: 0 | U111: 93 | W111: =W110 -> 93
A112: PESSOA FÍSICA | B112: =HYPERLINK("https://mapas.cultura.gov.br/inscricao/700905286","on-700905286") -> on-700905286 | C112: Vila-Velha | D112: ES | E112: SUDESTE | F112: Avaliador 1 | G112: 20 | H112: 15 | I112: 12 | J112: 8 | K112: 3 | L112: 10 | M112: 5 | N112: 5 | O112: 0 | P112: 3 | Q112: 3 | R112: 0 | S112: 3 | T112: 0 | U112: 87 | W112: =AVERAGE(U112,U113) -> 93 | X112: PRÉ-SELECIONADO
A113: PESSOA FÍSICA | B113: =HYPERLINK("https://mapas.cultura.gov.br/inscricao/700905286","on-700905286") -> on-700905286 | C113: Vila-Velha | D113: ES | E113: SUDESTE | F113: Avaliador 2 | G113: 20 | H113: 15 | I113: 15 | J113: 10 | K113: 10 | L113: 10 | M113: 10 | N113: 0 | O113: 0 | P113: 3 | Q113: 3 | R113: 0 | S113: 3 | T113: 0 | U113: 99 | W113: =W112 -> 93
A114: PESSOA FÍSICA | B114: =HYPERLINK("https://mapas.cultura.gov.br/inscricao/785288293","on-785288293") -> on-785288293 | C114: Vila Velha | D114: ES | E114: SUDESTE | F114: Avaliador 1 | G114: 20 | H114: 12 | I114: 15 | J114: 10 | K114: 3 | L114: 8 | M114: 8 | N114: 10 | O114: 0 | P114: 3 | Q114: 3 | R114: 3 | S114: 3 | T114: 0 | U114: 98 | W114: =AVERAGE(U114,U115) -> 93 | X114: PRÉ-SELECIONADO
A115: PESSOA FÍSICA | B115: =HYPERLINK("https://mapas.cultura.gov.br/inscricao/785288293","on-785288293") -> on-785288293 | C115: Vila Velha | D115: ES | E115: SUDESTE | F115: Avaliador 2 | G115: 20 | H115: 12 | I115: 15 | J115: 10 | K115: 3 | L115: 8 | M115: 8 | N115: 0 | O115: 0 | P115: 3 | Q115: 3 | R115: 3 | S115: 3 | T115: 0 | U115: 88 | W115: =W114 -> 93
A116: PESSOA FÍSICA | B116: =HYPERLINK("https://mapas.cultura.gov.br/inscricao/1549846491","on-1549846491") -> on-1549846491 | C116: Vitória | D116: ES | E116: SUDESTE | F116: Avaliador 1 | G116: 15 | H116: 15 | I116: 15 | J116: 10 | K116: 8 | L116: 10 | M116: 10 | N116: 3 | O116: 0 | P116: 3 | Q116: 0 | R116: 0 | S116: 3 | T116: 0 | U116: 92 | W116: =AVERAGE(U116,U117) -> 93 | X116: PRÉ-SELECIONADO
A117: PESSOA FÍSICA | B117: =HYPERLINK("https://mapas.cultura.gov.br/inscricao/1549846491","on-1549846491") -> on-1549846491 | C117: Vitória | D117: ES | E117: SUDESTE | F117: Avaliador 2 | G117: 15 | H117: 15 | I117: 15 | J117: 10 | K117: 8 | L117: 10 | M117: 10 | N117: 5 | O117: 0 | P117: 3 | Q117: 0 | R117: 0 | S117: 3 | T117: 0 | U117: 94 | W117: =W116 -> 93
A118: PESSOA FÍSICA | B118: =HYPERLINK("https://mapas.cultura.gov.br/inscricao/595781854","on-595781854") -> on-595781854 | C118: São Paulo | D118: SP | E118: SUDESTE | F118: Avaliador 1 | G118: 20 | H118: 15 | I118: 12 | J118: 8 | K118: 8 | L118: 10 | M118: 10 | N118: 8 | O118: 0 | P118: 0 | Q118: 3 | R118: 0 | S118: 0 | T118: 0 | U118: 94 | W118: =AVERAGE(U118,U119) -> 93 | X118: PRÉ-SELECIONADO
A119: PESSOA FÍSICA | B119: =HYPERLINK("https://mapas.cultura.gov.br/inscricao/595781854","on-595781854") -> on-595781854 | C119: São Paulo | D119: SP | E119: SUDESTE | F119: Avaliador 2 | G119: 20 | H119: 15 | I119: 12 | J119: 8 | K119: 8 | L119: 10 | M119: 8 | N119: 8 | O119: 0 | P119: 0 | Q119: 3 | R119: 0 | S119: 0 | T119: 0 | U119: 92 | W119: =W118 -> 93
A120: PESSOA FÍSICA | B120: =HYPERLINK("https://mapas.cultura.gov.br/inscricao/1509551666","on-1509551666") -> on-1509551666 | C120: Marataízes | D120: ES | E120: SUDESTE | F120: Avaliador 1 | G120: 20 | H120: 15 | I120: 15 | J120: 8 | K120: 8 | L120: 10 | M120: 5 | N120: 3 | O120: 0 | P120: 0 | Q120: 0 | R120: 3 | S120: 3 | T120: 0 | U120: 90 | W120: =AVERAGE(U120,U121) -> 92.5 | X120: PRÉ-SELECIONADO
A121: PESSOA FÍSICA | B121: =HYPERLINK("https://mapas.cultura.gov.br/inscricao/1509551666","on-1509551666") -> on-1509551666 | C121: Marataízes | D121: ES | E121: SUDESTE | F121: Avaliador 2 | G121: 20 | H121: 15 | I121: 15 | J121: 8 | K121: 8 | L121: 10 | M121: 10 | N121: 3 | O121: 0 | P121: 0 | Q121: 0 | R121: 3 | S121: 3 | T121: 0 | U121: 95 | W121: =W120 -> 92.5
A122: PESSOA FÍSICA | B122: =HYPERLINK("https://mapas.cultura.gov.br/inscricao/639471406","on-639471406") -> on-639471406 | C122: São José dos Campos | D122: SP | E122: SUDESTE | F122: Avaliador 1 | G122: 15 | H122: 12 | I122: 15 | J122: 8 | K122: 8 | L122: 10 | M122: 10 | N122: 8 | O122: 3 | P122: 0 | Q122: 3 | R122: 0 | S122: 0 | T122: 0 | U122: 92 | W122: =AVERAGE(U122,U123) -> 92 | X122: CLASSIFICADO
A123: PESSOA FÍSICA | B123: =HYPERLINK("https://mapas.cultura.gov.br/inscricao/639471406","on-639471406") -> on-639471406 | C123: São José dos Campos | D123: SP | E123: SUDESTE | F123: Avaliador 2 | G123: 15 | H123: 15 | I123: 12 | J123: 8 | K123: 8 | L123: 10 | M123: 10 | N123: 8 | O123: 3 | P123: 0 | Q123: 3 | R123: 0 | S123: 0 | T123: 0 | U123: 92 | W123: =W122 -> 92
A124: PESSOA FÍSICA | B124: =HYPERLINK("https://mapas.cultura.gov.br/inscricao/355644482","on-355644482") -> on-355644482 | C124: Rio de Janeiro | D124: RJ | E124: SUDESTE | F124: Avaliador 1 | G124: 15 | H124: 12 | I124: 12 | J124: 10 | K124: 3 | L124: 8 | M124: 5 | N124: 10 | O124: 0 | P124: 3 | Q124: 3 | R124: 3 | S124: 0 | T124: 0 | U124: 84 | W124: =AVERAGE(U124,U125) -> 92 | X124: CLASSIFICADO
A125: PESSOA FÍSICA | B125: =HYPERLINK("https://mapas.cultura.gov.br/inscricao/355644482","on-355644482") -> on-355644482 | C125: Rio de Janeiro | D125: RJ | E125: SUDESTE | F125: Avaliador 2 | G125: 20 | H125: 15 | I125: 15 | J125: 10 | K125: 8 | L125: 8 | M125: 5 | N125: 10 | O125: 0 | P125: 3 | Q125: 3 | R125: 3 | S125: 0 | T125: 0 | U125: 100 | W125: =W124 -> 92
A126: PESSOA FÍSICA | B126: =HYPERLINK("https://mapas.cultura.gov.br/inscricao/1103611420","on-1103611420") -> on-1103611420 | C126: Volta Redonda | D126: RJ | E126: SUDESTE | F126: Avaliador 1 | G126: 20 | H126: 12 | I126: 12 | J126: 5 | K126: 8 | L126: 8 | M126: 8 | N126: 5 | O126: 0 | P126: 0 | Q126: 3 | R126: 3 | S126: 0 | T126: 0 | U126: 84 | W126: =AVERAGE(U126,U127) -> 91.5 | X126: CLASSIFICADO
A127: PESSOA FÍSICA | B127: =HYPERLINK("https://mapas.cultura.gov.br/inscricao/1103611420","on-1103611420") -> on-1103611420 | C127: Volta Redonda | D127: RJ | E127: SUDESTE | F127: Avaliador 2 | G127: 20 | H127: 12 | I127: 15 | J127: 8 | K127: 10 | L127: 8 | M127: 10 | N127: 10 | O127: 0 | P127: 0 | Q127: 3 | R127: 3 | S127: 0 | T127: 0 | U127: 99 | W127: =W126 -> 91.5
A128: PESSOA FÍSICA | B128: =HYPERLINK("https://mapas.cultura.gov.br/inscricao/110538495","on-110538495") -> on-110538495 | C128: Rio de Janeiro | D128: RJ | E128: SUDESTE | F128: Avaliador 1 | G128: 15 | H128: 12 | I128: 12 | J128: 8 | K128: 8 | L128: 8 | M128: 8 | N128: 10 | O128: 0 | P128: 0 | Q128: 3 | R128: 0 | S128: 0 | T128: 0 | U128: 84 | W128: =AVERAGE(U128,U129) -> 91.5 | X128: CLASSIFICADO
A129: PESSOA FÍSICA | B129: =HYPERLINK("https://mapas.cultura.gov.br/inscricao/110538495","on-110538495") -> on-110538495 | C129: Rio de Janeiro | D129: RJ | E129: SUDESTE | F129: Avaliador 2 | G129: 20 | H129: 15 | I129: 15 | J129: 10 | K129: 8 | L129: 10 | M129: 8 | N129: 10 | O129: 0 | P129: 0 | Q129: 3 | R129: 0 | S129: 0 | T129: 0 | U129: 99 | W129: =W128 -> 91.5
A130: PESSOA FÍSICA | B130: =HYPERLINK("https://mapas.cultura.gov.br/inscricao/1595127328","on-1595127328") -> on-1595127328 | C130: São Gonçalo | D130: RJ | E130: SUDESTE | F130: Avaliador 1 | G130: 20 | H130: 15 | I130: 12 | J130: 10 | K130: 10 | L130: 10 | M130: 10 | N130: 8 | O130: 0 | P130: 0 | Q130: 3 | R130: 0 | S130: 0 | T130: 0 | U130: =SUM(G130:T130) -> 98 | W130: =AVERAGE(U130,U131) -> 91.5 | X130: CLASSIFICADO
A131: PESSOA FÍSICA | B131: =HYPERLINK("https://mapas.cultura.gov.br/inscricao/1595127328","on-1595127328") -> on-1595127328 | C131: São Gonçalo | D131: RJ | E131: SUDESTE | F131: Avaliador 2 | G131: 15 | H131: 15 | I131: 12 | J131: 8 | K131: 8 | L131: 8 | M131: 8 | N131: 8 | O131: 0 | P131: 0 | Q131: 3 | R131: 0 | S131: 0 | T131: 0 | U131: 85 | W131: =W130 -> 91.5
A132: PESSOA FÍSICA | B132: =HYPERLINK("https://mapas.cultura.gov.br/inscricao/1110954613","on-1110954613") -> on-1110954613 | C132: São Gonçalo | D132: RJ | E132: SUDESTE | F132: Avaliador 1 | G132: 20 | H132: 15 | I132: 15 | J132: 10 | K132: 10 | L132: 10 | M132: 10 | N132: 0 | O132: 0 | P132: 0 | Q132: 3 | R132: 0 | S132: 0 | T132: 0 | U132: 93 | W132: =AVERAGE(U132,U133) -> 91.5 | X132: CLASSIFICADO
A133: PESSOA FÍSICA | B133: =HYPERLINK("https://mapas.cultura.gov.br/inscricao/1110954613","on-1110954613") -> on-1110954613 | C133: São Gonçalo | D133: RJ | E133: SUDESTE | F133: Avaliador 2 | G133: 20 | H133: 15 | I133: 15 | J133: 8 | K133: 5 | L133: 8 | M133: 8 | N133: 8 | O133: 0 | P133: 0 | Q133: 3 | R133: 0 | S133: 0 | T133: 0 | U133: 90 | W133: =W132 -> 91.5
A134: PESSOA FÍSICA | B134: =HYPERLINK("https://mapas.cultura.gov.br/inscricao/1563926955","on-1563926955") -> on-1563926955 | C134: São Paulo | D134: SP | E134: SUDESTE | F134: Avaliador 1 | G134: 20 | H134: 15 | I134: 15 | J134: 8 | K134: 10 | L134: 10 | M134: 8 | N134: 8 | O134: 0 | P134: 0 | Q134: 3 | R134: 0 | S134: 0 | T134: 0 | U134: 97 | W134: =AVERAGE(U134,U135) -> 91.5 | X134: CLASSIFICADO
A135: PESSOA FÍSICA | B135: =HYPERLINK("https://mapas.cultura.gov.br/inscricao/1563926955","on-1563926955") -> on-1563926955 | C135: São Paulo | D135: SP | E135: SUDESTE | F135: Avaliador 2 | G135: 15 | H135: 15 | I135: 15 | J135: 8 | K135: 8 | L135: 10 | M135: 10 | N135: 5 | O135: 0 | P135: 0 | Q135: 0 | R135: 0 | S135: 0 | T135: 0 | U135: 86 | W135: =W134 -> 91.5
A136: PESSOA FÍSICA | B136: =HYPERLINK("https://mapas.cultura.gov.br/inscricao/1439677670","on-1439677670") -> on-1439677670 | C136: São Paulo | D136: SP | E136: SUDESTE | F136: Avaliador 1 | G136: 15 | H136: 12 | I136: 12 | J136: 10 | K136: 8 | L136: 8 | M136: 10 | N136: 5 | O136: 0 | P136: 3 | Q136: 3 | R136: 0 | S136: 0 | T136: 0 | U136: 86 | W136: =AVERAGE(U136,U137) -> 91.5 | X136: CLASSIFICADO
A137: PESSOA FÍSICA | B137: =HYPERLINK("https://mapas.cultura.gov.br/inscricao/1439677670","on-1439677670") -> on-1439677670 | C137: São Paulo | D137: SP | E137: SUDESTE | F137: Avaliador 2 | G137: 15 | H137: 15 | I137: 15 | J137: 10 | K137: 8 | L137: 10 | M137: 10 | N137: 8 | O137: 0 | P137: 3 | Q137: 3 | R137: 0 | S137: 0 | T137: 0 | U137: 97 | W137: =W136 -> 91.5
A138: PESSOA FÍSICA | B138: =HYPERLINK("https://mapas.cultura.gov.br/inscricao/1778425241","on-1778425241") -> on-1778425241 | C138: Rio de Janeiro | D138: RJ | E138: SUDESTE | F138: Avaliador 1 | G138: 15 | H138: 15 | I138: 15 | J138: 10 | K138: 10 | L138: 8 | M138: 10 | N138: 8 | O138: 0 | P138: 0 | Q138: 3 | R138: 0 | S138: 0 | T138: 0 | U138: 94 | W138: =AVERAGE(U138,U139) -> 91 | X138: CLASSIFICADO
A139: PESSOA FÍSICA | B139: =HYPERLINK("https://mapas.cultura.gov.br/inscricao/1778425241","on-1778425241") -> on-1778425241 | C139: Rio de Janeiro | D139: RJ | E139: SUDESTE | F139: Avaliador 2 | G139: 15 | H139: 12 | I139: 12 | J139: 10 | K139: 10 | L139: 8 | M139: 8 | N139: 10 | O139: 0 | P139: 0 | Q139: 3 | R139: 0 | S139: 0 | T139: 0 | U139: 88 | W139: =W138 -> 91
A140: PESSOA FÍSICA | B140: =HYPERLINK("https://mapas.cultura.gov.br/inscricao/312337509","on-312337509") -> on-312337509 | C140: São Gonçalo | D140: RJ | E140: SUDESTE | F140: Avaliador 1 | G140: 15 | H140: 15 | I140: 15 | J140: 8 | K140: 8 | L140: 10 | M140: 10 | N140: 10 | O140: 0 | P140: 0 | Q140: 0 | R140: 0 | S140: 0 | T140: 0 | U140: 91 | W140: =AVERAGE(U140,U141) -> 91 | X140: CLASSIFICADO
A141: PESSOA FÍSICA | B141: =HYPERLINK("https://mapas.cultura.gov.br/inscricao/312337509","on-312337509") -> on-312337509 | C141: São Gonçalo | D141: RJ | E141: SUDESTE | F141: Avaliador 2 | G141: 20 | H141: 12 | I141: 15 | J141: 8 | K141: 8 | L141: 10 | M141: 8 | N141: 10 | O141: 0 | P141: 0 | Q141: 0 | R141: 0 | S141: 0 | T141: 0 | U141: 91 | W141: =W140 -> 91
A142: PESSOA FÍSICA | B142: =HYPERLINK("https://mapas.cultura.gov.br/inscricao/1605609470","on-1605609470") -> on-1605609470 | C142: Rio de janeiro | D142: RJ | E142: SUDESTE | F142: Avaliador 1 | G142: 20 | H142: 15 | I142: 15 | J142: 8 | K142: 5 | L142: 10 | M142: 8 | N142: 8 | O142: 0 | P142: 0 | Q142: 3 | R142: 0 | S142: 0 | T142: 0 | U142: 92 | W142: =AVERAGE(U142,U143) -> 91 | X142: CLASSIFICADO
A143: PESSOA FÍSICA | B143: =HYPERLINK("https://mapas.cultura.gov.br/inscricao/1605609470","on-1605609470") -> on-1605609470 | C143: Rio de janeiro | D143: RJ | E143: SUDESTE | F143: Avaliador 2 | G143: 20 | H143: 15 | I143: 12 | J143: 8 | K143: 8 | L143: 8 | M143: 8 | N143: 8 | O143: 0 | P143: 0 | Q143: 3 | R143: 0 | S143: 0 | T143: 0 | U143: 90 | W143: =W142 -> 91
A144: PESSOA FÍSICA | B144: =HYPERLINK("https://mapas.cultura.gov.br/inscricao/375432982","on-375432982") -> on-375432982 | C144: Rio de Janeiro | D144: RJ | E144: SUDESTE | F144: Avaliador 1 | G144: 20 | H144: 12 | I144: 15 | J144: 10 | K144: 8 | L144: 10 | M144: 10 | N144: 5 | O144: 0 | P144: 0 | Q144: 3 | R144: 0 | S144: 0 | T144: 0 | U144: 93 | W144: =AVERAGE(U144,U145) -> 91 | X144: CLASSIFICADO
A145: PESSOA FÍSICA | B145: =HYPERLINK("https://mapas.cultura.gov.br/inscricao/375432982","on-375432982") -> on-375432982 | C145: Rio de Janeiro | D145: RJ | E145: SUDESTE | F145: Avaliador 2 | G145: 20 | H145: 15 | I145: 12 | J145: 8 | K145: 10 | L145: 8 | M145: 8 | N145: 5 | O145: 0 | P145: 0 | Q145: 3 | R145: 0 | S145: 0 | T145: 0 | U145: 89 | W145: =W144 -> 91
A146: PESSOA FÍSICA | B146: =HYPERLINK("https://mapas.cultura.gov.br/inscricao/1186847387","on-1186847387") -> on-1186847387 | C146: Rio de Janeiro | D146: RJ | E146: SUDESTE | F146: Avaliador 1 | G146: 20 | H146: 15 | I146: 12 | J146: 5 | K146: 5 | L146: 10 | M146: 8 | N146: 8 | O146: 0 | P146: 0 | Q146: 3 | R146: 0 | S146: 0 | T146: 0 | U146: 86 | W146: =AVERAGE(U146,U147) -> 91 | X146: CLASSIFICADO
A147: PESSOA FÍSICA | B147: =HYPERLINK("https://mapas.cultura.gov.br/inscricao/1186847387","on-1186847387") -> on-1186847387 | C147: Rio de Janeiro | D147: RJ | E147: SUDESTE | F147: Avaliador 2 | G147: 20 | H147: 15 | I147: 15 | J147: 8 | K147: 10 | L147: 10 | M147: 10 | N147: 5 | O147: 0 | P147: 0 | Q147: 3 | R147: 0 | S147: 0 | T147: 0 | U147: 96 | W147: =W146 -> 91
A148: PESSOA FÍSICA | B148: =HYPERLINK("https://mapas.cultura.gov.br/inscricao/1754588655","on-1754588655") -> on-1754588655 | C148: Rio de janeiro | D148: RJ | E148: SUDESTE | F148: Avaliador 1 | G148: 15 | H148: 12 | I148: 12 | J148: 8 | K148: 8 | L148: 8 | M148: 8 | N148: 5 | O148: 0 | P148: 0 | Q148: 3 | R148: 0 | S148: 0 | T148: 0 | U148: 79 | W148: =AVERAGE(U148,U149) -> 91 | X148: CLASSIFICADO
A149: PESSOA FÍSICA | B149: =HYPERLINK("https://mapas.cultura.gov.br/inscricao/1754588655","on-1754588655") -> on-1754588655 | C149: Rio de janeiro | D149: RJ | E149: SUDESTE | F149: Avaliador 2 | G149: 20 | H149: 15 | I149: 15 | J149: 10 | K149: 10 | L149: 10 | M149: 10 | N149: 10 | O149: 0 | P149: 0 | Q149: 3 | R149: 0 | S149: 0 | T149: 0 | U149: 103 | W149: =W148 -> 91
A150: PESSOA FÍSICA | B150: =HYPERLINK("https://mapas.cultura.gov.br/inscricao/812504633","on-812504633") -> on-812504633 | C150: Nova Iguaçu | D150: RJ | E150: SUDESTE | F150: Avaliador 1 | G150: 20 | H150: 12 | I150: 12 | J150: 8 | K150: 8 | L150: 10 | M150: 10 | N150: 8 | O150: 0 | P150: 0 | Q150: 3 | R150: 0 | S150: 0 | T150: 0 | U150: 91 | W150: =AVERAGE(U150,U151) -> 91 | X150: CLASSIFICADO
A151: PESSOA FÍSICA | B151: =HYPERLINK("https://mapas.cultura.gov.br/inscricao/812504633","on-812504633") -> on-812504633 | C151: Nova Iguaçu | D151: RJ | E151: SUDESTE | F151: Avaliador 2 | G151: 20 | H151: 12 | I151: 12 | J151: 8 | K151: 8 | L151: 10 | M151: 10 | N151: 8 | O151: 0 | P151: 0 | Q151: 3 | R151: 0 | S151: 0 | T151: 0 | U151: 91 | W151: =W150 -> 91
A152: PESSOA FÍSICA | B152: =HYPERLINK("https://mapas.cultura.gov.br/inscricao/1694686951","on-1694686951") -> on-1694686951 | C152: Duque de Caxias | D152: RJ | E152: SUDESTE | F152: Avaliador 1 | G152: 15 | H152: 12 | I152: 12 | J152: 8 | K152: 8 | L152: 10 | M152: 8 | N152: 5 | O152: 0 | P152: 3 | Q152: 3 | R152: 0 | S152: 0 | T152: 0 | U152: 84 | W152: =AVERAGE(U152,U153) -> 91 | X152: CLASSIFICADO
A153: PESSOA FÍSICA | B153: =HYPERLINK("https://mapas.cultura.gov.br/inscricao/1694686951","on-1694686951") -> on-1694686951 | C153: Duque de Caxias | D153: RJ | E153: SUDESTE | F153: Avaliador 2 | G153: 20 | H153: 15 | I153: 15 | J153: 10 | K153: 8 | L153: 8 | M153: 8 | N153: 8 | O153: 0 | P153: 3 | Q153: 3 | R153: 0 | S153: 0 | T153: 0 | U153: 98 | W153: =W152 -> 91
A154: PESSOA FÍSICA | B154: =HYPERLINK("https://mapas.cultura.gov.br/inscricao/866098917","on-866098917") -> on-866098917 | C154: Alfenas | D154: MG | E154: SUDESTE | F154: Avaliador 1 | G154: 15 | H154: 12 | I154: 12 | J154: 8 | K154: 8 | L154: 5 | M154: 8 | N154: 8 | O154: 0 | P154: 0 | Q154: 3 | R154: 0 | S154: 0 | T154: 0 | U154: 79 | W154: =AVERAGE(U154,U155) -> 91 | X154: CLASSIFICADO
A155: PESSOA FÍSICA | B155: =HYPERLINK("https://mapas.cultura.gov.br/inscricao/866098917","on-866098917") -> on-866098917 | C155: Alfenas | D155: MG | E155: SUDESTE | F155: Avaliador 2 | G155: 20 | H155: 15 | I155: 15 | J155: 10 | K155: 10 | L155: 10 | M155: 10 | N155: 10 | O155: 0 | P155: 0 | Q155: 3 | R155: 0 | S155: 0 | T155: 0 | U155: 103 | W155: =W154 -> 91
A156: PESSOA FÍSICA | B156: =HYPERLINK("https://mapas.cultura.gov.br/inscricao/1018882539","on-1018882539") -> on-1018882539 | C156: São Paulo | D156: SP | E156: SUDESTE | F156: Avaliador 1 | G156: 15 | H156: 15 | I156: 15 | J156: 8 | K156: 8 | L156: 10 | M156: 10 | N156: 10 | O156: 0 | P156: 0 | Q156: 0 | R156: 0 | S156: 0 | T156: 0 | U156: 91 | W156: =AVERAGE(U156,U157) -> 91 | X156: CLASSIFICADO
A157: PESSOA FÍSICA | B157: =HYPERLINK("https://mapas.cultura.gov.br/inscricao/1018882539","on-1018882539") -> on-1018882539 | C157: São Paulo | D157: SP | E157: SUDESTE | F157: Avaliador 2 | G157: 15 | H157: 15 | I157: 15 | J157: 8 | K157: 8 | L157: 10 | M157: 10 | N157: 10 | O157: 0 | P157: 0 | Q157: 0 | R157: 0 | S157: 0 | T157: 0 | U157: 91 | W157: =W156 -> 91
A158: PESSOA FÍSICA | B158: =HYPERLINK("https://mapas.cultura.gov.br/inscricao/847831014","on-847831014") -> on-847831014 | C158: Rio de Janeiro | D158: RJ | E158: SUDESTE | F158: Avaliador 1 | G158: 15 | H158: 12 | I158: 12 | J158: 10 | K158: 8 | L158: 10 | M158: 8 | N158: 8 | O158: 0 | P158: 0 | Q158: 3 | R158: 3 | S158: 0 | T158: 0 | U158: 89 | W158: =AVERAGE(U158,U159) -> 90.5 | X158: CLASSIFICADO
A159: PESSOA FÍSICA | B159: =HYPERLINK("https://mapas.cultura.gov.br/inscricao/847831014","on-847831014") -> on-847831014 | C159: Rio de Janeiro | D159: RJ | E159: SUDESTE | F159: Avaliador 2 | G159: 15 | H159: 12 | I159: 15 | J159: 8 | K159: 10 | L159: 8 | M159: 10 | N159: 8 | O159: 0 | P159: 0 | Q159: 3 | R159: 3 | S159: 0 | T159: 0 | U159: 92 | W159: =W158 -> 90.5
A160: PESSOA FÍSICA | B160: =HYPERLINK("https://mapas.cultura.gov.br/inscricao/870234795","on-870234795") -> on-870234795 | C160: Rio de Janeiro | D160: RJ | E160: SUDESTE | F160: Avaliador 1 | G160: 15 | H160: 15 | I160: 12 | J160: 8 | K160: 10 | L160: 8 | M160: 8 | N160: 3 | O160: 0 | P160: 3 | Q160: 3 | R160: 0 | S160: 3 | T160: 0 | U160: 88 | W160: =AVERAGE(U160,U161) -> 90.5 | X160: CLASSIFICADO
A161: PESSOA FÍSICA | B161: =HYPERLINK("https://mapas.cultura.gov.br/inscricao/870234795","on-870234795") -> on-870234795 | C161: Rio de Janeiro | D161: RJ | E161: SUDESTE | F161: Avaliador 2 | G161: 15 | H161: 15 | I161: 15 | J161: 8 | K161: 10 | L161: 8 | M161: 8 | N161: 5 | O161: 0 | P161: 3 | Q161: 3 | R161: 0 | S161: 3 | T161: 0 | U161: 93 | W161: =W160 -> 90.5
A162: PESSOA FÍSICA | B162: =HYPERLINK("https://mapas.cultura.gov.br/inscricao/1545637911","on-1545637911") -> on-1545637911 | C162: Rio de Janeiro | D162: RJ | E162: SUDESTE | F162: Avaliador 1 | G162: 20 | H162: 15 | I162: 15 | J162: 10 | K162: 5 | L162: 10 | M162: 8 | N162: 3 | O162: 0 | P162: 3 | Q162: 3 | R162: 0 | S162: 0 | T162: 0 | U162: 92 | W162: =AVERAGE(U162,U163) -> 90.5 | X162: CLASSIFICADO
A163: PESSOA FÍSICA | B163: =HYPERLINK("https://mapas.cultura.gov.br/inscricao/1545637911","on-1545637911") -> on-1545637911 | C163: Rio de Janeiro | D163: RJ | E163: SUDESTE | F163: Avaliador 2 | G163: 20 | H163: 15 | I163: 15 | J163: 8 | K163: 5 | L163: 10 | M163: 10 | N163: 0 | O163: 0 | P163: 3 | Q163: 3 | R163: 0 | S163: 0 | T163: 0 | U163: 89 | W163: =W162 -> 90.5
A164: PESSOA FÍSICA | B164: =HYPERLINK("https://mapas.cultura.gov.br/inscricao/2103415679","on-2103415679") -> on-2103415679 | C164: Sorocaba | D164: SP | E164: SUDESTE | F164: Avaliador 1 | G164: 20 | H164: 15 | I164: 15 | J164: 8 | K164: 10 | L164: 10 | M164: 8 | N164: 10 | O164: 0 | P164: 0 | Q164: 3 | R164: 0 | S164: 0 | T164: 0 | U164: 99 | W164: =AVERAGE(U164,U165) -> 90.5 | X164: CLASSIFICADO
A165: PESSOA FÍSICA | B165: =HYPERLINK("https://mapas.cultura.gov.br/inscricao/2103415679","on-2103415679") -> on-2103415679 | C165: Sorocaba | D165: SP | E165: SUDESTE | F165: Avaliador 2 | G165: 20 | H165: 0 | I165: 15 | J165: 8 | K165: 10 | L165: 8 | M165: 8 | N165: 10 | O165: 0 | P165: 0 | Q165: 3 | R165: 0 | S165: 0 | T165: 0 | U165: 82 | W165: =W164 -> 90.5
A166: PESSOA FÍSICA | B166: =HYPERLINK("https://mapas.cultura.gov.br/inscricao/491757877","on-491757877") -> on-491757877 | C166: São José dos Campos | D166: SP | E166: SUDESTE | F166: Avaliador 1 | G166: 15 | H166: 12 | I166: 12 | J166: 10 | K166: 8 | L166: 8 | M166: 10 | N166: 8 | O166: 0 | P166: 3 | Q166: 3 | R166: 0 | S166: 0 | T166: 0 | U166: 89 | W166: =AVERAGE(U166,U167) -> 90.5 | X166: CLASSIFICADO
A167: PESSOA FÍSICA | B167: =HYPERLINK("https://mapas.cultura.gov.br/inscricao/491757877","on-491757877") -> on-491757877 | C167: São José dos Campos | D167: SP | E167: SUDESTE | F167: Avaliador 2 | G167: 15 | H167: 15 | I167: 12 | J167: 10 | K167: 8 | L167: 8 | M167: 10 | N167: 8 | O167: 0 | P167: 3 | Q167: 3 | R167: 0 | S167: 0 | T167: 0 | U167: 92 | W167: =W166 -> 90.5
A168: PESSOA FÍSICA | B168: =HYPERLINK("https://mapas.cultura.gov.br/inscricao/489668276","on-489668276") -> on-489668276 | C168: Macaé | D168: RJ | E168: SUDESTE | F168: Avaliador 1 | G168: 15 | H168: 15 | I168: 12 | J168: 8 | K168: 10 | L168: 10 | M168: 10 | N168: 5 | O168: 0 | P168: 0 | Q168: 3 | R168: 0 | S168: 3 | T168: 0 | U168: 91 | W168: =AVERAGE(U168,U169) -> 90 | X168: CLASSIFICADO
A169: PESSOA FÍSICA | B169: =HYPERLINK("https://mapas.cultura.gov.br/inscricao/489668276","on-489668276") -> on-489668276 | C169: Macaé | D169: RJ | E169: SUDESTE | F169: Avaliador 2 | G169: 20 | H169: 15 | I169: 12 | J169: 5 | K169: 10 | L169: 8 | M169: 8 | N169: 5 | O169: 0 | P169: 0 | Q169: 3 | R169: 0 | S169: 3 | T169: 0 | U169: 89 | W169: =W168 -> 90
A170: PESSOA FÍSICA | B170: =HYPERLINK("https://mapas.cultura.gov.br/inscricao/441904787","on-441904787") -> on-441904787 | C170: Rio de janeiro | D170: RJ | E170: SUDESTE | F170: Avaliador 1 | G170: 15 | H170: 12 | I170: 12 | J170: 10 | K170: 10 | L170: 10 | M170: 10 | N170: 3 | O170: 0 | P170: 0 | Q170: 3 | R170: 0 | S170: 0 | T170: 0 | U170: 85 | W170: =AVERAGE(U170,U171) -> 90 | X170: CLASSIFICADO
A171: PESSOA FÍSICA | B171: =HYPERLINK("https://mapas.cultura.gov.br/inscricao/441904787","on-441904787") -> on-441904787 | C171: Rio de janeiro | D171: RJ | E171: SUDESTE | F171: Avaliador 2 | G171: 20 | H171: 12 | I171: 12 | J171: 10 | K171: 10 | L171: 10 | M171: 10 | N171: 8 | O171: 0 | P171: 0 | Q171: 3 | R171: 0 | S171: 0 | T171: 0 | U171: 95 | W171: =W170 -> 90
A172: PESSOA FÍSICA | B172: =HYPERLINK("https://mapas.cultura.gov.br/inscricao/1502204509","on-1502204509") -> on-1502204509 | C172: Três Pontas | D172: MG | E172: SUDESTE | F172: Avaliador 1 | G172: 20 | H172: 4 | I172: 15 | J172: 10 | K172: 10 | L172: 10 | M172: 10 | N172: 0 | O172: 0 | P172: 0 | Q172: 3 | R172: 0 | S172: 0 | T172: 0 | U172: 82 | W172: =AVERAGE(U172,U173) -> 90 | X172: CLASSIFICADO
A173: PESSOA FÍSICA | B173: =HYPERLINK("https://mapas.cultura.gov.br/inscricao/1502204509","on-1502204509") -> on-1502204509 | C173: Três Pontas | D173: MG | E173: SUDESTE | F173: Avaliador 2 | G173: 20 | H173: 15 | I173: 15 | J173: 10 | K173: 10 | L173: 10 | M173: 10 | N173: 5 | O173: 0 | P173: 0 | Q173: 3 | R173: 0 | S173: 0 | T173: 0 | U173: 98 | W173: =W172 -> 90
A174: PESSOA FÍSICA | B174: =HYPERLINK("https://mapas.cultura.gov.br/inscricao/953273271","on-953273271") -> on-953273271 | C174: Rio de Janeiro | D174: RJ | E174: SUDESTE | F174: Avaliador 1 | G174: 15 | H174: 12 | I174: 12 | J174: 8 | K174: 8 | L174: 8 | M174: 8 | N174: 5 | O174: 0 | P174: 0 | Q174: 3 | R174: 0 | S174: 0 | T174: 0 | U174: 79 | W174: =AVERAGE(U174,U175) -> 90 | X174: CLASSIFICADO
A175: PESSOA FÍSICA | B175: =HYPERLINK("https://mapas.cultura.gov.br/inscricao/953273271","on-953273271") -> on-953273271 | C175: Rio de Janeiro | D175: RJ | E175: SUDESTE | F175: Avaliador 2 | G175: 20 | H175: 15 | I175: 15 | J175: 8 | K175: 10 | L175: 10 | M175: 10 | N175: 10 | O175: 0 | P175: 0 | Q175: 3 | R175: 0 | S175: 0 | T175: 0 | U175: 101 | W175: =W174 -> 90
A176: PESSOA FÍSICA | B176: =HYPERLINK("https://mapas.cultura.gov.br/inscricao/818870966","on-818870966") -> on-818870966 | C176: Duque de Caxias | D176: RJ | E176: SUDESTE | F176: Avaliador 1 | G176: 20 | H176: 15 | I176: 12 | J176: 8 | K176: 8 | L176: 8 | M176: 5 | N176: 3 | O176: 0 | P176: 3 | Q176: 3 | R176: 0 | S176: 0 | T176: 0 | U176: 85 | W176: =AVERAGE(U176,U177) -> 90 | X176: CLASSIFICADO
A177: PESSOA FÍSICA | B177: =HYPERLINK("https://mapas.cultura.gov.br/inscricao/818870966","on-818870966") -> on-818870966 | C177: Duque de Caxias | D177: RJ | E177: SUDESTE | F177: Avaliador 2 | G177: 20 | H177: 15 | I177: 15 | J177: 8 | K177: 5 | L177: 10 | M177: 8 | N177: 8 | O177: 0 | P177: 3 | Q177: 3 | R177: 0 | S177: 0 | T177: 0 | U177: 95 | W177: =W176 -> 90
A178: PESSOA FÍSICA | B178: =HYPERLINK("https://mapas.cultura.gov.br/inscricao/777188041","on-777188041") -> on-777188041 | C178: São Paulo | D178: SP | E178: SUDESTE | F178: Avaliador 1 | G178: 20 | H178: 15 | I178: 15 | J178: 8 | K178: 10 | L178: 10 | M178: 10 | N178: 8 | O178: 0 | P178: 0 | Q178: 3 | R178: 0 | S178: 0 | T178: 0 | U178: 99 | W178: =AVERAGE(U178,U179) -> 90 | X178: CLASSIFICADO
A179: PESSOA FÍSICA | B179: =HYPERLINK("https://mapas.cultura.gov.br/inscricao/777188041","on-777188041") -> on-777188041 | C179: São Paulo | D179: SP | E179: SUDESTE | F179: Avaliador 2 | G179: 15 | H179: 0 | I179: 15 | J179: 10 | K179: 10 | L179: 10 | M179: 10 | N179: 8 | O179: 0 | P179: 0 | Q179: 3 | R179: 0 | S179: 0 | T179: 0 | U179: 81 | W179: =W178 -> 90
A180: PESSOA FÍSICA | B180: =HYPERLINK("https://mapas.cultura.gov.br/inscricao/1052630204","on-1052630204") -> on-1052630204 | C180: São Paulo | D180: SP | E180: SUDESTE | F180: Avaliador 1 | G180: 15 | H180: 12 | I180: 12 | J180: 10 | K180: 10 | L180: 10 | M180: 8 | N180: 10 | O180: 0 | P180: 3 | Q180: 0 | R180: 0 | S180: 0 | T180: 0 | U180: 90 | W180: =AVERAGE(U180,U181) -> 90 | X180: CLASSIFICADO
A181: PESSOA FÍSICA | B181: =HYPERLINK("https://mapas.cultura.gov.br/inscricao/1052630204","on-1052630204") -> on-1052630204 | C181: São Paulo | D181: SP | E181: SUDESTE | F181: Avaliador 2 | G181: 15 | H181: 12 | I181: 12 | J181: 10 | K181: 10 | L181: 10 | M181: 8 | N181: 10 | O181: 0 | P181: 3 | Q181: 0 | R181: 0 | S181: 0 | T181: 0 | U181: 90 | W181: =W180 -> 90
A182: PESSOA FÍSICA | B182: =HYPERLINK("https://mapas.cultura.gov.br/inscricao/1876797126","on-1876797126") -> on-1876797126 | C182: Campinas | D182: SP | E182: SUDESTE | F182: Avaliador 1 | G182: 15 | H182: 12 | I182: 12 | J182: 10 | K182: 8 | L182: 8 | M182: 8 | N182: 8 | O182: 3 | P182: 3 | Q182: 0 | R182: 0 | S182: 3 | T182: 0 | U182: 90 | W182: =AVERAGE(U182,U183) -> 90 | X182: CLASSIFICADO
A183: PESSOA FÍSICA | B183: =HYPERLINK("https://mapas.cultura.gov.br/inscricao/1876797126","on-1876797126") -> on-1876797126 | C183: Campinas | D183: SP | E183: SUDESTE | F183: Avaliador 2 | G183: 15 | H183: 12 | I183: 12 | J183: 10 | K183: 8 | L183: 8 | M183: 8 | N183: 8 | O183: 3 | P183: 3 | Q183: 0 | R183: 0 | S183: 3 | T183: 0 | U183: 90 | W183: =W182 -> 90
A184: PESSOA FÍSICA | B184: =HYPERLINK("https://mapas.cultura.gov.br/inscricao/1632804632","on-1632804632") -> on-1632804632 | C184: Duque de Caxias | D184: RJ | E184: SUDESTE | F184: Avaliador 1 | G184: 15 | H184: 12 | I184: 12 | J184: 8 | K184: 10 | L184: 10 | M184: 8 | N184: 5 | O184: 0 | P184: 0 | Q184: 3 | R184: 3 | S184: 0 | T184: 0 | U184: 86 | W184: =AVERAGE(U184,U185) -> 89.5 | X184: CLASSIFICADO
A185: PESSOA FÍSICA | B185: =HYPERLINK("https://mapas.cultura.gov.br/inscricao/1632804632","on-1632804632") -> on-1632804632 | C185: Duque de Caxias | D185: RJ | E185: SUDESTE | F185: Avaliador 2 | G185: 20 | H185: 15 | I185: 12 | J185: 8 | K185: 8 | L185: 8 | M185: 8 | N185: 8 | O185: 0 | P185: 0 | Q185: 3 | R185: 3 | S185: 0 | T185: 0 | U185: 93 | W185: =W184 -> 89.5
A186: PESSOA FÍSICA | B186: =HYPERLINK("https://mapas.cultura.gov.br/inscricao/1434305631","on-1434305631") -> on-1434305631 | C186: Rio de Janeiro | D186: RJ | E186: SUDESTE | F186: Avaliador 1 | G186: 15 | H186: 15 | I186: 12 | J186: 8 | K186: 8 | L186: 8 | M186: 8 | N186: 5 | O186: 0 | P186: 3 | Q186: 0 | R186: 0 | S186: 3 | T186: 0 | U186: 85 | W186: =AVERAGE(U186,U187) -> 89.5 | X186: CLASSIFICADO
A187: PESSOA FÍSICA | B187: =HYPERLINK("https://mapas.cultura.gov.br/inscricao/1434305631","on-1434305631") -> on-1434305631 | C187: Rio de Janeiro | D187: RJ | E187: SUDESTE | F187: Avaliador 2 | G187: 20 | H187: 15 | I187: 12 | J187: 10 | K187: 10 | L187: 8 | M187: 5 | N187: 8 | O187: 0 | P187: 3 | Q187: 0 | R187: 0 | S187: 3 | T187: 0 | U187: 94 | W187: =W186 -> 89.5
A188: PESSOA FÍSICA | B188: =HYPERLINK("https://mapas.cultura.gov.br/inscricao/1233429121","on-1233429121") -> on-1233429121 | C188: Promissão | D188: SP | E188: SUDESTE | F188: Avaliador 1 | G188: 20 | H188: 15 | I188: 12 | J188: 10 | K188: 8 | L188: 10 | M188: 5 | N188: 5 | O188: 0 | P188: 0 | Q188: 3 | R188: 0 | S188: 0 | T188: 0 | U188: 88 | W188: =AVERAGE(U188,U189) -> 89.5 | X188: CLASSIFICADO
A189: PESSOA FÍSICA | B189: =HYPERLINK("https://mapas.cultura.gov.br/inscricao/1233429121","on-1233429121") -> on-1233429121 | C189: Promissão | D189: SP | E189: SUDESTE | F189: Avaliador 2 | G189: 20 | H189: 15 | I189: 15 | J189: 10 | K189: 8 | L189: 10 | M189: 5 | N189: 5 | O189: 0 | P189: 0 | Q189: 3 | R189: 0 | S189: 0 | T189: 0 | U189: 91 | W189: =W188 -> 89.5
A190: PESSOA FÍSICA | B190: =HYPERLINK("https://mapas.cultura.gov.br/inscricao/1541913282","on-1541913282") -> on-1541913282 | C190: Cabo Frio | D190: RJ | E190: SUDESTE | F190: Avaliador 1 | G190: 15 | H190: 8 | I190: 15 | J190: 10 | K190: 8 | L190: 10 | M190: 10 | N190: 10 | O190: 0 | P190: 0 | Q190: 3 | R190: 0 | S190: 0 | T190: 0 | U190: 89 | W190: =AVERAGE(U190,U191) -> 89 | X190: CLASSIFICADO
A191: PESSOA FÍSICA | B191: =HYPERLINK("https://mapas.cultura.gov.br/inscricao/1541913282","on-1541913282") -> on-1541913282 | C191: Cabo Frio | D191: RJ | E191: SUDESTE | F191: Avaliador 2 | G191: 15 | H191: 8 | I191: 15 | J191: 10 | K191: 8 | L191: 10 | M191: 10 | N191: 10 | O191: 0 | P191: 0 | Q191: 3 | R191: 0 | S191: 0 | T191: 0 | U191: 89 | W191: =W190 -> 89
A192: PESSOA FÍSICA | B192: =HYPERLINK("https://mapas.cultura.gov.br/inscricao/555394734","on-555394734") -> on-555394734 | C192: Campinas | D192: SP | E192: SUDESTE | F192: Avaliador 1 | G192: 15 | H192: 15 | I192: 12 | J192: 10 | K192: 8 | L192: 8 | M192: 8 | N192: 8 | O192: 0 | P192: 3 | Q192: 3 | R192: 0 | S192: 0 | T192: 0 | U192: 90 | W192: =AVERAGE(U192,U193) -> 89 | X192: CLASSIFICADO
A193: PESSOA FÍSICA | B193: =HYPERLINK("https://mapas.cultura.gov.br/inscricao/555394734","on-555394734") -> on-555394734 | C193: Campinas | D193: SP | E193: SUDESTE | F193: Avaliador 2 | G193: 15 | H193: 15 | I193: 15 | J193: 5 | K193: 8 | L193: 8 | M193: 8 | N193: 8 | O193: 0 | P193: 3 | Q193: 3 | R193: 0 | S193: 0 | T193: 0 | U193: 88 | W193: =W192 -> 89
A194: PESSOA FÍSICA | B194: =HYPERLINK("https://mapas.cultura.gov.br/inscricao/44405685","on-44405685") -> on-44405685 | C194: Cotia | D194: SP | E194: SUDESTE | F194: Avaliador 1 | G194: 15 | H194: 12 | I194: 15 | J194: 8 | K194: 8 | L194: 10 | M194: 10 | N194: 8 | O194: 0 | P194: 0 | Q194: 3 | R194: 0 | S194: 0 | T194: 0 | U194: =SUM(G194:T194) -> 89 | W194: =AVERAGE(U194,U195) -> 89 | X194: CLASSIFICADO
A195: PESSOA FÍSICA | B195: =HYPERLINK("https://mapas.cultura.gov.br/inscricao/44405685","on-44405685") -> on-44405685 | C195: Cotia | D195: SP | E195: SUDESTE | F195: Avaliador 2 | G195: 20 | H195: 15 | I195: 15 | J195: 5 | K195: 8 | L195: 8 | M195: 10 | N195: 5 | O195: 0 | P195: 0 | Q195: 3 | R195: 0 | S195: 0 | T195: 0 | U195: 89 | W195: =W194 -> 89
A196: PESSOA FÍSICA | B196: =HYPERLINK("https://mapas.cultura.gov.br/inscricao/1441840179","on-1441840179") -> on-1441840179 | C196: Belo Horizonte | D196: MG | E196: SUDESTE | F196: Avaliador 1 | G196: 15 | H196: 15 | I196: 15 | J196: 8 | K196: 8 | L196: 10 | M196: 10 | N196: 10 | O196: 0 | P196: 0 | Q196: 3 | R196: 0 | S196: 0 | T196: 0 | U196: 94 | W196: =AVERAGE(U196,U197) -> 89 | X196: CLASSIFICADO
A197: PESSOA FÍSICA | B197: =HYPERLINK("https://mapas.cultura.gov.br/inscricao/1441840179","on-1441840179") -> on-1441840179 | C197: Belo Horizonte | D197: MG | E197: SUDESTE | F197: Avaliador 2 | G197: 15 | H197: 15 | I197: 12 | J197: 3 | K197: 10 | L197: 10 | M197: 8 | N197: 8 | O197: 0 | P197: 0 | Q197: 3 | R197: 0 | S197: 0 | T197: 0 | U197: 84 | W197: =W196 -> 89
A198: PESSOA FÍSICA | B198: =HYPERLINK("https://mapas.cultura.gov.br/inscricao/115579270","on-115579270") -> on-115579270 | C198: Belo Horizonte | D198: MG | E198: SUDESTE | F198: Avaliador 1 | G198: 15 | H198: 12 | I198: 12 | J198: 5 | K198: 5 | L198: 8 | M198: 10 | N198: 5 | O198: 0 | P198: 0 | Q198: 3 | R198: 0 | S198: 0 | T198: 0 | U198: 75 | W198: =AVERAGE(U198,U199) -> 89 | X198: CLASSIFICADO
A199: PESSOA FÍSICA | B199: =HYPERLINK("https://mapas.cultura.gov.br/inscricao/115579270","on-115579270") -> on-115579270 | C199: Belo Horizonte | D199: MG | E199: SUDESTE | F199: Avaliador 2 | G199: 20 | H199: 15 | I199: 15 | J199: 10 | K199: 10 | L199: 10 | M199: 10 | N199: 10 | O199: 0 | P199: 0 | Q199: 3 | R199: 0 | S199: 0 | T199: 0 | U199: 103 | W199: =W198 -> 89
A200: PESSOA FÍSICA | B200: =HYPERLINK("https://mapas.cultura.gov.br/inscricao/789296586","on-789296586") -> on-789296586 | C200: São Gonçalo | D200: RJ | E200: SUDESTE | F200: Avaliador 1 | G200: 20 | H200: 15 | I200: 15 | J200: 8 | K200: 8 | L200: 10 | M200: 10 | N200: 0 | O200: 0 | P200: 0 | Q200: 3 | R200: 3 | S200: 0 | T200: 0 | U200: 92 | W200: =AVERAGE(U200,U201) -> 88.5 | X200: CLASSIFICADO
... 1335 more rows

Sheet GRUPOS, COLETIVOS, CREW (2)
A1: CATEGORIA | B1: INSCRIÇÃO | C1: CIDADE | D1: UF | E1: REGIÃO | F1: AVALIADOR | G1: CRITÉRIOS DE AVALIAÇÃO E SELEÇÃO 1 | H1: CRITÉRIOS DE AVALIAÇÃO E SELEÇÃO 2 | I1: CRITÉRIOS DE AVALIAÇÃO E SELEÇÃO 3 | J1: CRITÉRIOS DE AVALIAÇÃO E SELEÇÃO 4 | K1: CRITÉRIOS DE AVALIAÇÃO E SELEÇÃO 5 | L1: CRITÉRIOS DE AVALIAÇÃO E SELEÇÃO 6 | M1: CRITÉRIOS DE AVALIAÇÃO E SELEÇÃO 7 | N1: CRITÉRIOS DE AVALIAÇÃO E SELEÇÃO 8 | O1: PONTUAÇÃO EXTRA - Pessoa com deficiência | P1: PONTUAÇÃO EXTRA - Mulher | Q1: PONTUAÇÃO EXTRA - Pessoa negra | R1: PONTUAÇÃO EXTRA -Indígena, matriz africana, de terreiro ou de povos ou de comunidades tradicionais | S1: PONTUAÇÃO EXTRA LGBTQIA+ | T1: PONTUAÇÃO EXTRA Idosa com 60 anos ou mais? | U1: NOTA POR AVALIADOR | V1: OBSERVAÇÃO | W1: NOTA PRELIMINAR | X1: STATUS
A2: GRUPOS, COLETIVOS, CREW | B2: =HYPERLINK("https://mapas.cultura.gov.br/inscricao/1477236982","on-1477236982") -> on-1477236982 | C2: Três Corações | D2: MG | E2: SUDESTE | F2: Avaliador 1 | G2: 20 | H2: 15 | I2: 15 | J2: 10 | K2: 10 | L2: 10 | M2: 10 | N2: 8 | O2: 0 | P2: 3 | Q2: 3 | R2: 0 | S2: 3 | T2: 0 | U2: =SUM(G2:T2) -> 107 | W2: =AVERAGE(U2,U3) -> 107 | X2: PRÉ-SELECIONADO
A3: GRUPOS, COLETIVOS, CREW | B3: =HYPERLINK("https://mapas.cultura.gov.br/inscricao/1477236982","on-1477236982") -> on-1477236982 | C3: Três Corações | D3: MG | E3: SUDESTE | F3: Avaliador 2 | G3: 20 | H3: 15 | I3: 15 | J3: 8 | K3: 10 | L3: 10 | M3: 10 | N3: 10 | O3: 0 | P3: 3 | Q3: 3 | R3: 0 | S3: 3 | T3: 0 | U3: 107 | W3: =W2 -> 107 | X3: =X2 -> PRÉ-SELECIONADO
A4: GRUPOS, COLETIVOS, CREW | B4: =HYPERLINK("https://mapas.cultura.gov.br/inscricao/1582559341","on-1582559341") -> on-1582559341 | C4: Guarulhos | D4: SP | E4: SUDESTE | F4: Avaliador 1 | G4: 20 | H4: 15 | I4: 15 | J4: 10 | K4: 10 | L4: 10 | M4: 10 | N4: 10 | O4: 0 | P4: 3 | Q4: 3 | R4: 0 | S4: 3 | T4: 0 | U4: 109 | W4: =AVERAGE(U4,U5) -> 107 | X4: PRÉ-SELECIONADO
A5: GRUPOS, COLETIVOS, CREW | B5: on-1582559341 | C5: Guarulhos | D5: SP | E5: SUDESTE | F5: Avaliador 2 | G5: 20 | H5: 15 | I5: 15 | J5: 10 | K5: 8 | L5: 10 | M5: 8 | N5: 10 | O5: 0 | P5: 3 | Q5: 3 | R5: 0 | S5: 3 | T5: 0 | U5: 105 | W5: =W4 -> 107 | X5: =X4 -> PRÉ-SELECIONADO
A6: GRUPOS, COLETIVOS, CREW | B6: =HYPERLINK("https://mapas.cultura.gov.br/inscricao/1085640331","on-1085640331") -> on-1085640331 | C6: Belo Horizonte | D6: MG | E6: SUDESTE | F6: Avaliador 1 | G6: 20 | H6: 15 | I6: 15 | J6: 10 | K6: 8 | L6: 10 | M6: 10 | N6: 8 | O6: 0 | P6: 3 | Q6: 3 | R6: 0 | S6: 3 | T6: 0 | U6: 105 | W6: =AVERAGE(U6,U7) -> 106 | X6: PRÉ-SELECIONADO
A7: GRUPOS, COLETIVOS, CREW | B7: =HYPERLINK("https://mapas.cultura.gov.br/inscricao/1085640331","on-1085640331") -> on-1085640331 | C7: Belo Horizonte | D7: MG | E7: SUDESTE | F7: Avaliador 2 | G7: 20 | H7: 15 | I7: 15 | J7: 10 | K7: 8 | L7: 10 | M7: 10 | N7: 10 | O7: 0 | P7: 3 | Q7: 3 | R7: 0 | S7: 3 | T7: 0 | U7: 107 | W7: =W6 -> 106 | X7: =X6 -> PRÉ-SELECIONADO
A8: GRUPOS, COLETIVOS, CREW | B8: =HYPERLINK("https://mapas.cultura.gov.br/inscricao/1330627663","on-1330627663") -> on-1330627663 | C8: Belo Horizonte | D8: MG | E8: SUDESTE | F8: Avaliador 1 | G8: 20 | H8: 15 | I8: 15 | J8: 10 | K8: 8 | L8: 10 | M8: 10 | N8: 10 | O8: 0 | P8: 3 | Q8: 3 | R8: 0 | S8: 0 | T8: 0 | U8: 104 | W8: =AVERAGE(U8,U9) -> 105 | X8: PRÉ-SELECIONADO
A9: GRUPOS, COLETIVOS, CREW | B9: =HYPERLINK("https://mapas.cultura.gov.br/inscricao/1330627663","on-1330627663") -> on-1330627663 | C9: Belo Horizonte | D9: MG | E9: SUDESTE | F9: Avaliador 2 | G9: 20 | H9: 15 | I9: 15 | J9: 10 | K9: 10 | L9: 10 | M9: 10 | N9: 10 | O9: 0 | P9: 3 | Q9: 3 | R9: 0 | S9: 0 | T9: 0 | U9: 106 | W9: =W8 -> 105 | X9: =X8 -> PRÉ-SELECIONADO
A10: GRUPOS, COLETIVOS, CREW | B10: =HYPERLINK("https://mapas.cultura.gov.br/inscricao/545579578","on-545579578") -> on-545579578 | C10: Presidente Prudente | D10: SP | E10: SUDESTE | F10: Avaliador 1 | G10: 20 | H10: 15 | I10: 15 | J10: 10 | K10: 10 | L10: 10 | M10: 10 | N10: 10 | O10: 0 | P10: 3 | Q10: 3 | R10: 0 | S10: 0 | T10: 0 | U10: 106 | W10: =AVERAGE(U10,U11) -> 103.5 | X10: PRÉ-SELECIONADO
A11: GRUPOS, COLETIVOS, CREW | B11: on-545579578 | C11: Presidente Prudente | D11: SP | E11: SUDESTE | F11: Avaliador 2 | G11: 20 | H11: 12 | I11: 15 | J11: 10 | K11: 10 | L11: 10 | M11: 8 | N11: 10 | O11: 0 | P11: 3 | Q11: 3 | R11: 0 | S11: 0 | T11: 0 | U11: 101 | W11: =W10 -> 103.5 | X11: =X10 -> PRÉ-SELECIONADO
A12: GRUPOS, COLETIVOS, CREW | B12: =HYPERLINK("https://mapas.cultura.gov.br/inscricao/1324057908","on-1324057908") -> on-1324057908 | C12: Belo Horizonte | D12: MG | E12: SUDESTE | F12: Avaliador 1 | G12: 20 | H12: 15 | I12: 15 | J12: 10 | K12: 10 | L12: 10 | M12: 10 | N12: 10 | O12: 0 | P12: 3 | Q12: 0 | R12: 0 | S12: 0 | T12: 0 | U12: 103 | W12: =AVERAGE(U12,U13) -> 103 | X12: PRÉ-SELECIONADO
A13: GRUPOS, COLETIVOS, CREW | B13: =HYPERLINK("https://mapas.cultura.gov.br/inscricao/1324057908","on-1324057908") -> on-1324057908 | C13: Belo Horizonte | D13: MG | E13: SUDESTE | F13: Avaliador 2 | G13: 20 | H13: 15 | I13: 15 | J13: 10 | K13: 10 | L13: 10 | M13: 10 | N13: 10 | O13: 0 | P13: 3 | Q13: 0 | R13: 0 | S13: 0 | T13: 0 | U13: 103 | W13: =W12 -> 103 | X13: =X12 -> PRÉ-SELECIONADO
A14: GRUPOS, COLETIVOS, CREW | B14: =HYPERLINK("https://mapas.cultura.gov.br/inscricao/2036707117","on-2036707117") -> on-2036707117 | C14: Conselheiro Lafaiete | D14: MG | E14: SUDESTE | F14: Avaliador 1 | G14: 15 | H14: 15 | I14: 15 | J14: 10 | K14: 10 | L14: 10 | M14: 10 | N14: 8 | O14: 0 | P14: 3 | Q14: 3 | R14: 3 | S14: 0 | T14: 0 | U14: 102 | W14: =AVERAGE(U14,U15) -> 102.5 | X14: PRÉ-SELECIONADO
A15: GRUPOS, COLETIVOS, CREW | B15: =HYPERLINK("https://mapas.cultura.gov.br/inscricao/2036707117","on-2036707117") -> on-2036707117 | C15: Conselheiro Lafaiete | D15: MG | E15: SUDESTE | F15: Avaliador 2 | G15: 15 | H15: 15 | I15: 15 | J15: 8 | K15: 8 | L15: 10 | M15: 10 | N15: 10 | O15: 0 | P15: 3 | Q15: 3 | R15: 3 | S15: 0 | T15: 3 | U15: 103 | W15: =W14 -> 102.5 | X15: =X14 -> PRÉ-SELECIONADO
A16: GRUPOS, COLETIVOS, CREW | B16: =HYPERLINK("https://mapas.cultura.gov.br/inscricao/1996877354","on-1996877354") -> on-1996877354 | C16: Juiz de Fora | D16: MG | E16: SUDESTE | F16: Avaliador 1 | G16: 20 | H16: 15 | I16: 15 | J16: 8 | K16: 10 | L16: 10 | M16: 8 | N16: 10 | O16: 0 | P16: 3 | Q16: 3 | R16: 0 | S16: 0 | T16: 0 | U16: 102 | W16: =AVERAGE(U16,U17) -> 102 | X16: PRÉ-SELECIONADO
A17: GRUPOS, COLETIVOS, CREW | B17: =HYPERLINK("https://mapas.cultura.gov.br/inscricao/1996877354","on-1996877354") -> on-1996877354 | C17: Juiz de Fora | D17: MG | E17: SUDESTE | F17: Avaliador 2 | G17: 20 | H17: 15 | I17: 15 | J17: 8 | K17: 10 | L17: 10 | M17: 8 | N17: 10 | O17: 0 | P17: 3 | Q17: 3 | R17: 0 | S17: 0 | T17: 0 | U17: 102 | W17: =W16 -> 102 | X17: =X16 -> PRÉ-SELECIONADO
A18: GRUPOS, COLETIVOS, CREW | B18: =HYPERLINK("https://mapas.cultura.gov.br/inscricao/94549936","on-94549936") -> on-94549936 | C18: Juiz de Fora | D18: MG | E18: SUDESTE | F18: Avaliador 1 | G18: 15 | H18: 15 | I18: 15 | J18: 10 | K18: 10 | L18: 8 | M18: 8 | N18: 10 | O18: 0 | P18: 3 | Q18: 0 | R18: 0 | S18: 3 | T18: 0 | U18: 97 | W18: =AVERAGE(U18,U19) -> 101.5 | X18: PRÉ-SELECIONADO
A19: GRUPOS, COLETIVOS, CREW | B19: =HYPERLINK("https://mapas.cultura.gov.br/inscricao/94549936","on-94549936") -> on-94549936 | C19: Juiz de Fora | D19: MG | E19: SUDESTE | F19: Avaliador 2 | G19: 20 | H19: 15 | I19: 15 | J19: 10 | K19: 10 | L19: 10 | M19: 10 | N19: 10 | O19: 0 | P19: 3 | Q19: 0 | R19: 0 | S19: 3 | T19: 0 | U19: 106 | W19: =W18 -> 101.5 | X19: =X18 -> PRÉ-SELECIONADO
A20: GRUPOS, COLETIVOS, CREW | B20: =HYPERLINK("https://mapas.cultura.gov.br/inscricao/1608688900","on-1608688900") -> on-1608688900 | C20: Botucatu | D20: SP | E20: SUDESTE | F20: Avaliador 1 | G20: 20 | H20: 12 | I20: 15 | J20: 8 | K20: 10 | L20: 10 | M20: 10 | N20: 8 | O20: 0 | P20: 0 | Q20: 3 | R20: 0 | S20: 0 | T20: 0 | U20: 96 | W20: =AVERAGE(U20,U21) -> 99.5 | X20: PRÉ-SELECIONADO
A21: GRUPOS, COLETIVOS, CREW | B21: on-1608688900 | C21: Botucatu | D21: SP | E21: SUDESTE | F21: Avaliador 2 | G21: 20 | H21: 15 | I21: 15 | J21: 10 | K21: 10 | L21: 10 | M21: 10 | N21: 10 | O21: 0 | P21: 0 | Q21: 3 | R21: 0 | S21: 0 | T21: 0 | U21: 103 | W21: =W20 -> 99.5 | X21: =X20 -> PRÉ-SELECIONADO
A22: GRUPOS, COLETIVOS, CREW | B22: =HYPERLINK("https://mapas.cultura.gov.br/inscricao/754370713","on-754370713") -> on-754370713 | C22: São Carlos | D22: SP | E22: SUDESTE | F22: Avaliador 1 | G22: 20 | H22: 15 | I22: 15 | J22: 10 | K22: 10 | L22: 10 | M22: 10 | N22: 10 | O22: 0 | P22: 3 | Q22: 3 | R22: 0 | S22: 3 | T22: 0 | U22: 109 | W22: =AVERAGE(U22,U23) -> 99.5 | X22: PRÉ-SELECIONADO
A23: GRUPOS, COLETIVOS, CREW | B23: on-754370713 | C23: São Carlos | D23: SP | E23: SUDESTE | F23: Avaliador 2 | G23: 15 | H23: 12 | I23: 12 | J23: 8 | K23: 8 | L23: 8 | M23: 10 | N23: 8 | O23: 0 | P23: 3 | Q23: 3 | R23: 0 | S23: 3 | T23: 0 | U23: 90 | W23: =W22 -> 99.5 | X23: =X22 -> PRÉ-SELECIONADO
A24: GRUPOS, COLETIVOS, CREW | B24: =HYPERLINK("https://mapas.cultura.gov.br/inscricao/855560897","on-855560897") -> on-855560897 | C24: São Paulo | D24: SP | E24: SUDESTE | F24: Avaliador 1 | G24: 20 | H24: 12 | I24: 15 | J24: 10 | K24: 10 | L24: 10 | M24: 8 | N24: 10 | O24: 0 | P24: 3 | Q24: 3 | R24: 0 | S24: 0 | T24: 3 | U24: 104 | W24: =AVERAGE(U24,U25) -> 99.5 | X24: PRÉ-SELECIONADO
A25: GRUPOS, COLETIVOS, CREW | B25: =HYPERLINK("https://mapas.cultura.gov.br/inscricao/855560897","on-855560897") -> on-855560897 | C25: São Paulo | D25: SP | E25: SUDESTE | F25: Avaliador 2 | G25: 15 | H25: 15 | I25: 12 | J25: 8 | K25: 8 | L25: 10 | M25: 10 | N25: 8 | O25: 0 | P25: 3 | Q25: 3 | R25: 0 | S25: 0 | T25: 3 | U25: 95 | W25: =W24 -> 99.5 | X25: =X24 -> PRÉ-SELECIONADO
A26: GRUPOS, COLETIVOS, CREW | B26: =HYPERLINK("https://mapas.cultura.gov.br/inscricao/922590620","on-922590620") -> on-922590620 | C26: Franco da Rocha | D26: SP | E26: SUDESTE | F26: Avaliador 1 | G26: 20 | H26: 15 | I26: 15 | J26: 10 | K26: 10 | L26: 10 | M26: 10 | N26: 10 | O26: 0 | P26: 3 | Q26: 0 | R26: 0 | S26: 0 | T26: 0 | U26: 103 | W26: =AVERAGE(U26,U27) -> 98.5 | X26: PRÉ-SELECIONADO
A27: GRUPOS, COLETIVOS, CREW | B27: on-922590620 | C27: Franco da Rocha | D27: SP | E27: SUDESTE | F27: Avaliador 2 | G27: 15 | H27: 12 | I27: 15 | J27: 10 | K27: 8 | L27: 10 | M27: 8 | N27: 10 | O27: 0 | P27: 3 | Q27: 3 | R27: 0 | S27: 0 | T27: 0 | U27: 94 | W27: =W26 -> 98.5 | X27: =X26 -> PRÉ-SELECIONADO
A28: GRUPOS, COLETIVOS, CREW | B28: =HYPERLINK("https://mapas.cultura.gov.br/inscricao/1515511773","on-1515511773") -> on-1515511773 | C28: Vila Velha | D28: ES | E28: SUDESTE | F28: Avaliador 1 | G28: 20 | H28: 12 | I28: 15 | J28: 8 | K28: 8 | L28: 10 | M28: 10 | N28: 8 | O28: 0 | P28: 0 | Q28: 3 | R28: 0 | S28: 0 | T28: 0 | U28: 94 | W28: =AVERAGE(U28,U29) -> 97.5 | X28: PRÉ-SELECIONADO
A29: GRUPOS, COLETIVOS, CREW | B29: =HYPERLINK("https://mapas.cultura.gov.br/inscricao/1515511773","on-1515511773") -> on-1515511773 | C29: Vila Velha | D29: ES | E29: SUDESTE | F29: Avaliador 2 | G29: 20 | H29: 15 | I29: 15 | J29: 8 | K29: 10 | L29: 10 | M29: 10 | N29: 10 | O29: 0 | P29: 0 | Q29: 3 | R29: 0 | S29: 0 | T29: 0 | U29: 101 | W29: =W28 -> 97.5 | X29: =X28 -> PRÉ-SELECIONADO
A30: GRUPOS, COLETIVOS, CREW | B30: =HYPERLINK("https://mapas.cultura.gov.br/inscricao/2103502642","on-2103502642") -> on-2103502642 | C30: Rio de Janeiro | D30: RJ | E30: SUDESTE | F30: Avaliador 1 | G30: 20 | H30: 15 | I30: 15 | J30: 8 | K30: 10 | L30: 10 | M30: 8 | N30: 10 | O30: 0 | P30: 0 | Q30: 3 | R30: 0 | S30: 0 | T30: 0 | U30: 99 | W30: =AVERAGE(U30,U31) -> 97 | X30: PRÉ-SELECIONADO
A31: GRUPOS, COLETIVOS, CREW | B31: =HYPERLINK("https://mapas.cultura.gov.br/inscricao/2103502642","on-2103502642") -> on-2103502642 | C31: Rio de Janeiro | D31: RJ | E31: SUDESTE | F31: Avaliador 2 | G31: 20 | H31: 15 | I31: 15 | J31: 8 | K31: 8 | L31: 10 | M31: 8 | N31: 8 | O31: 0 | P31: 0 | Q31: 3 | R31: 0 | S31: 0 | T31: 0 | U31: 95 | W31: =W30 -> 97 | X31: =X30 -> PRÉ-SELECIONADO
A32: GRUPOS, COLETIVOS, CREW | B32: =HYPERLINK("https://mapas.cultura.gov.br/inscricao/1081642483","on-1081642483") -> on-1081642483 | C32: Rio de Janeiro | D32: RJ | E32: SUDESTE | F32: Avaliador 1 | G32: 20 | H32: 12 | I32: 12 | J32: 8 | K32: 8 | L32: 8 | M32: 10 | N32: 10 | O32: 0 | P32: 0 | Q32: 3 | R32: 0 | S32: 3 | T32: 0 | U32: 94 | W32: =AVERAGE(U32,U33) -> 97 | X32: PRÉ-SELECIONADO
A33: GRUPOS, COLETIVOS, CREW | B33: =HYPERLINK("https://mapas.cultura.gov.br/inscricao/1081642483","on-1081642483") -> on-1081642483 | C33: Rio de Janeiro | D33: RJ | E33: SUDESTE | F33: Avaliador 2 | G33: 20 | H33: 15 | I33: 15 | J33: 8 | K33: 8 | L33: 8 | M33: 10 | N33: 10 | O33: 0 | P33: 0 | Q33: 3 | R33: 0 | S33: 3 | T33: 0 | U33: 100 | W33: =W32 -> 97 | X33: =X32 -> PRÉ-SELECIONADO
A34: GRUPOS, COLETIVOS, CREW | B34: =HYPERLINK("https://mapas.cultura.gov.br/inscricao/185854436","on-185854436") -> on-185854436 | C34: Rio de janeiro | D34: RJ | E34: SUDESTE | F34: Avaliador 1 | G34: 20 | H34: 15 | I34: 12 | J34: 8 | K34: 8 | L34: 8 | M34: 10 | N34: 10 | O34: 0 | P34: 0 | Q34: 3 | R34: 0 | S34: 3 | T34: 0 | U34: 97 | W34: =AVERAGE(U34,U35) -> 97 | X34: PRÉ-SELECIONADO
A35: GRUPOS, COLETIVOS, CREW | B35: =HYPERLINK("https://mapas.cultura.gov.br/inscricao/185854436","on-185854436") -> on-185854436 | C35: Rio de janeiro | D35: RJ | E35: SUDESTE | F35: Avaliador 2 | G35: 15 | H35: 15 | I35: 15 | J35: 8 | K35: 10 | L35: 8 | M35: 10 | N35: 10 | O35: 0 | P35: 0 | Q35: 3 | R35: 0 | S35: 3 | T35: 0 | U35: 97 | W35: =W34 -> 97 | X35: =X34 -> PRÉ-SELECIONADO
A36: GRUPOS, COLETIVOS, CREW | B36: =HYPERLINK("https://mapas.cultura.gov.br/inscricao/1590992807","on-1590992807") -> on-1590992807 | C36: Rio de Janeiro | D36: RJ | E36: SUDESTE | F36: Avaliador 1 | G36: 15 | H36: 15 | I36: 12 | J36: 8 | K36: 8 | L36: 10 | M36: 10 | N36: 10 | O36: 0 | P36: 3 | Q36: 3 | R36: 0 | S36: 3 | T36: 0 | U36: 97 | W36: =AVERAGE(U36,U37) -> 97 | X36: PRÉ-SELECIONADO
A37: GRUPOS, COLETIVOS, CREW | B37: =HYPERLINK("https://mapas.cultura.gov.br/inscricao/1590992807","on-1590992807") -> on-1590992807 | C37: Rio de Janeiro | D37: RJ | E37: SUDESTE | F37: Avaliador 2 | G37: 20 | H37: 12 | I37: 12 | J37: 8 | K37: 8 | L37: 10 | M37: 10 | N37: 8 | O37: 0 | P37: 3 | Q37: 3 | R37: 0 | S37: 3 | T37: 0 | U37: 97 | W37: =W36 -> 97 | X37: =X36 -> PRÉ-SELECIONADO
A38: GRUPOS, COLETIVOS, CREW | B38: =HYPERLINK("https://mapas.cultura.gov.br/inscricao/159951223","on-159951223") -> on-159951223 | C38: Rio de Janeiro | D38: RJ | E38: SUDESTE | F38: Avaliador 1 | G38: 20 | H38: 12 | I38: 12 | J38: 8 | K38: 8 | L38: 8 | M38: 10 | N38: 10 | O38: 0 | P38: 3 | Q38: 3 | R38: 3 | S38: 0 | T38: 0 | U38: 97 | W38: =AVERAGE(U38,U39) -> 97 | X38: PRÉ-SELECIONADO
A39: GRUPOS, COLETIVOS, CREW | B39: =HYPERLINK("https://mapas.cultura.gov.br/inscricao/159951223","on-159951223") -> on-159951223 | C39: Rio de Janeiro | D39: RJ | E39: SUDESTE | F39: Avaliador 2 | G39: 15 | H39: 15 | I39: 12 | J39: 10 | K39: 8 | L39: 8 | M39: 10 | N39: 10 | O39: 0 | P39: 3 | Q39: 3 | R39: 3 | S39: 0 | T39: 0 | U39: 97 | W39: =W38 -> 97 | X39: =X38 -> PRÉ-SELECIONADO
A40: GRUPOS, COLETIVOS, CREW | B40: =HYPERLINK("https://mapas.cultura.gov.br/inscricao/2110710170","on-2110710170") -> on-2110710170 | C40: São Paulo | D40: SP | E40: SUDESTE | F40: Avaliador 1 | G40: 20 | H40: 15 | I40: 15 | J40: 8 | K40: 10 | L40: 10 | M40: 10 | N40: 0 | O40: 3 | P40: 0 | Q40: 3 | R40: 0 | S40: 0 | T40: 0 | U40: 94 | W40: =AVERAGE(U40,U41) -> 96.5 | X40: PRÉ-SELECIONADO
A41: GRUPOS, COLETIVOS, CREW | B41: on-2110710170 | C41: São Paulo | D41: SP | E41: SUDESTE | F41: Avaliador 2 | G41: 20 | H41: 15 | I41: 15 | J41: 10 | K41: 10 | L41: 10 | M41: 10 | N41: 3 | O41: 3 | P41: 0 | Q41: 3 | R41: 0 | S41: 0 | T41: 0 | U41: 99 | W41: =W40 -> 96.5 | X41: =X40 -> PRÉ-SELECIONADO
A42: GRUPOS, COLETIVOS, CREW | B42: =HYPERLINK("https://mapas.cultura.gov.br/inscricao/1831182667","on-1831182667") -> on-1831182667 | C42: Barra Mansa | D42: RJ | E42: SUDESTE | F42: Avaliador 1 | G42: 15 | H42: 12 | I42: 15 | J42: 8 | K42: 8 | L42: 8 | M42: 10 | N42: 10 | O42: 0 | P42: 3 | Q42: 3 | R42: 0 | S42: 3 | T42: 0 | U42: 95 | W42: =AVERAGE(U42,U43) -> 96.5 | X42: PRÉ-SELECIONADO
A43: GRUPOS, COLETIVOS, CREW | B43: =HYPERLINK("https://mapas.cultura.gov.br/inscricao/1831182667","on-1831182667") -> on-1831182667 | C43: Barra Mansa | D43: RJ | E43: SUDESTE | F43: Avaliador 2 | G43: 15 | H43: 15 | I43: 15 | J43: 8 | K43: 8 | L43: 8 | M43: 10 | N43: 10 | O43: 0 | P43: 3 | Q43: 3 | R43: 0 | S43: 3 | T43: 0 | U43: 98 | W43: =W42 -> 96.5 | X43: =X42 -> PRÉ-SELECIONADO
A44: GRUPOS, COLETIVOS, CREW | B44: =HYPERLINK("https://mapas.cultura.gov.br/inscricao/2030488485","on-2030488485") -> on-2030488485 | C44: São Paulo | D44: SP | E44: SUDESTE | F44: Avaliador 1 | G44: 20 | H44: 15 | I44: 15 | J44: 10 | K44: 8 | L44: 5 | M44: 10 | N44: 10 | O44: 0 | P44: 3 | Q44: 3 | R44: 0 | S44: 0 | T44: 0 | U44: 99 | W44: =AVERAGE(U44,U45) -> 96 | X44: PRÉ-SELECIONADO
A45: GRUPOS, COLETIVOS, CREW | B45: on-2030488485 | C45: São Paulo | D45: SP | E45: SUDESTE | F45: Avaliador 2 | G45: 20 | H45: 15 | I45: 15 | J45: 8 | K45: 8 | L45: 5 | M45: 8 | N45: 8 | O45: 0 | P45: 3 | Q45: 3 | R45: 0 | S45: 0 | T45: 0 | U45: 93 | W45: =W44 -> 96 | X45: =X44 -> PRÉ-SELECIONADO
A46: GRUPOS, COLETIVOS, CREW | B46: =HYPERLINK("https://mapas.cultura.gov.br/inscricao/649651261","on-649651261") -> on-649651261 | C46: Belo Horizonte | D46: MG | E46: SUDESTE | F46: Avaliador 1 | G46: 20 | H46: 15 | I46: 15 | J46: 10 | K46: 10 | L46: 10 | M46: 10 | N46: 3 | O46: 0 | P46: 3 | Q46: 3 | R46: 0 | S46: 0 | T46: 0 | U46: 99 | W46: =AVERAGE(U46,U47) -> 96 | X46: PRÉ-SELECIONADO
A47: GRUPOS, COLETIVOS, CREW | B47: =HYPERLINK("https://mapas.cultura.gov.br/inscricao/649651261","on-649651261") -> on-649651261 | C47: Belo Horizonte | D47: MG | E47: SUDESTE | F47: Avaliador 2 | G47: 15 | H47: 15 | I47: 12 | J47: 10 | K47: 10 | L47: 10 | M47: 10 | N47: 5 | O47: 0 | P47: 3 | Q47: 3 | R47: 0 | S47: 0 | T47: 0 | U47: 93 | W47: =W46 -> 96 | X47: =X46 -> PRÉ-SELECIONADO
A48: GRUPOS, COLETIVOS, CREW | B48: =HYPERLINK("https://mapas.cultura.gov.br/inscricao/2144115131","on-2144115131") -> on-2144115131 | C48: Belo Horizonte | D48: MG | E48: SUDESTE | F48: Avaliador 1 | G48: 15 | H48: 15 | I48: 15 | J48: 8 | K48: 10 | L48: 10 | M48: 10 | N48: 10 | O48: 0 | P48: 0 | Q48: 3 | R48: 0 | S48: 0 | T48: 0 | U48: 96 | W48: =AVERAGE(U48,U49) -> 96 | X48: CLASSIFICADO
A49: GRUPOS, COLETIVOS, CREW | B49: =HYPERLINK("https://mapas.cultura.gov.br/inscricao/2144115131","on-2144115131") -> on-2144115131 | C49: Belo Horizonte | D49: MG | E49: SUDESTE | F49: Avaliador 2 | G49: 15 | H49: 15 | I49: 15 | J49: 8 | K49: 10 | L49: 10 | M49: 10 | N49: 10 | O49: 0 | P49: 0 | Q49: 3 | R49: 0 | S49: 0 | T49: 0 | U49: 96 | W49: =W48 -> 96 | X49: =X48 -> CLASSIFICADO
A50: GRUPOS, COLETIVOS, CREW | B50: =HYPERLINK("https://mapas.cultura.gov.br/inscricao/704969188","on-704969188") -> on-704969188 | C50: Ribeirão das Neves | D50: MG | E50: SUDESTE | F50: Avaliador 1 | G50: 20 | H50: 15 | I50: 15 | J50: 5 | K50: 10 | L50: 10 | M50: 10 | N50: 10 | O50: 0 | P50: 0 | Q50: 3 | R50: 0 | S50: 0 | T50: 0 | U50: 98 | W50: =AVERAGE(U50,U51) -> 95.5 | X50: CLASSIFICADO
A51: GRUPOS, COLETIVOS, CREW | B51: =HYPERLINK("https://mapas.cultura.gov.br/inscricao/704969188","on-704969188") -> on-704969188 | C51: Ribeirão das Neves | D51: MG | E51: SUDESTE | F51: Avaliador 2 | G51: 15 | H51: 15 | I51: 12 | J51: 8 | K51: 10 | L51: 10 | M51: 10 | N51: 10 | O51: 0 | P51: 0 | Q51: 3 | R51: 0 | S51: 0 | T51: 0 | U51: 93 | W51: =W50 -> 95.5 | X51: =X50 -> CLASSIFICADO
A52: GRUPOS, COLETIVOS, CREW | B52: =HYPERLINK("https://mapas.cultura.gov.br/inscricao/752061079","on-752061079") -> on-752061079 | C52: Belo Horizonte | D52: MG | E52: SUDESTE | F52: Avaliador 1 | G52: 20 | H52: 15 | I52: 15 | J52: 10 | K52: 10 | L52: 10 | M52: 10 | N52: 10 | O52: 0 | P52: 3 | Q52: 3 | R52: 0 | S52: 0 | T52: 0 | U52: 106 | W52: =AVERAGE(U52,U53) -> 95.5 | X52: CLASSIFICADO
A53: GRUPOS, COLETIVOS, CREW | B53: =HYPERLINK("https://mapas.cultura.gov.br/inscricao/752061079","on-752061079") -> on-752061079 | C53: Belo Horizonte | D53: MG | E53: SUDESTE | F53: Avaliador 2 | G53: 15 | H53: 12 | I53: 12 | J53: 8 | K53: 8 | L53: 8 | M53: 8 | N53: 8 | O53: 0 | P53: 3 | Q53: 3 | R53: 0 | S53: 0 | T53: 0 | U53: 85 | W53: =W52 -> 95.5 | X53: =X52 -> CLASSIFICADO
A54: GRUPOS, COLETIVOS, CREW | B54: =HYPERLINK("https://mapas.cultura.gov.br/inscricao/2011210609","on-2011210609") -> on-2011210609 | C54: Guarulhos | D54: SP | E54: SUDESTE | F54: Avaliador 1 | G54: 20 | H54: 15 | I54: 15 | J54: 10 | K54: 10 | L54: 10 | M54: 10 | N54: 10 | O54: 0 | P54: 0 | Q54: 0 | R54: 0 | S54: 3 | T54: 0 | U54: 103 | W54: =AVERAGE(U54,U55) -> 95 | X54: CLASSIFICADO
A55: GRUPOS, COLETIVOS, CREW | B55: on-2011210609 | C55: Guarulhos | D55: SP | E55: SUDESTE | F55: Avaliador 2 | G55: 20 | H55: 12 | I55: 12 | J55: 8 | K55: 8 | L55: 8 | M55: 8 | N55: 8 | O55: 0 | P55: 0 | Q55: 0 | R55: 0 | S55: 3 | T55: 0 | U55: 87 | W55: =W54 -> 95 | X55: =X54 -> CLASSIFICADO
A56: GRUPOS, COLETIVOS, CREW | B56: =HYPERLINK("https://mapas.cultura.gov.br/inscricao/1221778292","on-1221778292") -> on-1221778292 | C56: Belo Horizonte | D56: MG | E56: SUDESTE | F56: Avaliador 1 | G56: 15 | H56: 15 | I56: 15 | J56: 10 | K56: 10 | L56: 10 | M56: 10 | N56: 8 | O56: 0 | P56: 3 | Q56: 0 | R56: 0 | S56: 0 | T56: 0 | U56: 96 | W56: =AVERAGE(U56,U57) -> 94.5 | X56: CLASSIFICADO
A57: GRUPOS, COLETIVOS, CREW | B57: =HYPERLINK("https://mapas.cultura.gov.br/inscricao/E321221778292","on-1221778292") -> on-1221778292 | C57: Belo Horizonte | D57: MG | E57: SUDESTE | F57: Avaliador 2 | G57: 15 | H57: 15 | I57: 12 | J57: 10 | K57: 8 | L57: 10 | M57: 10 | N57: 10 | O57: 0 | P57: 3 | Q57: 0 | R57: 0 | S57: 0 | T57: 0 | U57: 93 | W57: =W56 -> 94.5 | X57: =X56 -> CLASSIFICADO
A58: GRUPOS, COLETIVOS, CREW | B58: =HYPERLINK("https://mapas.cultura.gov.br/inscricao/2055313387","on-2055313387") -> on-2055313387 | C58: São Paulo | D58: SP | E58: SUDESTE | F58: Avaliador 1 | G58: 20 | H58: 15 | I58: 12 | J58: 10 | K58: 8 | L58: 8 | M58: 10 | N58: 5 | O58: 0 | P58: 3 | Q58: 0 | R58: 0 | S58: 3 | T58: 0 | U58: 94 | W58: =AVERAGE(U58,U59) -> 94 | X58: CLASSIFICADO
A59: GRUPOS, COLETIVOS, CREW | B59: on-2055313387 | C59: São Paulo | D59: SP | E59: SUDESTE | F59: Avaliador 2 | G59: 20 | H59: 15 | I59: 12 | J59: 10 | K59: 8 | L59: 10 | M59: 8 | N59: 8 | O59: 0 | P59: 3 | Q59: 0 | R59: 0 | S59: 0 | T59: 0 | U59: 94 | W59: =W58 -> 94 | X59: =X58 -> CLASSIFICADO
A60: GRUPOS, COLETIVOS, CREW | B60: =HYPERLINK("https://mapas.cultura.gov.br/inscricao/1209443747","on-1209443747") -> on-1209443747 | C60: Birigui | D60: SP | E60: SUDESTE | F60: Avaliador 1 | G60: 20 | H60: 15 | I60: 12 | J60: 8 | K60: 8 | L60: 10 | M60: 10 | N60: 5 | O60: 0 | P60: 3 | Q60: 0 | R60: 0 | S60: 0 | T60: 0 | U60: 91 | W60: =AVERAGE(U60,U61) -> 94 | X60: CLASSIFICADO
A61: GRUPOS, COLETIVOS, CREW | B61: on-1209443747 | C61: Birigui | D61: SP | E61: SUDESTE | F61: Avaliador 2 | G61: 20 | H61: 15 | I61: 15 | J61: 8 | K61: 8 | L61: 10 | M61: 10 | N61: 8 | O61: 0 | P61: 3 | Q61: 0 | R61: 0 | S61: 0 | T61: 0 | U61: 97 | W61: =W60 -> 94 | X61: =X60 -> CLASSIFICADO
A62: GRUPOS, COLETIVOS, CREW | B62: =HYPERLINK("https://mapas.cultura.gov.br/inscricao/904167449","on-904167449") -> on-904167449 | C62: Ipatinga | D62: MG | E62: SUDESTE | F62: Avaliador 1 | G62: 15 | H62: 15 | I62: 12 | J62: 10 | K62: 10 | L62: 10 | M62: 10 | N62: 10 | O62: 0 | P62: 3 | Q62: 3 | R62: 0 | S62: 0 | T62: 0 | U62: 98 | W62: =AVERAGE(U62,U63) -> 94 | X62: CLASSIFICADO
A63: GRUPOS, COLETIVOS, CREW | B63: =HYPERLINK("https://mapas.cultura.gov.br/inscricao/904167449","on-904167449") -> on-904167449 | C63: Ipatinga | D63: MG | E63: SUDESTE | F63: Avaliador 2 | G63: 15 | H63: 12 | I63: 15 | J63: 8 | K63: 8 | L63: 10 | M63: 8 | N63: 8 | O63: 0 | P63: 3 | Q63: 3 | R63: 0 | S63: 0 | T63: 0 | U63: 90 | W63: =W62 -> 94 | X63: =X62 -> CLASSIFICADO
A64: GRUPOS, COLETIVOS, CREW | B64: =HYPERLINK("https://mapas.cultura.gov.br/inscricao/214282378","on-214282378") -> on-214282378 | C64: Uberlândia | D64: MG | E64: SUDESTE | F64: Avaliador 1 | G64: 15 | H64: 15 | I64: 15 | J64: 10 | K64: 10 | L64: 10 | M64: 10 | N64: 10 | O64: 0 | P64: 3 | Q64: 3 | R64: 3 | S64: 0 | T64: 0 | U64: 104 | W64: =AVERAGE(U64,U65) -> 93.5 | X64: CLASSIFICADO
A65: GRUPOS, COLETIVOS, CREW | B65: =HYPERLINK("https://mapas.cultura.gov.br/inscricao/214282378","on-214282378") -> on-214282378 | C65: Uberlândia | D65: MG | E65: SUDESTE | F65: Avaliador 2 | G65: 10 | H65: 12 | I65: 12 | J65: 8 | K65: 8 | L65: 8 | M65: 8 | N65: 8 | O65: 0 | P65: 3 | Q65: 3 | R65: 3 | S65: 0 | T65: 0 | U65: 83 | W65: =W64 -> 93.5 | X65: =X64 -> CLASSIFICADO
A66: GRUPOS, COLETIVOS, CREW | B66: =HYPERLINK("https://mapas.cultura.gov.br/inscricao/1906498736","on-1906498736") -> on-1906498736 | C66: Ibirité | D66: MG | E66: SUDESTE | F66: Avaliador 1 | G66: 15 | H66: 15 | I66: 15 | J66: 8 | K66: 10 | L66: 10 | M66: 10 | N66: 10 | O66: 0 | P66: 0 | Q66: 3 | R66: 0 | S66: 0 | T66: 0 | U66: =SUM(G66:T66) -> 96 | W66: =AVERAGE(U66,U67) -> 93.5 | X66: CLASSIFICADO
A67: GRUPOS, COLETIVOS, CREW | B67: =HYPERLINK("https://mapas.cultura.gov.br/inscricao/1906498736","on-1906498736") -> on-1906498736 | C67: Ibirité | D67: MG | E67: SUDESTE | F67: Avaliador 2 | G67: 15 | H67: 15 | I67: 12 | J67: 8 | K67: 10 | L67: 10 | M67: 10 | N67: 8 | O67: 0 | P67: 0 | Q67: 3 | R67: 0 | S67: 0 | T67: 0 | U67: 91 | W67: =W66 -> 93.5 | X67: =X66 -> CLASSIFICADO
A68: GRUPOS, COLETIVOS, CREW | B68: =HYPERLINK("https://mapas.cultura.gov.br/inscricao/559143749","on-559143749") -> on-559143749 | C68: Belo Horizonte | D68: MG | E68: SUDESTE | F68: Avaliador 1 | G68: 15 | H68: 15 | I68: 12 | J68: 10 | K68: 8 | L68: 8 | M68: 10 | N68: 5 | O68: 0 | P68: 3 | Q68: 0 | R68: 3 | S68: 3 | T68: 0 | U68: 92 | W68: =AVERAGE(U68,U69) -> 93 | X68: CLASSIFICADO
A69: GRUPOS, COLETIVOS, CREW | B69: =HYPERLINK("https://mapas.cultura.gov.br/inscricao/559143749","on-559143749") -> on-559143749 | C69: Belo Horizonte | D69: MG | E69: SUDESTE | F69: Avaliador 2 | G69: 15 | H69: 12 | I69: 12 | J69: 10 | K69: 8 | L69: 8 | M69: 10 | N69: 10 | O69: 0 | P69: 3 | Q69: 0 | R69: 3 | S69: 3 | T69: 0 | U69: 94 | W69: =W68 -> 93 | X69: =X68 -> CLASSIFICADO
A70: GRUPOS, COLETIVOS, CREW | B70: =HYPERLINK("https://mapas.cultura.gov.br/inscricao/1539885990","on-1539885990") -> on-1539885990 | C70: Pirapora | D70: MG | E70: SUDESTE | F70: Avaliador 1 | G70: 15 | H70: 15 | I70: 15 | J70: 8 | K70: 10 | L70: 10 | M70: 8 | N70: 8 | O70: 0 | P70: 0 | Q70: 3 | R70: 0 | S70: 0 | T70: 0 | U70: 92 | W70: =AVERAGE(U70,U71) -> 92.5 | X70: CLASSIFICADO
A71: GRUPOS, COLETIVOS, CREW | B71: =HYPERLINK("https://mapas.cultura.gov.br/inscricao/1539885990","on-1539885990") -> on-1539885990 | C71: Pirapora | D71: MG | E71: SUDESTE | F71: Avaliador 2 | G71: 15 | H71: 15 | I71: 12 | J71: 10 | K71: 8 | L71: 10 | M71: 10 | N71: 10 | O71: 0 | P71: 0 | Q71: 3 | R71: 0 | S71: 0 | T71: 0 | U71: 93 | W71: =W70 -> 92.5 | X71: =X70 -> CLASSIFICADO
A72: GRUPOS, COLETIVOS, CREW | B72: =HYPERLINK("https://mapas.cultura.gov.br/inscricao/1862985885","on-1862985885") -> on-1862985885 | C72: Santos | D72: SP | E72: SUDESTE | F72: Avaliador 1 | G72: 20 | H72: 12 | I72: 15 | J72: 8 | K72: 10 | L72: 8 | M72: 8 | N72: 8 | O72: 0 | P72: 0 | Q72: 0 | R72: 0 | S72: 0 | T72: 0 | U72: 89 | W72: =AVERAGE(U72,U73) -> 92.5 | X72: CLASSIFICADO
A73: GRUPOS, COLETIVOS, CREW | B73: on-1862985885 | C73: Santos | D73: SP | E73: SUDESTE | F73: Avaliador 2 | G73: 20 | H73: 15 | I73: 15 | J73: 8 | K73: 8 | L73: 10 | M73: 10 | N73: 10 | O73: 0 | P73: 0 | Q73: 0 | R73: 0 | S73: 0 | T73: 0 | U73: 96 | W73: =W72 -> 92.5 | X73: =X72 -> CLASSIFICADO
A74: GRUPOS, COLETIVOS, CREW | B74: =HYPERLINK("https://mapas.cultura.gov.br/inscricao/1312730941","on-1312730941") -> on-1312730941 | C74: Belo Horizonte | D74: MG | E74: SUDESTE | F74: Avaliador 1 | G74: 15 | H74: 12 | I74: 8 | J74: 10 | K74: 10 | L74: 10 | M74: 10 | N74: 10 | O74: 0 | P74: 3 | Q74: 3 | R74: 0 | S74: 3 | T74: 0 | U74: 94 | W74: =AVERAGE(U74,U75) -> 92 | X74: CLASSIFICADO
A75: GRUPOS, COLETIVOS, CREW | B75: =HYPERLINK("https://mapas.cultura.gov.br/inscricao/1312730941","on-1312730941") -> on-1312730941 | C75: Belo Horizonte | D75: MG | E75: SUDESTE | F75: Avaliador 2 | G75: 15 | H75: 12 | I75: 12 | J75: 10 | K75: 8 | L75: 8 | M75: 8 | N75: 8 | O75: 0 | P75: 3 | Q75: 3 | R75: 0 | S75: 3 | T75: 0 | U75: 90 | W75: =W74 -> 92 | X75: =X74 -> CLASSIFICADO
A76: GRUPOS, COLETIVOS, CREW | B76: =HYPERLINK("https://mapas.cultura.gov.br/inscricao/1759492381","on-1759492381") -> on-1759492381 | C76: Belo Horizonte | D76: MG | E76: SUDESTE | F76: Avaliador 1 | G76: 15 | H76: 15 | I76: 12 | J76: 10 | K76: 8 | L76: 8 | M76: 8 | N76: 10 | O76: 0 | P76: 3 | Q76: 3 | R76: 0 | S76: 0 | T76: 0 | U76: 92 | W76: =AVERAGE(U76,U77) -> 92 | X76: CLASSIFICADO
A77: GRUPOS, COLETIVOS, CREW | B77: =HYPERLINK("https://mapas.cultura.gov.br/inscricao/1759492381","on-1759492381") -> on-1759492381 | C77: Belo Horizonte | D77: MG | E77: SUDESTE | F77: Avaliador 2 | G77: 15 | H77: 15 | I77: 12 | J77: 8 | K77: 8 | L77: 10 | M77: 8 | N77: 10 | O77: 0 | P77: 3 | Q77: 3 | R77: 0 | S77: 0 | T77: 0 | U77: 92 | W77: =W76 -> 92 | X77: =X76 -> CLASSIFICADO
A78: GRUPOS, COLETIVOS, CREW | B78: =HYPERLINK("https://mapas.cultura.gov.br/inscricao/1687005407","on-1687005407") -> on-1687005407 | C78: Itaúna | D78: MG | E78: SUDESTE | F78: Avaliador 1 | G78: 15 | H78: 12 | I78: 12 | J78: 8 | K78: 10 | L78: 10 | M78: 10 | N78: 8 | O78: 0 | P78: 0 | Q78: 0 | R78: 0 | S78: 0 | T78: 0 | U78: 85 | W78: =AVERAGE(U78,U79) -> 91.5 | X78: CLASSIFICADO
A79: GRUPOS, COLETIVOS, CREW | B79: =HYPERLINK("https://mapas.cultura.gov.br/inscricao/1687005407","on-1687005407") -> on-1687005407 | C79: Itaúna | D79: MG | E79: SUDESTE | F79: Avaliador 2 | G79: 20 | H79: 15 | I79: 15 | J79: 10 | K79: 8 | L79: 10 | M79: 10 | N79: 10 | O79: 0 | P79: 0 | Q79: 0 | R79: 0 | S79: 0 | T79: 0 | U79: 98 | W79: =W78 -> 91.5 | X79: =X78 -> CLASSIFICADO
A80: GRUPOS, COLETIVOS, CREW | B80: =HYPERLINK("https://mapas.cultura.gov.br/inscricao/1047920386","on-1047920386") -> on-1047920386 | C80: Governador Valadares | D80: MG | E80: SUDESTE | F80: Avaliador 1 | G80: 15 | H80: 12 | I80: 15 | J80: 10 | K80: 8 | L80: 10 | M80: 8 | N80: 8 | O80: 0 | P80: 0 | Q80: 3 | R80: 0 | S80: 3 | T80: 0 | U80: 92 | W80: =AVERAGE(U80,U81) -> 91 | X80: CLASSIFICADO
A81: GRUPOS, COLETIVOS, CREW | B81: =HYPERLINK("https://mapas.cultura.gov.br/inscricao/1047920386","on-1047920386") -> on-1047920386 | C81: Governador Valadares | D81: MG | E81: SUDESTE | F81: Avaliador 2 | G81: 20 | H81: 15 | I81: 15 | J81: 8 | K81: 0 | L81: 10 | M81: 8 | N81: 8 | O81: 0 | P81: 0 | Q81: 3 | R81: 0 | S81: 3 | T81: 0 | U81: 90 | W81: =W80 -> 91 | X81: =X80 -> CLASSIFICADO
A82: GRUPOS, COLETIVOS, CREW | B82: =HYPERLINK("https://mapas.cultura.gov.br/inscricao/762960226","on-762960226") -> on-762960226 | C82: Extrema | D82: MG | E82: SUDESTE | F82: Avaliador 1 | G82: 15 | H82: 12 | I82: 15 | J82: 8 | K82: 10 | L82: 10 | M82: 10 | N82: 10 | O82: 0 | P82: 0 | Q82: 3 | R82: 0 | S82: 0 | T82: 0 | U82: 93 | W82: =AVERAGE(U82,U83) -> 90.5 | X82: CLASSIFICADO
A83: GRUPOS, COLETIVOS, CREW | B83: =HYPERLINK("https://mapas.cultura.gov.br/inscricao/762960226","on-762960226") -> on-762960226 | C83: Extrema | D83: MG | E83: SUDESTE | F83: Avaliador 2 | G83: 15 | H83: 12 | I83: 12 | J83: 10 | K83: 8 | L83: 8 | M83: 10 | N83: 10 | O83: 0 | P83: 0 | Q83: 3 | R83: 0 | S83: 0 | T83: 0 | U83: 88 | W83: =W82 -> 90.5 | X83: =X82 -> CLASSIFICADO
A84: GRUPOS, COLETIVOS, CREW | B84: =HYPERLINK("https://mapas.cultura.gov.br/inscricao/140681676","on-140681676") -> on-140681676 | C84: Porto Ferreira | D84: SP | E84: SUDESTE | F84: Avaliador 1 | G84: 20 | H84: 4 | I84: 15 | J84: 10 | K84: 10 | L84: 10 | M84: 10 | N84: 3 | O84: 0 | P84: 3 | Q84: 0 | R84: 3 | S84: 0 | T84: 0 | U84: 88 | W84: =AVERAGE(U84,U85) -> 90.5 | X84: CLASSIFICADO
A85: GRUPOS, COLETIVOS, CREW | B85: on-140681676 | C85: Porto Ferreira | D85: SP | E85: SUDESTE | F85: Avaliador 2 | G85: 20 | H85: 15 | I85: 15 | J85: 10 | K85: 10 | L85: 10 | M85: 10 | N85: 0 | O85: 0 | P85: 3 | Q85: 0 | R85: 0 | S85: 0 | T85: 0 | U85: 93 | W85: =W84 -> 90.5 | X85: =X84 -> CLASSIFICADO
A86: GRUPOS, COLETIVOS, CREW | B86: =HYPERLINK("https://mapas.cultura.gov.br/inscricao/1601957134","on-1601957134") -> on-1601957134 | C86: Itapeva | D86: SP | E86: SUDESTE | F86: Avaliador 1 | G86: 20 | H86: 4 | I86: 15 | J86: 3 | K86: 10 | L86: 10 | M86: 10 | N86: 3 | O86: 0 | P86: 3 | Q86: 3 | R86: 0 | S86: 0 | T86: 0 | U86: 81 | W86: =AVERAGE(U86,U87) -> 89.5 | X86: CLASSIFICADO
A87: GRUPOS, COLETIVOS, CREW | B87: on-1601957134 | C87: Itapeva | D87: SP | E87: SUDESTE | F87: Avaliador 2 | G87: 20 | H87: 15 | I87: 15 | J87: 8 | K87: 8 | L87: 10 | M87: 8 | N87: 8 | O87: 0 | P87: 3 | Q87: 3 | R87: 0 | S87: 0 | T87: 0 | U87: 98 | W87: =W86 -> 89.5 | X87: =X86 -> CLASSIFICADO
A88: GRUPOS, COLETIVOS, CREW | B88: =HYPERLINK("https://mapas.cultura.gov.br/inscricao/66365840","on-66365840") -> on-66365840 | C88: São Paulo | D88: SP | E88: SUDESTE | F88: Avaliador 1 | G88: 20 | H88: 15 | I88: 15 | J88: 10 | K88: 10 | L88: 10 | M88: 10 | N88: 5 | O88: 0 | P88: 3 | Q88: 3 | R88: 0 | S88: 0 | T88: 0 | U88: 101 | W88: =AVERAGE(U88,U89) -> 89 | X88: CLASSIFICADO
A89: GRUPOS, COLETIVOS, CREW | B89: on-66365840 | C89: São Paulo | D89: SP | E89: SUDESTE | F89: Avaliador 2 | G89: 15 | H89: 8 | I89: 12 | J89: 10 | K89: 5 | L89: 8 | M89: 5 | N89: 8 | O89: 0 | P89: 3 | Q89: 3 | R89: 0 | S89: 0 | T89: 0 | U89: 77 | W89: =W88 -> 89 | X89: =X88 -> CLASSIFICADO
A90: GRUPOS, COLETIVOS, CREW | B90: =HYPERLINK("https://mapas.cultura.gov.br/inscricao/867405165","on-867405165") -> on-867405165 | C90: Franca | D90: SP | E90: SUDESTE | F90: Avaliador 1 | G90: 20 | H90: 4 | I90: 15 | J90: 0 | K90: 8 | L90: 10 | M90: 10 | N90: 10 | O90: 0 | P90: 3 | Q90: 3 | R90: 0 | S90: 3 | T90: 0 | U90: 86 | W90: =AVERAGE(U90,U91) -> 88 | X90: CLASSIFICADO
A91: GRUPOS, COLETIVOS, CREW | B91: on-867405165 | C91: Franca | D91: SP | E91: SUDESTE | F91: Avaliador 2 | G91: 15 | H91: 12 | I91: 12 | J91: 10 | K91: 8 | L91: 8 | M91: 8 | N91: 8 | O91: 0 | P91: 3 | Q91: 3 | R91: 0 | S91: 3 | T91: 0 | U91: 90 | W91: =W90 -> 88 | X91: =X90 -> CLASSIFICADO
A92: GRUPOS, COLETIVOS, CREW | B92: =HYPERLINK("https://mapas.cultura.gov.br/inscricao/155172463","on-155172463") -> on-155172463 | C92: Belo Horizonte | D92: MG | E92: SUDESTE | F92: Avaliador 1 | G92: 10 | H92: 15 | I92: 12 | J92: 8 | K92: 10 | L92: 8 | M92: 10 | N92: 3 | O92: 0 | P92: 0 | Q92: 0 | R92: 0 | S92: 0 | T92: 0 | U92: 76 | W92: =AVERAGE(U92,U93) -> 87 | X92: CLASSIFICADO
A93: GRUPOS, COLETIVOS, CREW | B93: =HYPERLINK("https://mapas.cultura.gov.br/inscricao/155172463","on-155172463") -> on-155172463 | C93: Belo Horizonte | D93: MG | E93: SUDESTE | F93: Avaliador 2 | G93: 20 | H93: 15 | I93: 15 | J93: 10 | K93: 10 | L93: 10 | M93: 10 | N93: 8 | O93: 0 | P93: 0 | Q93: 0 | R93: 0 | S93: 0 | T93: 0 | U93: 98 | W93: =W92 -> 87 | X93: =X92 -> CLASSIFICADO
A94: GRUPOS, COLETIVOS, CREW | B94: =HYPERLINK("https://mapas.cultura.gov.br/inscricao/995285821","on-995285821") -> on-995285821 | C94: Vespasiano | D94: MG | E94: SUDESTE | F94: Avaliador 1 | G94: 15 | H94: 15 | I94: 15 | J94: 8 | K94: 3 | L94: 10 | M94: 10 | N94: 10 | O94: 0 | P94: 0 | Q94: 3 | R94: 0 | S94: 0 | T94: 0 | U94: 89 | W94: =AVERAGE(U94,U95) -> 87 | X94: CLASSIFICADO
A95: GRUPOS, COLETIVOS, CREW | B95: =HYPERLINK("https://mapas.cultura.gov.br/inscricao/F38995285821","on-995285821") -> on-995285821 | C95: Vespasiano | D95: MG | E95: SUDESTE | F95: Avaliador 2 | G95: 20 | H95: 12 | I95: 12 | J95: 8 | K95: 0 | L95: 10 | M95: 10 | N95: 10 | O95: 0 | P95: 0 | Q95: 3 | R95: 0 | S95: 0 | T95: 0 | U95: 85 | W95: =W94 -> 87 | X95: =X94 -> CLASSIFICADO
A96: GRUPOS, COLETIVOS, CREW | B96: =HYPERLINK("https://mapas.cultura.gov.br/inscricao/1664414410","on-1664414410") -> on-1664414410 | C96: São Paulo | D96: SP | E96: SUDESTE | F96: Avaliador 1 | G96: 20 | H96: 15 | I96: 15 | J96: 5 | K96: 10 | L96: 10 | M96: 10 | N96: 3 | O96: 0 | P96: 0 | Q96: 3 | R96: 0 | S96: 0 | T96: 0 | U96: 91 | W96: =AVERAGE(U96,U97) -> 87 | X96: CLASSIFICADO
A97: GRUPOS, COLETIVOS, CREW | B97: on-1664414410 | C97: São Paulo | D97: SP | E97: SUDESTE | F97: Avaliador 2 | G97: 20 | H97: 12 | I97: 12 | J97: 5 | K97: 5 | L97: 10 | M97: 8 | N97: 8 | O97: 0 | P97: 0 | Q97: 3 | R97: 0 | S97: 0 | T97: 0 | U97: 83 | W97: =W96 -> 87 | X97: =X96 -> CLASSIFICADO
A98: GRUPOS, COLETIVOS, CREW | B98: =HYPERLINK("https://mapas.cultura.gov.br/inscricao/118654183","on-118654183") -> on-118654183 | C98: Divinópolis | D98: MG | E98: SUDESTE | F98: Avaliador 1 | G98: 15 | H98: 15 | I98: 8 | J98: 10 | K98: 10 | L98: 5 | M98: 10 | N98: 8 | O98: 0 | P98: 3 | Q98: 3 | R98: 0 | S98: 0 | T98: 0 | U98: 87 | W98: =AVERAGE(U98,U99) -> 86 | X98: CLASSIFICADO
A99: GRUPOS, COLETIVOS, CREW | B99: =HYPERLINK("https://mapas.cultura.gov.br/inscricao/118654183","on-118654183") -> on-118654183 | C99: Divinópolis | D99: MG | E99: SUDESTE | F99: Avaliador 2 | G99: 15 | H99: 12 | I99: 12 | J99: 8 | K99: 8 | L99: 8 | M99: 8 | N99: 8 | O99: 0 | P99: 3 | Q99: 3 | R99: 0 | S99: 0 | T99: 0 | U99: 85 | W99: =W98 -> 86 | X99: =X98 -> CLASSIFICADO
A100: GRUPOS, COLETIVOS, CREW | B100: =HYPERLINK("https://mapas.cultura.gov.br/inscricao/349104642","on-349104642") -> on-349104642 | C100: Belo Horizonte | D100: MG | E100: SUDESTE | F100: Avaliador 1 | G100: 20 | H100: 15 | I100: 12 | J100: 8 | K100: 10 | L100: 10 | M100: 8 | N100: 10 | O100: 0 | P100: 0 | Q100: 3 | R100: 0 | S100: 3 | T100: 0 | U100: 99 | W100: =AVERAGE(U100,U101) -> 86 | X100: CLASSIFICADO
A101: GRUPOS, COLETIVOS, CREW | B101: =HYPERLINK("https://mapas.cultura.gov.br/inscricao/349104642","on-349104642") -> on-349104642 | C101: Belo Horizonte | D101: MG | E101: SUDESTE | F101: Avaliador 2 | G101: 10 | H101: 12 | I101: 8 | J101: 8 | K101: 8 | L101: 8 | M101: 5 | N101: 8 | O101: 0 | P101: 0 | Q101: 3 | R101: 0 | S101: 3 | T101: 0 | U101: 73 | W101: =W100 -> 86 | X101: =X100 -> CLASSIFICADO
A102: GRUPOS, COLETIVOS, CREW | B102: =HYPERLINK("https://mapas.cultura.gov.br/inscricao/788655894","on-788655894") -> on-788655894 | C102: Guarujá | D102: SP | E102: SUDESTE | F102: Avaliador 1 | G102: 20 | H102: 4 | I102: 15 | J102: 0 | K102: 10 | L102: 10 | M102: 8 | N102: 8 | O102: 0 | P102: 0 | Q102: 3 | R102: 0 | S102: 0 | T102: 0 | U102: 78 | W102: =AVERAGE(U102,U103) -> 86 | X102: CLASSIFICADO
A103: GRUPOS, COLETIVOS, CREW | B103: on-788655894 | C103: Guarujá | D103: SP | E103: SUDESTE | F103: Avaliador 2 | G103: 20 | H103: 15 | I103: 15 | J103: 5 | K103: 10 | L103: 10 | M103: 8 | N103: 8 | O103: 0 | P103: 0 | Q103: 3 | R103: 0 | S103: 0 | T103: 0 | U103: 94 | W103: =W102 -> 86 | X103: =X102 -> CLASSIFICADO
A104: GRUPOS, COLETIVOS, CREW | B104: =HYPERLINK("https://mapas.cultura.gov.br/inscricao/87014475","on-87014475") -> on-87014475 | C104: Ferraz de Vasconcelos | D104: SP | E104: SUDESTE | F104: Avaliador 1 | G104: 20 | H104: 8 | I104: 15 | J104: 5 | K104: 10 | L104: 10 | M104: 10 | N104: 5 | O104: 0 | P104: 0 | Q104: 3 | R104: 0 | S104: 0 | T104: 0 | U104: 86 | W104: =AVERAGE(U104,U105) -> 85 | X104: CLASSIFICADO
A105: GRUPOS, COLETIVOS, CREW | B105: on-87014475 | C105: Ferraz de Vasconcelos | D105: SP | E105: SUDESTE | F105: Avaliador 2 | G105: 15 | H105: 12 | I105: 12 | J105: 8 | K105: 10 | L105: 8 | M105: 8 | N105: 8 | O105: 0 | P105: 0 | Q105: 3 | R105: 0 | S105: 0 | T105: 0 | U105: 84 | W105: =W104 -> 85 | X105: =X104 -> CLASSIFICADO
A106: GRUPOS, COLETIVOS, CREW | B106: =HYPERLINK("https://mapas.cultura.gov.br/inscricao/63478458","on-63478458") -> on-63478458 | C106: Pouso Alegre | D106: MG | E106: SUDESTE | F106: Avaliador 1 | G106: 15 | H106: 12 | I106: 15 | J106: 5 | K106: 8 | L106: 10 | M106: 5 | N106: 5 | O106: 0 | P106: 0 | Q106: 0 | R106: 0 | S106: 0 | T106: 0 | U106: 75 | W106: =AVERAGE(U106,U107) -> 84.5 | X106: CLASSIFICADO
A107: GRUPOS, COLETIVOS, CREW | B107: =HYPERLINK("https://mapas.cultura.gov.br/inscricao/63478458","on-63478458") -> on-63478458 | C107: Pouso Alegre | D107: MG | E107: SUDESTE | F107: Avaliador 2 | G107: 20 | H107: 15 | I107: 15 | J107: 8 | K107: 8 | L107: 10 | M107: 10 | N107: 8 | O107: 0 | P107: 0 | Q107: 0 | R107: 0 | S107: 0 | T107: 0 | U107: 94 | W107: =W106 -> 84.5 | X107: =X106 -> CLASSIFICADO
A108: GRUPOS, COLETIVOS, CREW | B108: =HYPERLINK("https://mapas.cultura.gov.br/inscricao/1782896315","on-1782896315") -> on-1782896315 | C108: São Paulo | D108: SP | E108: SUDESTE | F108: Avaliador 1 | G108: 20 | H108: 8 | I108: 12 | J108: 10 | K108: 8 | L108: 10 | M108: 8 | N108: 0 | O108: 0 | P108: 3 | Q108: 0 | R108: 0 | S108: 3 | T108: 0 | U108: 82 | W108: =AVERAGE(U108,U109) -> 84.5 | X108: CLASSIFICADO
A109: GRUPOS, COLETIVOS, CREW | B109: on-1782896315 | C109: São Paulo | D109: SP | E109: SUDESTE | F109: Avaliador 2 | G109: 15 | H109: 12 | I109: 12 | J109: 10 | K109: 8 | L109: 8 | M109: 8 | N109: 8 | O109: 0 | P109: 3 | Q109: 0 | R109: 0 | S109: 3 | T109: 0 | U109: 87 | W109: =W108 -> 84.5 | X109: =X108 -> CLASSIFICADO
A110: GRUPOS, COLETIVOS, CREW | B110: =HYPERLINK("https://mapas.cultura.gov.br/inscricao/233736378","on-233736378") -> on-233736378 | C110: Mariana | D110: MG | E110: SUDESTE | F110: Avaliador 1 | G110: 15 | H110: 15 | I110: 12 | J110: 8 | K110: 5 | L110: 10 | M110: 10 | N110: 10 | O110: 0 | P110: 0 | Q110: 3 | R110: 0 | S110: 0 | T110: 0 | U110: 88 | W110: =AVERAGE(U110,U111) -> 83.5 | X110: CLASSIFICADO
A111: GRUPOS, COLETIVOS, CREW | B111: =HYPERLINK("https://mapas.cultura.gov.br/inscricao/233736378","on-233736378") -> on-233736378 | C111: Mariana | D111: MG | E111: SUDESTE | F111: Avaliador 2 | G111: 10 | H111: 15 | I111: 8 | J111: 8 | K111: 5 | L111: 10 | M111: 10 | N111: 10 | O111: 0 | P111: 0 | Q111: 3 | R111: 0 | S111: 0 | T111: 0 | U111: 79 | W111: =W110 -> 83.5 | X111: =X110 -> CLASSIFICADO
A112: GRUPOS, COLETIVOS, CREW | B112: =HYPERLINK("https://mapas.cultura.gov.br/inscricao/170824702","on-170824702") -> on-170824702 | C112: Ipatinga | D112: MG | E112: SUDESTE | F112: Avaliador 1 | G112: 15 | H112: 15 | I112: 15 | J112: 8 | K112: 3 | L112: 10 | M112: 10 | N112: 5 | O112: 0 | P112: 0 | Q112: 3 | R112: 0 | S112: 0 | T112: 0 | U112: 84 | W112: =AVERAGE(U112,U113) -> 83 | X112: CLASSIFICADO
A113: GRUPOS, COLETIVOS, CREW | B113: =HYPERLINK("https://mapas.cultura.gov.br/inscricao/170824702","on-170824702") -> on-170824702 | C113: Ipatinga | D113: MG | E113: SUDESTE | F113: Avaliador 2 | G113: 15 | H113: 12 | I113: 12 | J113: 8 | K113: 8 | L113: 8 | M113: 8 | N113: 8 | O113: 0 | P113: 0 | Q113: 3 | R113: 0 | S113: 0 | T113: 0 | U113: 82 | W113: =W112 -> 83 | X113: =X112 -> CLASSIFICADO
A114: GRUPOS, COLETIVOS, CREW | B114: =HYPERLINK("https://mapas.cultura.gov.br/inscricao/628613382","on-628613382") -> on-628613382 | C114: Belo Horizonte | D114: MG | E114: SUDESTE | F114: Avaliador 1 | G114: 15 | H114: 12 | I114: 12 | J114: 5 | K114: 8 | L114: 10 | M114: 8 | N114: 8 | O114: 0 | P114: 3 | Q114: 3 | R114: 0 | S114: 0 | T114: 0 | U114: 84 | W114: =AVERAGE(U114,U115) -> 83 | X114: CLASSIFICADO
A115: GRUPOS, COLETIVOS, CREW | B115: =HYPERLINK("https://mapas.cultura.gov.br/inscricao/628613382","on-628613382") -> on-628613382 | C115: Belo Horizonte | D115: MG | E115: SUDESTE | F115: Avaliador 2 | G115: 15 | H115: 12 | I115: 12 | J115: 5 | K115: 8 | L115: 8 | M115: 8 | N115: 8 | O115: 0 | P115: 3 | Q115: 3 | R115: 0 | S115: 0 | T115: 0 | U115: 82 | W115: =W114 -> 83 | X115: =X114 -> CLASSIFICADO
A116: GRUPOS, COLETIVOS, CREW | B116: =HYPERLINK("https://mapas.cultura.gov.br/inscricao/711963443","on-711963443") -> on-711963443 | C116: São Paulo | D116: SP | E116: SUDESTE | F116: Avaliador 1 | G116: 20 | H116: 4 | I116: 15 | J116: 10 | K116: 10 | L116: 10 | M116: 10 | N116: 3 | O116: 0 | P116: 3 | Q116: 3 | R116: 0 | S116: 0 | T116: 0 | U116: 88 | W116: =AVERAGE(U116,U117) -> 82.5 | X116: CLASSIFICADO
A117: GRUPOS, COLETIVOS, CREW | B117: on-711963443 | C117: São Paulo | D117: SP | E117: SUDESTE | F117: Avaliador 2 | G117: 15 | H117: 8 | I117: 12 | J117: 5 | K117: 5 | L117: 8 | M117: 8 | N117: 10 | O117: 0 | P117: 3 | Q117: 3 | R117: 0 | S117: 0 | T117: 0 | U117: 77 | W117: =W116 -> 82.5 | X117: =X116 -> CLASSIFICADO
A118: GRUPOS, COLETIVOS, CREW | B118: =HYPERLINK("https://mapas.cultura.gov.br/inscricao/87879060","on-87879060") -> on-87879060 | C118: Poços de Caldas | D118: MG | E118: SUDESTE | F118: Avaliador 1 | G118: 15 | H118: 8 | I118: 8 | J118: 8 | K118: 10 | L118: 5 | M118: 8 | N118: 5 | O118: 0 | P118: 0 | Q118: 3 | R118: 0 | S118: 0 | T118: 0 | U118: 70 | W118: =AVERAGE(U118,U119) -> 82 | X118: CLASSIFICADO
A119: GRUPOS, COLETIVOS, CREW | B119: =HYPERLINK("https://mapas.cultura.gov.br/inscricao/87879060","on-87879060") -> on-87879060 | C119: Poços de Caldas | D119: MG | E119: SUDESTE | F119: Avaliador 2 | G119: 15 | H119: 15 | I119: 15 | J119: 8 | K119: 8 | L119: 10 | M119: 10 | N119: 10 | O119: 0 | P119: 0 | Q119: 3 | R119: 0 | S119: 0 | T119: 0 | U119: 94 | W119: =W118 -> 82 | X119: =X118 -> CLASSIFICADO
A120: GRUPOS, COLETIVOS, CREW | B120: =HYPERLINK("https://mapas.cultura.gov.br/inscricao/1222022541","on-1222022541") -> on-1222022541 | C120: São Paulo | D120: SP | E120: SUDESTE | F120: Avaliador 1 | G120: 20 | H120: 8 | I120: 15 | J120: 3 | K120: 10 | L120: 10 | M120: 10 | N120: 3 | O120: 0 | P120: 0 | Q120: 3 | R120: 0 | S120: 3 | T120: 0 | U120: 85 | W120: =AVERAGE(U120,U121) -> 81.5 | X120: CLASSIFICADO
A121: GRUPOS, COLETIVOS, CREW | B121: on-1222022541 | C121: São Paulo | D121: SP | E121: SUDESTE | F121: Avaliador 2 | G121: 15 | H121: 12 | I121: 8 | J121: 8 | K121: 8 | L121: 5 | M121: 8 | N121: 8 | O121: 0 | P121: 0 | Q121: 3 | R121: 0 | S121: 3 | T121: 0 | U121: 78 | W121: =W120 -> 81.5 | X121: =X120 -> CLASSIFICADO
A122: GRUPOS, COLETIVOS, CREW | B122: =HYPERLINK("https://mapas.cultura.gov.br/inscricao/511945312","on-511945312") -> on-511945312 | C122: São Paulo | D122: SP | E122: SUDESTE | F122: Avaliador 1 | G122: 20 | H122: 4 | I122: 15 | J122: 10 | K122: 10 | L122: 10 | M122: 10 | N122: 5 | O122: 0 | P122: 0 | Q122: 3 | R122: 0 | S122: 0 | T122: 0 | U122: 87 | W122: =AVERAGE(U122,U123) -> 81.5 | X122: CLASSIFICADO
A123: GRUPOS, COLETIVOS, CREW | B123: on-511945312 | C123: São Paulo | D123: SP | E123: SUDESTE | F123: Avaliador 2 | G123: 15 | H123: 12 | I123: 12 | J123: 5 | K123: 8 | L123: 8 | M123: 8 | N123: 5 | O123: 0 | P123: 0 | Q123: 3 | R123: 0 | S123: 0 | T123: 0 | U123: 76 | W123: =W122 -> 81.5 | X123: =X122 -> CLASSIFICADO
A124: GRUPOS, COLETIVOS, CREW | B124: =HYPERLINK("https://mapas.cultura.gov.br/inscricao/247259402","on-247259402") -> on-247259402 | C124: São Paulo | D124: SP | E124: SUDESTE | F124: Avaliador 1 | G124: 20 | H124: 8 | I124: 15 | J124: 3 | K124: 10 | L124: 10 | M124: 10 | N124: 5 | O124: 0 | P124: 0 | Q124: 3 | R124: 0 | S124: 3 | T124: 0 | U124: 87 | W124: =AVERAGE(U124,U125) -> 81.5 | X124: CLASSIFICADO
A125: GRUPOS, COLETIVOS, CREW | B125: on-247259402 | C125: São Paulo | D125: SP | E125: SUDESTE | F125: Avaliador 2 | G125: 15 | H125: 12 | I125: 12 | J125: 5 | K125: 5 | L125: 8 | M125: 8 | N125: 5 | O125: 0 | P125: 0 | Q125: 3 | R125: 0 | S125: 3 | T125: 0 | U125: 76 | W125: =W124 -> 81.5 | X125: =X124 -> CLASSIFICADO
A126: GRUPOS, COLETIVOS, CREW | B126: =HYPERLINK("https://mapas.cultura.gov.br/inscricao/1223266139","on-1223266139") -> on-1223266139 | C126: Diadema | D126: SP | E126: SUDESTE | F126: Avaliador 1 | G126: 20 | H126: 8 | I126: 15 | J126: 0 | K126: 10 | L126: 10 | M126: 10 | N126: 3 | O126: 0 | P126: 0 | Q126: 3 | R126: 0 | S126: 0 | T126: 0 | U126: 79 | W126: =AVERAGE(U126,U127) -> 80.5 | X126: CLASSIFICADO
A127: GRUPOS, COLETIVOS, CREW | B127: on-1223266139 | C127: Diadema | D127: SP | E127: SUDESTE | F127: Avaliador 2 | G127: 15 | H127: 12 | I127: 12 | J127: 8 | K127: 8 | L127: 8 | M127: 8 | N127: 8 | O127: 0 | P127: 0 | Q127: 3 | R127: 0 | S127: 0 | T127: 0 | U127: 82 | W127: =W126 -> 80.5 | X127: =X126 -> CLASSIFICADO
A128: GRUPOS, COLETIVOS, CREW | B128: =HYPERLINK("https://mapas.cultura.gov.br/inscricao/1726149976","on-1726149976") -> on-1726149976 | C128: São Paulo | D128: SP | E128: SUDESTE | F128: Avaliador 1 | G128: 20 | H128: 8 | I128: 15 | J128: 5 | K128: 10 | L128: 10 | M128: 10 | N128: 5 | O128: 0 | P128: 0 | Q128: 3 | R128: 0 | S128: 3 | T128: 0 | U128: 89 | W128: =AVERAGE(U128,U129) -> 80.5 | X128: CLASSIFICADO
A129: GRUPOS, COLETIVOS, CREW | B129: on-1726149976 | C129: São Paulo | D129: SP | E129: SUDESTE | F129: Avaliador 2 | G129: 15 | H129: 8 | I129: 15 | J129: 5 | K129: 8 | L129: 8 | M129: 8 | N129: 5 | O129: 0 | P129: 0 | Q129: 0 | R129: 0 | S129: 0 | T129: 0 | U129: 72 | W129: =W128 -> 80.5 | X129: =X128 -> CLASSIFICADO
A130: GRUPOS, COLETIVOS, CREW | B130: =HYPERLINK("https://mapas.cultura.gov.br/inscricao/1130684750","on-1130684750") -> on-1130684750 | C130: Santa Luzia | D130: MG | E130: SUDESTE | F130: Avaliador 1 | G130: 15 | H130: 15 | I130: 15 | J130: 8 | K130: 8 | L130: 10 | M130: 10 | N130: 8 | O130: 0 | P130: 3 | Q130: 0 | R130: 0 | S130: 0 | T130: 0 | U130: =SUM(G130:T130) -> 92 | W130: =AVERAGE(U130,U131) -> 79 | X130: CLASSIFICADO
A131: GRUPOS, COLETIVOS, CREW | B131: =HYPERLINK("https://mapas.cultura.gov.br/inscricao/1130684750","on-1130684750") -> on-1130684750 | C131: Santa Luzia | D131: MG | E131: SUDESTE | F131: Avaliador 2 | G131: 10 | H131: 12 | I131: 12 | J131: 5 | K131: 3 | L131: 8 | M131: 8 | N131: 5 | O131: 0 | P131: 3 | Q131: 0 | R131: 0 | S131: 0 | T131: 0 | U131: 66 | W131: =W130 -> 79 | X131: =X130 -> CLASSIFICADO
A132: GRUPOS, COLETIVOS, CREW | B132: =HYPERLINK("https://mapas.cultura.gov.br/inscricao/1945883291","on-1945883291") -> on-1945883291 | C132: Belo Horizonte | D132: MG | E132: SUDESTE | F132: Avaliador 1 | G132: 15 | H132: 15 | I132: 15 | J132: 8 | K132: 8 | L132: 10 | M132: 8 | N132: 8 | O132: 0 | P132: 0 | Q132: 3 | R132: 0 | S132: 0 | T132: 0 | U132: 90 | W132: =AVERAGE(U132,U133) -> 78 | X132: CLASSIFICADO
A133: GRUPOS, COLETIVOS, CREW | B133: =HYPERLINK("https://mapas.cultura.gov.br/inscricao/1945883291","on-1945883291") -> on-1945883291 | C133: Belo Horizonte | D133: MG | E133: SUDESTE | F133: Avaliador 2 | G133: 5 | H133: 12 | I133: 12 | J133: 8 | K133: 5 | L133: 8 | M133: 5 | N133: 8 | O133: 0 | P133: 0 | Q133: 3 | R133: 0 | S133: 0 | T133: 0 | U133: 66 | W133: =W132 -> 78 | X133: =X132 -> CLASSIFICADO
A134: GRUPOS, COLETIVOS, CREW | B134: =HYPERLINK("https://mapas.cultura.gov.br/inscricao/1152046136","on-1152046136") -> on-1152046136 | C134: Sao Jose do Rio Pardo | D134: SP | E134: SUDESTE | F134: Avaliador 1 | G134: 15 | H134: 12 | I134: 12 | J134: 5 | K134: 5 | L134: 5 | M134: 8 | N134: 8 | O134: 0 | P134: 0 | Q134: 0 | R134: 0 | S134: 3 | T134: 0 | U134: 73 | W134: =AVERAGE(U134,U135) -> 77.5 | X134: CLASSIFICADO
A135: GRUPOS, COLETIVOS, CREW | B135: on-1152046136 | C135: Sao Jose do Rio Pardo | D135: SP | E135: SUDESTE | F135: Avaliador 2 | G135: 15 | H135: 12 | I135: 12 | J135: 5 | K135: 5 | L135: 8 | M135: 8 | N135: 8 | O135: 0 | P135: 3 | Q135: 3 | R135: 0 | S135: 3 | T135: 0 | U135: 82 | W135: =W134 -> 77.5 | X135: =X134 -> CLASSIFICADO
A136: GRUPOS, COLETIVOS, CREW | B136: =HYPERLINK("https://mapas.cultura.gov.br/inscricao/405442286","on-405442286") -> on-405442286 | C136: São Paulo | D136: SP | E136: SUDESTE | F136: Avaliador 1 | G136: 10 | H136: 8 | I136: 12 | J136: 8 | K136: 8 | L136: 8 | M136: 8 | N136: 10 | O136: 0 | P136: 0 | Q136: 0 | R136: 0 | S136: 3 | T136: 0 | U136: 75 | W136: =AVERAGE(U136,U137) -> 77 | X136: CLASSIFICADO
A137: GRUPOS, COLETIVOS, CREW | B137: on-405442286 | C137: São Paulo | D137: SP | E137: SUDESTE | F137: Avaliador 2 | G137: 10 | H137: 8 | I137: 15 | J137: 8 | K137: 8 | L137: 8 | M137: 5 | N137: 8 | O137: 0 | P137: 3 | Q137: 3 | R137: 0 | S137: 3 | T137: 0 | U137: 79 | W137: =W136 -> 77 | X137: =X136 -> CLASSIFICADO
A138: GRUPOS, COLETIVOS, CREW | B138: =HYPERLINK("https://mapas.cultura.gov.br/inscricao/1936434747","on-1936434747") -> on-1936434747 | C138: Teófilo Otoni | D138: MG | E138: SUDESTE | F138: Avaliador 1 | G138: 15 | H138: 15 | I138: 15 | J138: 5 | K138: 8 | L138: 10 | M138: 8 | N138: 5 | O138: 0 | P138: 0 | Q138: 0 | R138: 0 | S138: 0 | T138: 0 | U138: 81 | W138: =AVERAGE(U138,U139) -> 76.5 | X138: CLASSIFICADO
A139: GRUPOS, COLETIVOS, CREW | B139: =HYPERLINK("https://mapas.cultura.gov.br/inscricao/1936434747","on-1936434747") -> on-1936434747 | C139: Teófilo Otoni | D139: MG | E139: SUDESTE | F139: Avaliador 2 | G139: 15 | H139: 12 | I139: 12 | J139: 5 | K139: 5 | L139: 10 | M139: 8 | N139: 5 | O139: 0 | P139: 0 | Q139: 0 | R139: 0 | S139: 0 | T139: 0 | U139: 72 | W139: =W138 -> 76.5 | X139: =X138 -> CLASSIFICADO
A140: GRUPOS, COLETIVOS, CREW | B140: =HYPERLINK("https://mapas.cultura.gov.br/inscricao/308277076","on-308277076") -> on-308277076 | C140: Ilicínea | D140: MG | E140: SUDESTE | F140: Avaliador 1 | G140: 10 | H140: 12 | I140: 8 | J140: 5 | K140: 5 | L140: 10 | M140: 10 | N140: 10 | O140: 0 | P140: 0 | Q140: 3 | R140: 3 | S140: 0 | T140: 0 | U140: 76 | W140: =AVERAGE(U140,U141) -> 76 | X140: CLASSIFICADO
A141: GRUPOS, COLETIVOS, CREW | B141: =HYPERLINK("https://mapas.cultura.gov.br/inscricao/308277076","on-308277076") -> on-308277076 | C141: Ilicínea | D141: MG | E141: SUDESTE | F141: Avaliador 2 | G141: 10 | H141: 12 | I141: 8 | J141: 5 | K141: 5 | L141: 10 | M141: 10 | N141: 10 | O141: 0 | P141: 0 | Q141: 3 | R141: 3 | S141: 0 | T141: 0 | U141: 76 | W141: =W140 -> 76 | X141: =X140 -> CLASSIFICADO
A142: GRUPOS, COLETIVOS, CREW | B142: =HYPERLINK("https://mapas.cultura.gov.br/inscricao/255361991","on-255361991") -> on-255361991 | C142: Monte Alto | D142: SP | E142: SUDESTE | F142: Avaliador 1 | G142: 20 | H142: 8 | I142: 15 | J142: 3 | K142: 10 | L142: 10 | M142: 10 | N142: 3 | O142: 0 | P142: 0 | Q142: 0 | R142: 0 | S142: 0 | T142: 0 | U142: 79 | W142: =AVERAGE(U142,U143) -> 74.5 | X142: CLASSIFICADO
A143: GRUPOS, COLETIVOS, CREW | B143: on-255361991 | C143: Monte Alto | D143: SP | E143: SUDESTE | F143: Avaliador 2 | G143: 15 | H143: 12 | I143: 12 | J143: 5 | K143: 5 | L143: 8 | M143: 8 | N143: 5 | O143: 0 | P143: 0 | Q143: 0 | R143: 0 | S143: 0 | T143: 0 | U143: 70 | W143: =W142 -> 74.5 | X143: =X142 -> CLASSIFICADO
A144: GRUPOS, COLETIVOS, CREW | B144: =HYPERLINK("https://mapas.cultura.gov.br/inscricao/754185489","on-754185489") -> on-754185489 | C144: Ibirité | D144: MG | E144: SUDESTE | F144: Avaliador 1 | G144: 15 | H144: 15 | I144: 15 | J144: 5 | K144: 5 | L144: 10 | M144: 10 | N144: 8 | O144: 0 | P144: 0 | Q144: 3 | R144: 0 | S144: 0 | T144: 0 | U144: 86 | W144: =AVERAGE(U144,U145) -> 73 | X144: CLASSIFICADO
A145: GRUPOS, COLETIVOS, CREW | B145: =HYPERLINK("https://mapas.cultura.gov.br/inscricao/754185489","on-754185489") -> on-754185489 | C145: Ibirité | D145: MG | E145: SUDESTE | F145: Avaliador 2 | G145: 10 | H145: 12 | I145: 8 | J145: 3 | K145: 3 | L145: 8 | M145: 8 | N145: 5 | O145: 0 | P145: 0 | Q145: 3 | R145: 0 | S145: 0 | T145: 0 | U145: 60 | W145: =W144 -> 73 | X145: =X144 -> CLASSIFICADO
A146: GRUPOS, COLETIVOS, CREW | B146: =HYPERLINK("https://mapas.cultura.gov.br/inscricao/1859630488","on-1859630488") -> on-1859630488 | C146: Guarulhos | D146: SP | E146: SUDESTE | F146: Avaliador 1 | G146: 15 | H146: 8 | I146: 12 | J146: 5 | K146: 8 | L146: 8 | M146: 5 | N146: 5 | O146: 0 | P146: 0 | Q146: 0 | R146: 0 | S146: 0 | T146: 0 | U146: 66 | W146: =AVERAGE(U146,U147) -> 72 | X146: CLASSIFICADO
A147: GRUPOS, COLETIVOS, CREW | B147: =HYPERLINK("https://mapas.cultura.gov.br/inscricao/1859630488","on-1859630488") -> on-1859630488 | C147: Guarulhos | D147: SP | E147: SUDESTE | F147: Avaliador 2 | G147: 20 | H147: 15 | I147: 12 | J147: 5 | K147: 5 | L147: 8 | M147: 8 | N147: 5 | O147: 0 | P147: 0 | Q147: 0 | R147: 0 | S147: 0 | T147: 0 | U147: 78 | W147: =W146 -> 72 | X147: =X146 -> CLASSIFICADO
A148: GRUPOS, COLETIVOS, CREW | B148: =HYPERLINK("https://mapas.cultura.gov.br/inscricao/64389794","on-64389794") -> on-64389794 | C148: Rio de Janeiro | D148: RJ | E148: SUDESTE | F148: Avaliador 1 | G148: 15 | H148: 8 | I148: 12 | J148: 8 | K148: 8 | L148: 5 | M148: 5 | N148: 8 | O148: 0 | P148: 0 | Q148: 3 | R148: 0 | S148: 0 | T148: 0 | U148: 72 | W148: =AVERAGE(U148,U149) -> 72 | X148: CLASSIFICADO
A149: GRUPOS, COLETIVOS, CREW | B149: =HYPERLINK("https://mapas.cultura.gov.br/inscricao/64389794","on-64389794") -> on-64389794 | C149: Rio de Janeiro | D149: RJ | E149: SUDESTE | F149: Avaliador 2 | G149: 15 | H149: 8 | I149: 12 | J149: 8 | K149: 8 | L149: 5 | M149: 5 | N149: 8 | O149: 0 | P149: 0 | Q149: 3 | R149: 0 | S149: 0 | T149: 0 | U149: 72 | W149: =W148 -> 72 | X149: =X148 -> CLASSIFICADO
A150: GRUPOS, COLETIVOS, CREW | B150: =HYPERLINK("https://mapas.cultura.gov.br/inscricao/1357758477","on-1357758477") -> on-1357758477 | C150: Juiz de Fora | D150: MG | E150: SUDESTE | F150: Avaliador 1 | G150: 15 | H150: 15 | I150: 15 | J150: 5 | K150: 8 | L150: 10 | M150: 8 | N150: 5 | O150: 0 | P150: 0 | Q150: 3 | R150: 0 | S150: 0 | T150: 0 | U150: 84 | W150: =AVERAGE(U150,U151) -> 71.5 | X150: CLASSIFICADO
A151: GRUPOS, COLETIVOS, CREW | B151: =HYPERLINK("https://mapas.cultura.gov.br/inscricao/1357758477","on-1357758477") -> on-1357758477 | C151: Juiz de Fora | D151: MG | E151: SUDESTE | F151: Avaliador 2 | G151: 10 | H151: 12 | I151: 12 | J151: 3 | K151: 5 | L151: 8 | M151: 3 | N151: 3 | O151: 0 | P151: 0 | Q151: 3 | R151: 0 | S151: 0 | T151: 0 | U151: 59 | W151: =W150 -> 71.5 | X151: =X150 -> CLASSIFICADO
A152: GRUPOS, COLETIVOS, CREW | B152: =HYPERLINK("https://mapas.cultura.gov.br/inscricao/983226434","on-983226434") -> on-983226434 | C152: São Paulo | D152: SP | E152: SUDESTE | F152: Avaliador 1 | G152: 20 | H152: 12 | I152: 15 | J152: 3 | K152: 10 | L152: 10 | M152: 10 | N152: 5 | O152: 0 | P152: 0 | Q152: 0 | R152: 0 | S152: 0 | T152: 0 | U152: 85 | W152: =AVERAGE(U152,U153) -> 71.5 | X152: CLASSIFICADO
A153: GRUPOS, COLETIVOS, CREW | B153: on-983226434 | C153: São Paulo | D153: SP | E153: SUDESTE | F153: Avaliador 2 | G153: 15 | H153: 12 | I153: 8 | J153: 3 | K153: 5 | L153: 5 | M153: 5 | N153: 5 | O153: 0 | P153: 0 | Q153: 0 | R153: 0 | S153: 0 | T153: 0 | U153: 58 | W153: =W152 -> 71.5 | X153: =X152 -> CLASSIFICADO
A154: GRUPOS, COLETIVOS, CREW | B154: =HYPERLINK("https://mapas.cultura.gov.br/inscricao/1015588984","on-1015588984") -> on-1015588984 | C154: Caçapava | D154: SP | E154: SUDESTE | F154: Avaliador 1 | G154: 20 | H154: 12 | I154: 12 | J154: 5 | K154: 3 | L154: 10 | M154: 5 | N154: 5 | O154: 0 | P154: 0 | Q154: 0 | R154: 0 | S154: 0 | T154: 0 | U154: 72 | W154: =AVERAGE(U154,U155) -> 70.5 | X154: CLASSIFICADO
A155: GRUPOS, COLETIVOS, CREW | B155: on-1015588984 | C155: Caçapava | D155: SP | E155: SUDESTE | F155: Avaliador 2 | G155: 15 | H155: 8 | I155: 12 | J155: 5 | K155: 8 | L155: 8 | M155: 5 | N155: 8 | O155: 0 | P155: 0 | Q155: 0 | R155: 0 | S155: 0 | T155: 0 | U155: 69 | W155: =W154 -> 70.5 | X155: =X154 -> CLASSIFICADO
A156: GRUPOS, COLETIVOS, CREW | B156: =HYPERLINK("https://mapas.cultura.gov.br/inscricao/1466143875","on-1466143875") -> on-1466143875 | C156: Campinas | D156: SP | E156: SUDESTE | F156: Avaliador 1 | G156: 20 | H156: 4 | I156: 15 | J156: 3 | K156: 10 | L156: 10 | M156: 10 | N156: 3 | O156: 0 | P156: 0 | Q156: 0 | R156: 0 | S156: 3 | T156: 0 | U156: 78 | W156: =AVERAGE(U156,U157) -> 69.5 | X156: CLASSIFICADO
A157: GRUPOS, COLETIVOS, CREW | B157: on-1466143875 | C157: Campinas | D157: SP | E157: SUDESTE | F157: Avaliador 2 | G157: 10 | H157: 12 | I157: 12 | J157: 0 | K157: 8 | L157: 8 | M157: 8 | N157: 3 | O157: 0 | P157: 0 | Q157: 0 | R157: 0 | S157: 0 | T157: 0 | U157: 61 | W157: =W156 -> 69.5 | X157: =X156 -> CLASSIFICADO
A158: GRUPOS, COLETIVOS, CREW | B158: =HYPERLINK("https://mapas.cultura.gov.br/inscricao/1769181717","on-1769181717") -> on-1769181717 | C158: Patos de Minas | D158: MG | E158: SUDESTE | F158: Avaliador 1 | G158: 10 | H158: 8 | I158: 8 | J158: 5 | K158: 5 | L158: 10 | M158: 10 | N158: 10 | O158: 0 | P158: 3 | Q158: 0 | R158: 0 | S158: 0 | T158: 0 | U158: 69 | W158: =AVERAGE(U158,U159) -> 69 | X158: CLASSIFICADO
A159: GRUPOS, COLETIVOS, CREW | B159: =HYPERLINK("https://mapas.cultura.gov.br/inscricao/1769181717","on-1769181717") -> on-1769181717 | C159: Patos de Minas | D159: MG | E159: SUDESTE | F159: Avaliador 2 | G159: 10 | H159: 8 | I159: 8 | J159: 5 | K159: 5 | L159: 10 | M159: 10 | N159: 10 | O159: 0 | P159: 3 | Q159: 0 | R159: 0 | S159: 0 | T159: 0 | U159: 69 | W159: =W158 -> 69 | X159: =X158 -> CLASSIFICADO
A160: GRUPOS, COLETIVOS, CREW | B160: =HYPERLINK("https://mapas.cultura.gov.br/inscricao/556106702","on-556106702") -> on-556106702 | C160: Campos dos Goytacazes | D160: RJ | E160: SUDESTE | F160: Avaliador 1 | G160: 15 | H160: 12 | I160: 8 | J160: 5 | K160: 5 | L160: 8 | M160: 5 | N160: 8 | O160: 0 | P160: 0 | Q160: 3 | R160: 0 | S160: 0 | T160: 0 | U160: 69 | W160: =AVERAGE(U160,U161) -> 69 | X160: CLASSIFICADO
A161: GRUPOS, COLETIVOS, CREW | B161: =HYPERLINK("https://mapas.cultura.gov.br/inscricao/556106702","on-556106702") -> on-556106702 | C161: Campos dos Goytacazes | D161: RJ | E161: SUDESTE | F161: Avaliador 2 | G161: 15 | H161: 12 | I161: 8 | J161: 5 | K161: 5 | L161: 8 | M161: 5 | N161: 8 | O161: 0 | P161: 0 | Q161: 3 | R161: 0 | S161: 0 | T161: 0 | U161: 69 | W161: =W160 -> 69 | X161: =X160 -> CLASSIFICADO
A162: GRUPOS, COLETIVOS, CREW | B162: =HYPERLINK("https://mapas.cultura.gov.br/inscricao/1891940435","on-1891940435") -> on-1891940435 | C162: Cataguases | D162: MG | E162: SUDESTE | F162: Avaliador 1 | G162: 15 | H162: 12 | I162: 12 | J162: 3 | K162: 5 | L162: 10 | M162: 10 | N162: 5 | O162: 0 | P162: 0 | Q162: 3 | R162: 0 | S162: 3 | T162: 0 | U162: 78 | W162: =AVERAGE(U162,U163) -> 67.5 | X162: CLASSIFICADO
A163: GRUPOS, COLETIVOS, CREW | B163: =HYPERLINK("https://mapas.cultura.gov.br/inscricao/1891940435","on-1891940435") -> on-1891940435 | C163: Cataguases | D163: MG | E163: SUDESTE | F163: Avaliador 2 | G163: 10 | H163: 8 | I163: 8 | J163: 5 | K163: 5 | L163: 5 | M163: 5 | N163: 5 | O163: 0 | P163: 0 | Q163: 3 | R163: 0 | S163: 3 | T163: 0 | U163: 57 | W163: =W162 -> 67.5 | X163: =X162 -> CLASSIFICADO
A164: GRUPOS, COLETIVOS, CREW | B164: =HYPERLINK("https://mapas.cultura.gov.br/inscricao/2137103927","on-2137103927") -> on-2137103927 | C164: Rio de Janeiro | D164: RJ | E164: SUDESTE | F164: Avaliador 1 | G164: 10 | H164: 12 | I164: 12 | J164: 5 | K164: 5 | L164: 5 | M164: 5 | N164: 8 | O164: 0 | P164: 0 | Q164: 3 | R164: 0 | S164: 0 | T164: 0 | U164: 65 | W164: =AVERAGE(U164,U165) -> 67.5 | X164: CLASSIFICADO
A165: GRUPOS, COLETIVOS, CREW | B165: =HYPERLINK("https://mapas.cultura.gov.br/inscricao/2137103927","on-2137103927") -> on-2137103927 | C165: Rio de Janeiro | D165: RJ | E165: SUDESTE | F165: Avaliador 2 | G165: 15 | H165: 12 | I165: 12 | J165: 5 | K165: 5 | L165: 5 | M165: 5 | N165: 8 | O165: 0 | P165: 0 | Q165: 3 | R165: 0 | S165: 0 | T165: 0 | U165: 70 | W165: =W164 -> 67.5 | X165: =X164 -> CLASSIFICADO
A166: GRUPOS, COLETIVOS, CREW | B166: =HYPERLINK("https://mapas.cultura.gov.br/inscricao/435275318","on-435275318") -> on-435275318 | C166: São Paulo | D166: SP | E166: SUDESTE | F166: Avaliador 1 | G166: 15 | H166: 8 | I166: 12 | J166: 5 | K166: 5 | L166: 5 | M166: 5 | N166: 5 | O166: 0 | P166: 0 | Q166: 3 | R166: 0 | S166: 0 | T166: 0 | U166: 63 | W166: =AVERAGE(U166,U167) -> 67 | X166: CLASSIFICADO
A167: GRUPOS, COLETIVOS, CREW | B167: on-435275318 | C167: São Paulo | D167: SP | E167: SUDESTE | F167: Avaliador 2 | G167: 15 | H167: 12 | I167: 12 | J167: 3 | K167: 8 | L167: 8 | M167: 5 | N167: 8 | O167: 0 | P167: 0 | Q167: 0 | R167: 0 | S167: 0 | T167: 0 | U167: 71 | W167: =W166 -> 67 | X167: =X166 -> CLASSIFICADO
A168: GRUPOS, COLETIVOS, CREW | B168: =HYPERLINK("https://mapas.cultura.gov.br/inscricao/996138968","on-996138968") -> on-996138968 | C168: Guarulhos | D168: SP | E168: SUDESTE | F168: Avaliador 1 | G168: 15 | H168: 4 | I168: 12 | J168: 3 | K168: 8 | L168: 8 | M168: 8 | N168: 0 | O168: 0 | P168: 3 | Q168: 0 | R168: 0 | S168: 0 | T168: 0 | U168: 61 | W168: =AVERAGE(U168,U169) -> 66.5 | X168: CLASSIFICADO
A169: GRUPOS, COLETIVOS, CREW | B169: on-996138968 | C169: Guarulhos | D169: SP | E169: SUDESTE | F169: Avaliador 2 | G169: 10 | H169: 12 | I169: 15 | J169: 8 | K169: 8 | L169: 8 | M169: 8 | N169: 0 | O169: 0 | P169: 3 | Q169: 0 | R169: 0 | S169: 0 | T169: 0 | U169: 72 | W169: =W168 -> 66.5 | X169: =X168 -> CLASSIFICADO
A170: GRUPOS, COLETIVOS, CREW | B170: =HYPERLINK("https://mapas.cultura.gov.br/inscricao/1134595289","on-1134595289") -> on-1134595289 | C170: Rio de Janeiro | D170: RJ | E170: SUDESTE | F170: Avaliador 1 | G170: 20 | H170: 12 | I170: 8 | J170: 3 | K170: 5 | L170: 8 | M170: 5 | N170: 0 | O170: 0 | P170: 0 | Q170: 3 | R170: 0 | S170: 0 | T170: 0 | U170: 64 | W170: =AVERAGE(U170,U171) -> 64 | X170: CLASSIFICADO
A171: GRUPOS, COLETIVOS, CREW | B171: =HYPERLINK("https://mapas.cultura.gov.br/inscricao/1134595289","on-1134595289") -> on-1134595289 | C171: Rio de Janeiro | D171: RJ | E171: SUDESTE | F171: Avaliador 2 | G171: 20 | H171: 12 | I171: 8 | J171: 3 | K171: 5 | L171: 8 | M171: 5 | N171: 0 | O171: 0 | P171: 0 | Q171: 3 | R171: 0 | S171: 0 | T171: 0 | U171: 64 | W171: =W170 -> 64 | X171: =X170 -> CLASSIFICADO
A172: GRUPOS, COLETIVOS, CREW | B172: =HYPERLINK("https://mapas.cultura.gov.br/inscricao/1624035899","on-1624035899") -> on-1624035899 | C172: São Gonçalo | D172: RJ | E172: SUDESTE | F172: Avaliador 1 | G172: 10 | H172: 8 | I172: 8 | J172: 0 | K172: 10 | L172: 10 | M172: 5 | N172: 5 | O172: 0 | P172: 0 | Q172: 3 | R172: 3 | S172: 0 | T172: 0 | U172: 62 | W172: =AVERAGE(U172,U173) -> 62 | X172: CLASSIFICADO
A173: GRUPOS, COLETIVOS, CREW | B173: =HYPERLINK("https://mapas.cultura.gov.br/inscricao/1624035899","on-1624035899") -> on-1624035899 | C173: São Gonçalo | D173: RJ | E173: SUDESTE | F173: Avaliador 2 | G173: 10 | H173: 8 | I173: 8 | J173: 0 | K173: 10 | L173: 10 | M173: 5 | N173: 5 | O173: 0 | P173: 0 | Q173: 3 | R173: 3 | S173: 0 | T173: 0 | U173: 62 | W173: =W172 -> 62 | X173: =X172 -> CLASSIFICADO
A174: GRUPOS, COLETIVOS, CREW | B174: =HYPERLINK("https://mapas.cultura.gov.br/inscricao/2145100751","on-2145100751") -> on-2145100751 | C174: Contagem | D174: MG | E174: SUDESTE | F174: Avaliador 1 | G174: 10 | H174: 12 | I174: 12 | J174: 5 | K174: 3 | L174: 10 | M174: 5 | N174: 8 | O174: 0 | P174: 3 | Q174: 0 | R174: 0 | S174: 3 | T174: 0 | U174: 71 | W174: =AVERAGE(U174,U175) -> 61 | X174: CLASSIFICADO
A175: GRUPOS, COLETIVOS, CREW | B175: =HYPERLINK("https://mapas.cultura.gov.br/inscricao/2145100751","on-2145100751") -> on-2145100751 | C175: Contagem | D175: MG | E175: SUDESTE | F175: Avaliador 2 | G175: 5 | H175: 8 | I175: 8 | J175: 5 | K175: 3 | L175: 8 | M175: 3 | N175: 5 | O175: 0 | P175: 3 | Q175: 0 | R175: 0 | S175: 3 | T175: 0 | U175: 51 | W175: =W174 -> 61 | X175: =X174 -> CLASSIFICADO
A176: GRUPOS, COLETIVOS, CREW | B176: =HYPERLINK("https://mapas.cultura.gov.br/inscricao/1994313649","on-1994313649") -> on-1994313649 | C176: São Paulo | D176: SP | E176: SUDESTE | F176: Avaliador 1 | G176: 20 | H176: 0 | I176: 15 | J176: 0 | K176: 10 | L176: 10 | M176: 10 | N176: 0 | O176: 0 | P176: 0 | Q176: 3 | R176: 0 | S176: 0 | T176: 0 | U176: 68 | W176: =AVERAGE(U176,U177) -> 61 | X176: CLASSIFICADO
A177: GRUPOS, COLETIVOS, CREW | B177: on-1994313649 | C177: São Paulo | D177: SP | E177: SUDESTE | F177: Avaliador 2 | G177: 15 | H177: 8 | I177: 8 | J177: 5 | K177: 5 | L177: 5 | M177: 5 | N177: 0 | O177: 0 | P177: 0 | Q177: 3 | R177: 0 | S177: 0 | T177: 0 | U177: 54 | W177: =W176 -> 61 | X177: =X176 -> CLASSIFICADO
A178: GRUPOS, COLETIVOS, CREW | B178: =HYPERLINK("https://mapas.cultura.gov.br/inscricao/668059913","on-668059913") -> on-668059913 | C178: Peruíbe | D178: SP | E178: SUDESTE | F178: Avaliador 1 | G178: 15 | H178: 4 | I178: 12 | J178: 3 | K178: 8 | L178: 8 | M178: 8 | N178: 3 | O178: 0 | P178: 0 | Q178: 3 | R178: 0 | S178: 0 | T178: 0 | U178: 64 | W178: =AVERAGE(U178,U179) -> 60.5 | X178: CLASSIFICADO
A179: GRUPOS, COLETIVOS, CREW | B179: on-668059913 | C179: Peruíbe | D179: SP | E179: SUDESTE | F179: Avaliador 2 | G179: 15 | H179: 4 | I179: 8 | J179: 3 | K179: 8 | L179: 8 | M179: 5 | N179: 3 | O179: 0 | P179: 0 | Q179: 3 | R179: 0 | S179: 0 | T179: 0 | U179: 57 | W179: =W178 -> 60.5 | X179: =X178 -> CLASSIFICADO
A180: GRUPOS, COLETIVOS, CREW | B180: =HYPERLINK("https://mapas.cultura.gov.br/inscricao/21922725","on-21922725") -> on-21922725 | C180: Volta Redonda | D180: RJ | E180: SUDESTE | F180: Avaliador 1 | G180: 15 | H180: 8 | I180: 8 | J180: 5 | K180: 3 | L180: 5 | M180: 5 | N180: 5 | O180: 0 | P180: 3 | Q180: 0 | R180: 0 | S180: 3 | T180: 0 | U180: 60 | W180: =AVERAGE(U180,U181) -> 60 | X180: CLASSIFICADO
A181: GRUPOS, COLETIVOS, CREW | B181: =HYPERLINK("https://mapas.cultura.gov.br/inscricao/21922725","on-21922725") -> on-21922725 | C181: Volta Redonda | D181: RJ | E181: SUDESTE | F181: Avaliador 2 | G181: 15 | H181: 8 | I181: 8 | J181: 5 | K181: 3 | L181: 5 | M181: 5 | N181: 5 | O181: 0 | P181: 3 | Q181: 0 | R181: 0 | S181: 3 | T181: 0 | U181: 60 | W181: =W180 -> 60 | X181: =X180 -> CLASSIFICADO
A182: GRUPOS, COLETIVOS, CREW | B182: =HYPERLINK("https://mapas.cultura.gov.br/inscricao/739878052","on-739878052") -> on-739878052 | C182: Franca | D182: SP | E182: SUDESTE | F182: Avaliador 1 | G182: 20 | H182: 12 | I182: 15 | J182: 10 | K182: 10 | L182: 10 | M182: 10 | N182: 10 | O182: 0 | P182: 3 | Q182: 3 | R182: 0 | S182: 0 | T182: 0 | U182: 103 | V182: DESCLASSIFICADA COM BASE NO ITEM 7.10 | W182: =AVERAGE(U182,U183) -> 104.5 | X182: DESCLASSIFICADO
A183: GRUPOS, COLETIVOS, CREW | B183: on-739878052 | C183: Franca | D183: SP | E183: SUDESTE | F183: Avaliador 2 | G183: 20 | H183: 15 | I183: 15 | J183: 10 | K183: 10 | L183: 10 | M183: 10 | N183: 10 | O183: 0 | P183: 3 | Q183: 3 | R183: 0 | S183: 0 | T183: 0 | U183: 106 | W183: =W182 -> 104.5
A184: GRUPOS, COLETIVOS, CREW | B184: =HYPERLINK("https://mapas.cultura.gov.br/inscricao/995986926","on-995986926") -> on-995986926 | C184: São Paulo | D184: SP | E184: SUDESTE | F184: Avaliador 1 | G184: 20 | H184: 12 | I184: 15 | J184: 8 | K184: 10 | L184: 10 | M184: 10 | N184: 10 | O184: 3 | P184: 0 | Q184: 0 | R184: 0 | S184: 0 | T184: 0 | U184: 98 | V184: DESCLASSIFICADA COM BASE NO ITEM 7.10 | W184: =AVERAGE(U184,U185) -> 97.5 | X184: DESCLASSIFICADO
A185: GRUPOS, COLETIVOS, CREW | B185: on-995986926 | C185: São Paulo | D185: SP | E185: SUDESTE | F185: Avaliador 2 | G185: 20 | H185: 12 | I185: 15 | J185: 8 | K185: 10 | L185: 8 | M185: 10 | N185: 8 | O185: 3 | P185: 0 | Q185: 3 | R185: 0 | S185: 0 | T185: 0 | U185: 97 | W185: =W184 -> 97.5
A186: GRUPOS, COLETIVOS, CREW | B186: =HYPERLINK("https://mapas.cultura.gov.br/inscricao/1091408629","on-1091408629") -> on-1091408629 | C186: Sertãozinho | D186: SP | E186: SUDESTE | F186: Avaliador 1 | G186: 20 | H186: 15 | I186: 15 | J186: 8 | K186: 8 | L186: 8 | M186: 8 | N186: 8 | O186: 0 | P186: 0 | Q186: 0 | R186: 0 | S186: 0 | T186: 0 | U186: 90 | V186: DESCLASSIFICADA COM BASE NO ITEM 7.10 | W186: =AVERAGE(U186,U187) -> 91.5 | X186: DESCLASSIFICADO
A187: GRUPOS, COLETIVOS, CREW | B187: on-1091408629 | C187: Sertãozinho | D187: SP | E187: SUDESTE | F187: Avaliador 2 | G187: 20 | H187: 15 | I187: 15 | J187: 8 | K187: 8 | L187: 8 | M187: 8 | N187: 8 | O187: 0 | P187: 0 | Q187: 3 | R187: 0 | S187: 0 | T187: 0 | U187: 93 | W187: =W186 -> 91.5
A188: GRUPOS, COLETIVOS, CREW | B188: =HYPERLINK("https://mapas.cultura.gov.br/inscricao/1946997876","on-1946997876") -> on-1946997876 | C188: São Paulo | D188: SP | E188: SUDESTE | F188: Avaliador 1 | G188: 20 | H188: 4 | I188: 15 | J188: 5 | K188: 10 | L188: 10 | M188: 10 | N188: 5 | O188: 0 | P188: 0 | Q188: 0 | R188: 0 | S188: 3 | T188: 0 | U188: 82 | V188: DESCLASSIFICADA COM BASE NO ITEM 7.10 | W188: =AVERAGE(U188,U189) -> 91.5 | X188: DESCLASSIFICADO
A189: GRUPOS, COLETIVOS, CREW | B189: on-1946997876 | C189: São Paulo | D189: SP | E189: SUDESTE | F189: Avaliador 2 | G189: 20 | H189: 15 | I189: 15 | J189: 8 | K189: 10 | L189: 10 | M189: 10 | N189: 10 | O189: 0 | P189: 0 | Q189: 0 | R189: 0 | S189: 3 | T189: 0 | U189: 101 | W189: =W188 -> 91.5
A190: GRUPOS, COLETIVOS, CREW | B190: =HYPERLINK("https://mapas.cultura.gov.br/inscricao/917755930","on-B23917755930") -> on-B23917755930 | C190: São José dos Campos | D190: SP | E190: SUDESTE | F190: Avaliador 1 | G190: 15 | H190: 12 | I190: 12 | J190: 10 | K190: 8 | L190: 10 | M190: 10 | N190: 10 | O190: 0 | P190: 3 | Q190: 3 | R190: 0 | S190: 3 | T190: 0 | U190: 96 | V190: DESCLASSIFICADO COM BASE NO ITEM 7.10 | W190: =AVERAGE(U190,U191) -> 89.5 | X190: DESCLASSIFICADO
A191: GRUPOS, COLETIVOS, CREW | B191: =HYPERLINK("https://mapas.cultura.gov.br/inscricao/917755930","on-B23917755930") -> on-B23917755930 | C191: São José dos Campos | D191: SP | E191: SUDESTE | F191: Avaliador 2 | G191: 15 | H191: 12 | I191: 8 | J191: 8 | K191: 8 | L191: 8 | M191: 5 | N191: 10 | O191: 0 | P191: 3 | Q191: 3 | R191: 0 | S191: 3 | T191: 0 | U191: 83 | W191: =W190 -> 89.5
A192: GRUPOS, COLETIVOS, CREW | B192: =HYPERLINK("https://mapas.cultura.gov.br/inscricao/1700783804","on-1700783804") -> on-1700783804 | C192: São Paulo | D192: SP | E192: SUDESTE | F192: Avaliador 1 | G192: 20 | H192: 8 | I192: 15 | J192: 3 | K192: 10 | L192: 10 | M192: 10 | N192: 3 | O192: 0 | P192: 0 | Q192: 0 | R192: 0 | S192: 0 | T192: 0 | U192: 79 | V192: DESCLASSIFICADA COM BASE NO ITEM 7.10 | W192: =AVERAGE(U192,U193) -> 87.5 | X192: DESCLASSIFICADO
A193: GRUPOS, COLETIVOS, CREW | B193: on-1700783804 | C193: São Paulo | D193: SP | E193: SUDESTE | F193: Avaliador 2 | G193: 20 | H193: 15 | I193: 15 | J193: 10 | K193: 8 | L193: 10 | M193: 8 | N193: 10 | O193: 0 | P193: 0 | Q193: 0 | R193: 0 | S193: 0 | T193: 0 | U193: 96 | W193: =W192 -> 87.5
A194: GRUPOS, COLETIVOS, CREW | B194: =HYPERLINK("https://mapas.cultura.gov.br/inscricao/486911013","on-486911013") -> on-486911013 | C194: São Paulo | D194: SP | E194: SUDESTE | F194: Avaliador 1 | G194: 20 | H194: 4 | I194: 15 | J194: 10 | K194: 10 | L194: 10 | M194: 10 | N194: 3 | O194: 0 | P194: 3 | Q194: 3 | R194: 3 | S194: 3 | T194: 0 | U194: =SUM(G194:T194) -> 94 | V194: DESCLASSIFICADA COM BASE NO ITEM 7.10 | W194: =AVERAGE(U194,U195) -> 85.5 | X194: DESCLASSIFICADO
A195: GRUPOS, COLETIVOS, CREW | B195: on-486911013 | C195: São Paulo | D195: SP | E195: SUDESTE | F195: Avaliador 2 | G195: 15 | H195: 8 | I195: 12 | J195: 10 | K195: 8 | L195: 8 | M195: 5 | N195: 5 | O195: 0 | P195: 0 | Q195: 3 | R195: 0 | S195: 3 | T195: 0 | U195: 77 | W195: =W194 -> 85.5
A196: GRUPOS, COLETIVOS, CREW | B196: =HYPERLINK("https://mapas.cultura.gov.br/inscricao/1395782079","on-1395782079") -> on-1395782079 | C196: São Paulo | D196: SP | E196: SUDESTE | F196: Avaliador 1 | G196: 20 | H196: 8 | I196: 15 | J196: 5 | K196: 10 | L196: 10 | M196: 10 | N196: 5 | O196: 0 | P196: 0 | Q196: 3 | R196: 0 | S196: 0 | T196: 3 | U196: 89 | V196: DESCLASSIFICADA COM BASE NO ITEM 7.10 | W196: =AVERAGE(U196,U197) -> 82 | X196: DESCLASSIFICADO
A197: GRUPOS, COLETIVOS, CREW | B197: on-1395782079 | C197: São Paulo | D197: SP | E197: SUDESTE | F197: Avaliador 2 | G197: 15 | H197: 8 | I197: 12 | J197: 5 | K197: 8 | L197: 8 | M197: 8 | N197: 8 | O197: 0 | P197: 0 | Q197: 3 | R197: 0 | S197: 0 | T197: 0 | U197: 75 | W197: =W196 -> 82
A198: GRUPOS, COLETIVOS, CREW | B198: =HYPERLINK("https://mapas.cultura.gov.br/inscricao/411744044","on-411744044") -> on-411744044 | C198: Hortolândia | D198: SP | E198: SUDESTE | F198: Avaliador 1 | G198: 15 | H198: 12 | I198: 12 | J198: 8 | K198: 8 | L198: 8 | M198: 8 | N198: 5 | O198: 0 | P198: 0 | Q198: 3 | R198: 0 | S198: 0 | T198: 0 | U198: 79 | V198: DESCLASSIFICADO COM BASE NO ITEM 7.10 | W198: =AVERAGE(U198,U199) -> 80.5 | X198: DESCLASSIFICADO
A199: GRUPOS, COLETIVOS, CREW | B199: =HYPERLINK("https://mapas.cultura.gov.br/inscricao/411744044","on-411744044") -> on-411744044 | C199: Hortolândia | D199: SP | E199: SUDESTE | F199: Avaliador 2 | G199: 15 | H199: 15 | I199: 15 | J199: 5 | K199: 8 | L199: 8 | M199: 5 | N199: 8 | O199: 0 | P199: 0 | Q199: 3 | R199: 0 | S199: 0 | T199: 0 | U199: 82 | W199: =W198 -> 80.5
A200: GRUPOS, COLETIVOS, CREW | B200: =HYPERLINK("https://mapas.cultura.gov.br/inscricao/21424295","on-21424295") -> on-21424295 | C200: São Paulo | D200: SP | E200: SUDESTE | F200: Avaliador 1 | G200: 20 | H200: 4 | I200: 15 | J200: 10 | K200: 10 | L200: 10 | M200: 10 | N200: 3 | O200: 0 | P200: 0 | Q200: 0 | R200: 0 | S200: 3 | T200: 0 | U200: 85 | V200: DESCLASSIFICADA COM BASE NO ITEM 7.10 | W200: =AVERAGE(U200,U201) -> 79.5 | X200: DESCLASSIFICADO
... 153 more rows

Sheet INSTITUIÇÕES SEM FINS LUCRATIVO
A1: CATEGORIA | B1: INSCRIÇÃO | C1: CIDADE | D1: UF | E1: REGIÃO | F1: AVALIADOR | G1: CRITÉRIOS DE AVALIAÇÃO E SELEÇÃO 1 | H1: CRITÉRIOS DE AVALIAÇÃO E SELEÇÃO 2 | I1: CRITÉRIOS DE AVALIAÇÃO E SELEÇÃO 3 | J1: CRITÉRIOS DE AVALIAÇÃO E SELEÇÃO 4 | K1: CRITÉRIOS DE AVALIAÇÃO E SELEÇÃO 5 | L1: CRITÉRIOS DE AVALIAÇÃO E SELEÇÃO 6 | M1: CRITÉRIOS DE AVALIAÇÃO E SELEÇÃO 7 | N1: CRITÉRIOS DE AVALIAÇÃO E SELEÇÃO 8 | O1: PONTUAÇÃO EXTRA - Pessoa com deficiência | P1: PONTUAÇÃO EXTRA - Mulher | Q1: PONTUAÇÃO EXTRA - Pessoa negra | R1: PONTUAÇÃO EXTRA -Indígena, matriz africana, de terreiro ou de povos ou de comunidades tradicionais | S1: PONTUAÇÃO EXTRA LGBTQIA+ | T1: PONTUAÇÃO EXTRA Idosa com 60 anos ou mais? | U1: NOTA POR AVALIADOR | V1: OBSERVAÇÃO | W1: NOTA PRELIMINAR | X1: STATUS
A2: INSTITUIÇÕES SEM FINS LUCRATIVO | B2: =HYPERLINK("https://mapas.cultura.gov.br/inscricao/897166495","on-897166495") -> on-897166495 | C2: São Paulo | D2: SP | E2: SUDESTE | F2: Avaliador 1 | G2: 20 | H2: 12 | I2: 15 | J2: 10 | K2: 10 | L2: 10 | M2: 10 | N2: 5 | O2: 0 | P2: 0 | Q2: 3 | R2: 0 | S2: 3 | T2: 0 | U2: =SUM(G2:T2) -> 98 | W2: =AVERAGE(U2,U3) -> 102 | X2: PRÉ-SELECIONADO
A3: INSTITUIÇÕES SEM FINS LUCRATIVO | B3: =HYPERLINK("https://mapas.cultura.gov.br/inscricao/897166495","on-897166495") -> on-897166495 | C3: São Paulo | D3: SP | E3: SUDESTE | F3: Avaliador 2 | G3: 20 | H3: 15 | I3: 15 | J3: 10 | K3: 10 | L3: 10 | M3: 10 | N3: 10 | O3: 0 | P3: 0 | Q3: 3 | R3: 0 | S3: 3 | T3: 0 | U3: 106 | W3: =W2 -> 102
A4: INSTITUIÇÕES SEM FINS LUCRATIVO | B4: =HYPERLINK("https://mapas.cultura.gov.br/inscricao/2122443805","on-2122443805") -> on-2122443805 | C4: Nova Iguaçu | D4: RJ | E4: SUDESTE | F4: Avaliador 1 | G4: 20 | H4: 15 | I4: 15 | J4: 10 | K4: 10 | L4: 10 | M4: 10 | N4: 5 | O4: 0 | P4: 0 | Q4: 3 | R4: 0 | S4: 0 | T4: 0 | U4: 98 | W4: =AVERAGE(U4,U5) -> 100.5 | X4: PRÉ-SELECIONADO
A5: INSTITUIÇÕES SEM FINS LUCRATIVO | B5: =HYPERLINK("https://mapas.cultura.gov.br/inscricao/2122443805","on-2122443805") -> on-2122443805 | C5: Nova Iguaçu | D5: RJ | E5: SUDESTE | F5: Avaliador 2 | G5: 20 | H5: 15 | I5: 15 | J5: 10 | K5: 10 | L5: 10 | M5: 10 | N5: 10 | O5: 0 | P5: 0 | Q5: 3 | R5: 0 | S5: 0 | T5: 0 | U5: 103 | W5: =W4 -> 100.5
A6: INSTITUIÇÕES SEM FINS LUCRATIVO | B6: =HYPERLINK("https://mapas.cultura.gov.br/inscricao/1755428825","on-1755428825") -> on-1755428825 | C6: Unaí | D6: MG | E6: SUDESTE | F6: Avaliador 1 | G6: 15 | H6: 12 | I6: 15 | J6: 10 | K6: 10 | L6: 10 | M6: 10 | N6: 3 | O6: 0 | P6: 3 | Q6: 3 | R6: 0 | S6: 3 | T6: 0 | U6: 94 | W6: =AVERAGE(U6,U7) -> 100 | X6: PRÉ-SELECIONADO
A7: INSTITUIÇÕES SEM FINS LUCRATIVO | B7: =HYPERLINK("https://mapas.cultura.gov.br/inscricao/1755428825","on-1755428825") -> on-1755428825 | C7: Unaí | D7: MG | E7: SUDESTE | F7: Avaliador 2 | G7: 20 | H7: 12 | I7: 15 | J7: 10 | K7: 10 | L7: 10 | M7: 10 | N7: 10 | O7: 0 | P7: 3 | Q7: 3 | R7: 0 | S7: 3 | T7: 0 | U7: 106 | W7: =W6 -> 100
A8: INSTITUIÇÕES SEM FINS LUCRATIVO | B8: =HYPERLINK("https://mapas.cultura.gov.br/inscricao/48277745","on-48277745") -> on-48277745 | C8: Belo Horizonte | D8: MG | E8: SUDESTE | F8: Avaliador 1 | G8: 20 | H8: 15 | I8: 15 | J8: 10 | K8: 8 | L8: 10 | M8: 10 | N8: 5 | O8: 0 | P8: 0 | Q8: 0 | R8: 0 | S8: 0 | T8: 0 | U8: 93 | W8: =AVERAGE(U8,U9) -> 96.5 | X8: PRÉ-SELECIONADO
A9: INSTITUIÇÕES SEM FINS LUCRATIVO | B9: =HYPERLINK("https://mapas.cultura.gov.br/inscricao/48277745","on-48277745") -> on-48277745 | C9: Belo Horizonte | D9: MG | E9: SUDESTE | F9: Avaliador 2 | G9: 20 | H9: 15 | I9: 15 | J9: 10 | K9: 10 | L9: 10 | M9: 10 | N9: 10 | O9: 0 | P9: 0 | Q9: 0 | R9: 0 | S9: 0 | T9: 0 | U9: 100 | W9: =W8 -> 96.5
A10: INSTITUIÇÕES SEM FINS LUCRATIVO | B10: =HYPERLINK("https://mapas.cultura.gov.br/inscricao/961590720","on-961590720") -> on-961590720 | C10: Rio de Janeiro | D10: RJ | E10: SUDESTE | F10: Avaliador 1 | G10: 20 | H10: 15 | I10: 15 | J10: 10 | K10: 8 | L10: 8 | M10: 8 | N10: 10 | O10: 0 | P10: 3 | Q10: 0 | R10: 3 | S10: 3 | T10: 0 | U10: 103 | W10: =AVERAGE(U10,U11) -> 96.5 | X10: PRÉ-SELECIONADO
A11: INSTITUIÇÕES SEM FINS LUCRATIVO | B11: =HYPERLINK("https://mapas.cultura.gov.br/inscricao/961590720","on-961590720") -> on-961590720 | C11: Rio de Janeiro | D11: RJ | E11: SUDESTE | F11: Avaliador 2 | G11: 15 | H11: 12 | I11: 12 | J11: 8 | K11: 10 | L11: 8 | M11: 8 | N11: 8 | O11: 0 | P11: 3 | Q11: 0 | R11: 3 | S11: 3 | T11: 0 | U11: 90 | W11: =W10 -> 96.5
A12: INSTITUIÇÕES SEM FINS LUCRATIVO | B12: =HYPERLINK("https://mapas.cultura.gov.br/inscricao/1598677493","on-1598677493") -> on-1598677493 | C12: Belo Horizonte | D12: MG | E12: SUDESTE | F12: Avaliador 1 | G12: 20 | H12: 15 | I12: 15 | J12: 10 | K12: 10 | L12: 10 | M12: 10 | N12: 8 | O12: 0 | P12: 3 | Q12: 3 | R12: 0 | S12: 3 | T12: 0 | U12: 107 | W12: =AVERAGE(U12,U13) -> 95.5 | X12: PRÉ-SELECIONADO
A13: INSTITUIÇÕES SEM FINS LUCRATIVO | B13: =HYPERLINK("https://mapas.cultura.gov.br/inscricao/1598677493","on-1598677493") -> on-1598677493 | C13: Belo Horizonte | D13: MG | E13: SUDESTE | F13: Avaliador 2 | G13: 20 | H13: 15 | I13: 15 | J13: 5 | K13: 5 | L13: 5 | M13: 5 | N13: 5 | O13: 0 | P13: 3 | Q13: 3 | R13: 0 | S13: 3 | T13: 0 | U13: 84 | W13: =W12 -> 95.5
A14: INSTITUIÇÕES SEM FINS LUCRATIVO | B14: =HYPERLINK("https://mapas.cultura.gov.br/inscricao/1070788086","on-1070788086") -> on-1070788086 | C14: Ribeirão das Neves | D14: MG | E14: SUDESTE | F14: Avaliador 1 | G14: 20 | H14: 15 | I14: 15 | J14: 10 | K14: 10 | L14: 10 | M14: 10 | N14: 5 | O14: 0 | P14: 3 | Q14: 0 | R14: 0 | S14: 0 | T14: 0 | U14: 98 | W14: =AVERAGE(U14,U15) -> 93.5 | X14: PRÉ-SELECIONADO
A15: INSTITUIÇÕES SEM FINS LUCRATIVO | B15: =HYPERLINK("https://mapas.cultura.gov.br/inscricao/1070788086","on-1070788086") -> on-1070788086 | C15: Ribeirão das Neves | D15: MG | E15: SUDESTE | F15: Avaliador 2 | G15: 20 | H15: 15 | I15: 12 | J15: 8 | K15: 5 | L15: 8 | M15: 8 | N15: 10 | O15: 0 | P15: 3 | Q15: 0 | R15: 0 | S15: 0 | T15: 0 | U15: 89 | W15: =W14 -> 93.5
A16: INSTITUIÇÕES SEM FINS LUCRATIVO | B16: =HYPERLINK("https://mapas.cultura.gov.br/inscricao/1669590324","on-1669590324") -> on-1669590324 | C16: Diadema | D16: SP | E16: SUDESTE | F16: Avaliador 1 | G16: 20 | H16: 15 | I16: 15 | J16: 5 | K16: 8 | L16: 10 | M16: 10 | N16: 10 | O16: 0 | P16: 3 | Q16: 3 | R16: 0 | S16: 0 | T16: 3 | U16: 102 | W16: =AVERAGE(U16,U17) -> 89 | X16: PRÉ-SELECIONADO
A17: INSTITUIÇÕES SEM FINS LUCRATIVO | B17: =HYPERLINK("https://mapas.cultura.gov.br/inscricao/1669590324","on-1669590324") -> on-1669590324 | C17: Diadema | D17: SP | E17: SUDESTE | F17: Avaliador 2 | G17: 10 | H17: 8 | I17: 8 | J17: 5 | K17: 8 | L17: 10 | M17: 8 | N17: 10 | O17: 0 | P17: 3 | Q17: 3 | R17: 0 | S17: 0 | T17: 3 | U17: 76 | W17: =W16 -> 89
A18: INSTITUIÇÕES SEM FINS LUCRATIVO | B18: =HYPERLINK("https://mapas.cultura.gov.br/inscricao/797293725","on-797293725") -> on-797293725 | C18: Piracicaba | D18: SP | E18: SUDESTE | F18: Avaliador 1 | G18: 15 | H18: 15 | I18: 15 | J18: 10 | K18: 10 | L18: 10 | M18: 8 | N18: 10 | O18: 0 | P18: 0 | Q18: 3 | R18: 0 | S18: 0 | T18: 0 | U18: 96 | W18: =AVERAGE(U18,U19) -> 86.5 | X18: PRÉ-SELECIONADO
A19: INSTITUIÇÕES SEM FINS LUCRATIVO | B19: =HYPERLINK("https://mapas.cultura.gov.br/inscricao/797293725","on-797293725") -> on-797293725 | C19: Piracicaba | D19: SP | E19: SUDESTE | F19: Avaliador 2 | G19: 10 | H19: 12 | I19: 8 | J19: 8 | K19: 10 | L19: 8 | M19: 8 | N19: 10 | O19: 0 | P19: 0 | Q19: 3 | R19: 0 | S19: 0 | T19: 0 | U19: 77 | W19: =W18 -> 86.5
A20: INSTITUIÇÕES SEM FINS LUCRATIVO | B20: =HYPERLINK("https://mapas.cultura.gov.br/inscricao/160207816","on-160207816") -> on-160207816 | C20: São Paulo | D20: SP | E20: SUDESTE | F20: Avaliador 1 | G20: 15 | H20: 15 | I20: 15 | J20: 8 | K20: 10 | L20: 10 | M20: 10 | N20: 8 | O20: 0 | P20: 3 | Q20: 0 | R20: 0 | S20: 3 | T20: 0 | U20: 97 | W20: =AVERAGE(U20,U21) -> 82.5 | X20: PRÉ-SELECIONADO
A21: INSTITUIÇÕES SEM FINS LUCRATIVO | B21: =HYPERLINK("https://mapas.cultura.gov.br/inscricao/160207816","on-160207816") -> on-160207816 | C21: São Paulo | D21: SP | E21: SUDESTE | F21: Avaliador 2 | G21: 15 | H21: 4 | I21: 8 | J21: 3 | K21: 8 | L21: 8 | M21: 8 | N21: 8 | O21: 0 | P21: 3 | Q21: 0 | R21: 0 | S21: 3 | T21: 0 | U21: 68 | W21: =W20 -> 82.5
A22: INSTITUIÇÕES SEM FINS LUCRATIVO | B22: =HYPERLINK("https://mapas.cultura.gov.br/inscricao/1664453259","on-1664453259") -> on-1664453259 | C22: São Paulo | D22: SP | E22: SUDESTE | F22: Avaliador 1 | G22: 15 | H22: 15 | I22: 12 | J22: 10 | K22: 5 | L22: 10 | M22: 10 | N22: 0 | O22: 0 | P22: 3 | Q22: 3 | R22: 0 | S22: 0 | T22: 0 | U22: 83 | W22: =AVERAGE(U22,U23) -> 81 | X22: PRÉ-SELECIONADO
A23: INSTITUIÇÕES SEM FINS LUCRATIVO | B23: =HYPERLINK("https://mapas.cultura.gov.br/inscricao/1664453259","on-1664453259") -> on-1664453259 | C23: São Paulo | D23: SP | E23: SUDESTE | F23: Avaliador 2 | G23: 15 | H23: 15 | I23: 12 | J23: 8 | K23: 5 | L23: 8 | M23: 5 | N23: 5 | O23: 0 | P23: 3 | Q23: 3 | R23: 0 | S23: 0 | T23: 0 | U23: 79 | W23: =W22 -> 81
A24: INSTITUIÇÕES SEM FINS LUCRATIVO | B24: =HYPERLINK("https://mapas.cultura.gov.br/inscricao/2020333000","on-2020333000") -> on-2020333000 | C24: Rio de Janeiro | D24: RJ | E24: SUDESTE | F24: Avaliador 1 | G24: 15 | H24: 12 | I24: 8 | J24: 5 | K24: 8 | L24: 10 | M24: 8 | N24: 5 | O24: 0 | P24: 0 | Q24: 3 | R24: 0 | S24: 0 | T24: 0 | U24: 74 | W24: =AVERAGE(U24,U25) -> 81 | X24: PRÉ-SELECIONADO
A25: INSTITUIÇÕES SEM FINS LUCRATIVO | B25: =HYPERLINK("https://mapas.cultura.gov.br/inscricao/2020333000","on-2020333000") -> on-2020333000 | C25: Rio de Janeiro | D25: RJ | E25: SUDESTE | F25: Avaliador 2 | G25: 15 | H25: 12 | I25: 15 | J25: 5 | K25: 10 | L25: 10 | M25: 10 | N25: 8 | O25: 0 | P25: 0 | Q25: 3 | R25: 0 | S25: 0 | T25: 0 | U25: 88 | W25: =W24 -> 81
A26: INSTITUIÇÕES SEM FINS LUCRATIVO | B26: =HYPERLINK("https://mapas.cultura.gov.br/inscricao/1301782382","on-1301782382") -> on-1301782382 | C26: São Paulo | D26: SP | E26: SUDESTE | F26: Avaliador 1 | G26: 20 | H26: 15 | I26: 15 | J26: 5 | K26: 8 | L26: 10 | M26: 8 | N26: 3 | O26: 0 | P26: 0 | Q26: 0 | R26: 0 | S26: 0 | T26: 0 | U26: 84 | W26: =AVERAGE(U26,U27) -> 79.5 | X26: PRÉ-SELECIONADO
A27: INSTITUIÇÕES SEM FINS LUCRATIVO | B27: =HYPERLINK("https://mapas.cultura.gov.br/inscricao/1301782382","on-1301782382") -> on-1301782382 | C27: São Paulo | D27: SP | E27: SUDESTE | F27: Avaliador 2 | G27: 15 | H27: 8 | I27: 12 | J27: 8 | K27: 8 | L27: 8 | M27: 8 | N27: 8 | O27: 0 | P27: 0 | Q27: 0 | R27: 0 | S27: 0 | T27: 0 | U27: 75 | W27: =W26 -> 79.5
A28: INSTITUIÇÕES SEM FINS LUCRATIVO | B28: =HYPERLINK("https://mapas.cultura.gov.br/inscricao/532976060","on-532976060") -> on-532976060 | C28: Sertãozinho | D28: SP | E28: SUDESTE | F28: Avaliador 1 | G28: 15 | H28: 15 | I28: 15 | J28: 5 | K28: 8 | L28: 10 | M28: 8 | N28: 5 | O28: 0 | P28: 0 | Q28: 3 | R28: 0 | S28: 0 | T28: 0 | U28: 84 | W28: =AVERAGE(U28,U29) -> 79 | X28: PRÉ-SELECIONADO
A29: INSTITUIÇÕES SEM FINS LUCRATIVO | B29: =HYPERLINK("https://mapas.cultura.gov.br/inscricao/532976060","on-532976060") -> on-532976060 | C29: Sertãozinho | D29: SP | E29: SUDESTE | F29: Avaliador 2 | G29: 10 | H29: 12 | I29: 12 | J29: 8 | K29: 8 | L29: 8 | M29: 8 | N29: 5 | O29: 0 | P29: 0 | Q29: 3 | R29: 0 | S29: 0 | T29: 0 | U29: 74 | W29: =W28 -> 79
A30: INSTITUIÇÕES SEM FINS LUCRATIVO | B30: =HYPERLINK("https://mapas.cultura.gov.br/inscricao/1963176110","on-1963176110") -> on-1963176110 | C30: Serra | D30: ES | E30: SUDESTE | F30: Avaliador 1 | G30: 15 | H30: 12 | I30: 8 | J30: 8 | K30: 8 | L30: 5 | M30: 3 | N30: 8 | O30: 0 | P30: 3 | Q30: 0 | R30: 3 | S30: 3 | T30: 0 | U30: 76 | W30: =AVERAGE(U30,U31) -> 77.5 | X30: PRÉ-SELECIONADO
A31: INSTITUIÇÕES SEM FINS LUCRATIVO | B31: =HYPERLINK("https://mapas.cultura.gov.br/inscricao/1963176110","on-1963176110") -> on-1963176110 | C31: Serra | D31: ES | E31: SUDESTE | F31: Avaliador 2 | G31: 10 | H31: 12 | I31: 12 | J31: 10 | K31: 8 | L31: 5 | M31: 5 | N31: 8 | O31: 0 | P31: 3 | Q31: 0 | R31: 3 | S31: 3 | T31: 0 | U31: 79 | W31: =W30 -> 77.5
A32: INSTITUIÇÕES SEM FINS LUCRATIVO | B32: =HYPERLINK("https://mapas.cultura.gov.br/inscricao/2064094225","on-2064094225") -> on-2064094225 | C32: Bertioga | D32: SP | E32: SUDESTE | F32: Avaliador 1 | G32: 15 | H32: 12 | I32: 15 | J32: 8 | K32: 3 | L32: 10 | M32: 5 | N32: 8 | O32: 3 | P32: 0 | Q32: 0 | R32: 0 | S32: 0 | T32: 0 | U32: 79 | W32: =AVERAGE(U32,U33) -> 77 | X32: CLASSIFICADO
A33: INSTITUIÇÕES SEM FINS LUCRATIVO | B33: =HYPERLINK("https://mapas.cultura.gov.br/inscricao/2064094225","on-2064094225") -> on-2064094225 | C33: Bertioga | D33: SP | E33: SUDESTE | F33: Avaliador 2 | G33: 10 | H33: 8 | I33: 12 | J33: 10 | K33: 8 | L33: 8 | M33: 8 | N33: 8 | O33: 3 | P33: 0 | Q33: 0 | R33: 0 | S33: 0 | T33: 0 | U33: 75 | W33: =W32 -> 77
A34: INSTITUIÇÕES SEM FINS LUCRATIVO | B34: =HYPERLINK("https://mapas.cultura.gov.br/inscricao/1617399606","on-1617399606") -> on-1617399606 | C34: Campinas | D34: SP | E34: SUDESTE | F34: Avaliador 1 | G34: 10 | H34: 12 | I34: 15 | J34: 8 | K34: 8 | L34: 10 | M34: 5 | N34: 8 | O34: 0 | P34: 0 | Q34: 3 | R34: 0 | S34: 0 | T34: 0 | U34: =SUM(G34:T34) -> 79 | W34: =AVERAGE(U34,U35) -> 76.5 | X34: CLASSIFICADO
A35: INSTITUIÇÕES SEM FINS LUCRATIVO | B35: =HYPERLINK("https://mapas.cultura.gov.br/inscricao/1617399606","on-1617399606") -> on-1617399606 | C35: Campinas | D35: SP | E35: SUDESTE | F35: Avaliador 2 | G35: 10 | H35: 12 | I35: 12 | J35: 8 | K35: 8 | L35: 8 | M35: 5 | N35: 8 | O35: 0 | P35: 0 | Q35: 3 | R35: 0 | S35: 0 | T35: 0 | U35: 74 | W35: =W34 -> 76.5
A36: INSTITUIÇÕES SEM FINS LUCRATIVO | B36: =HYPERLINK("https://mapas.cultura.gov.br/inscricao/2028317807","on-2028317807") -> on-2028317807 | C36: São Paulo | D36: SP | E36: SUDESTE | F36: Avaliador 1 | G36: 20 | H36: 8 | I36: 8 | J36: 5 | K36: 3 | L36: 8 | M36: 8 | N36: 8 | O36: 0 | P36: 0 | Q36: 3 | R36: 3 | S36: 3 | T36: 0 | U36: 77 | W36: =AVERAGE(U36,U37) -> 75 | X36: CLASSIFICADO
A37: INSTITUIÇÕES SEM FINS LUCRATIVO | B37: =HYPERLINK("https://mapas.cultura.gov.br/inscricao/2028317807","on-2028317807") -> on-2028317807 | C37: São Paulo | D37: SP | E37: SUDESTE | F37: Avaliador 2 | G37: 10 | H37: 12 | I37: 8 | J37: 8 | K37: 8 | L37: 5 | M37: 5 | N37: 8 | O37: 0 | P37: 0 | Q37: 3 | R37: 3 | S37: 3 | T37: 0 | U37: 73 | W37: =W36 -> 75
A38: INSTITUIÇÕES SEM FINS LUCRATIVO | B38: =HYPERLINK("https://mapas.cultura.gov.br/inscricao/752079165","on-752079165") -> on-752079165 | C38: São Simão | D38: SP | E38: SUDESTE | F38: Avaliador 1 | G38: 20 | H38: 12 | I38: 12 | J38: 3 | K38: 8 | L38: 5 | M38: 5 | N38: 5 | O38: 0 | P38: 3 | Q38: 0 | R38: 0 | S38: 3 | T38: 0 | U38: 76 | W38: =AVERAGE(U38,U39) -> 74.5 | X38: CLASSIFICADO
A39: INSTITUIÇÕES SEM FINS LUCRATIVO | B39: =HYPERLINK("https://mapas.cultura.gov.br/inscricao/752079165","on-752079165") -> on-752079165 | C39: São Simão | D39: SP | E39: SUDESTE | F39: Avaliador 2 | G39: 15 | H39: 12 | I39: 12 | J39: 5 | K39: 5 | L39: 5 | M39: 5 | N39: 8 | O39: 0 | P39: 3 | Q39: 0 | R39: 0 | S39: 3 | T39: 0 | U39: 73 | W39: =W38 -> 74.5
A40: INSTITUIÇÕES SEM FINS LUCRATIVO | B40: =HYPERLINK("https://mapas.cultura.gov.br/inscricao/705807011","on-705807011") -> on-705807011 | C40: Rio de Janeiro | D40: RJ | E40: SUDESTE | F40: Avaliador 1 | G40: 20 | H40: 15 | I40: 12 | J40: 5 | K40: 8 | L40: 10 | M40: 5 | N40: 3 | O40: 0 | P40: 0 | Q40: 3 | R40: 0 | S40: 0 | T40: 0 | U40: 81 | W40: =AVERAGE(U40,U41) -> 72.5 | X40: CLASSIFICADO
A41: INSTITUIÇÕES SEM FINS LUCRATIVO | B41: =HYPERLINK("https://mapas.cultura.gov.br/inscricao/705807011","on-705807011") -> on-705807011 | C41: Rio de Janeiro | D41: RJ | E41: SUDESTE | F41: Avaliador 2 | G41: 10 | H41: 12 | I41: 8 | J41: 5 | K41: 8 | L41: 5 | M41: 5 | N41: 8 | O41: 0 | P41: 0 | Q41: 3 | R41: 0 | S41: 0 | T41: 0 | U41: 64 | W41: =W40 -> 72.5
A42: INSTITUIÇÕES SEM FINS LUCRATIVO | B42: =HYPERLINK("https://mapas.cultura.gov.br/inscricao/786411991","on-786411991") -> on-786411991 | C42: Taquaritinga | D42: SP | E42: SUDESTE | F42: Avaliador 1 | G42: 20 | H42: 15 | I42: 12 | J42: 3 | K42: 8 | L42: 10 | M42: 8 | N42: 0 | O42: 0 | P42: 0 | Q42: 3 | R42: 0 | S42: 3 | T42: 3 | U42: 85 | W42: =AVERAGE(U42,U43) -> 72.5 | X42: CLASSIFICADO
A43: INSTITUIÇÕES SEM FINS LUCRATIVO | B43: =HYPERLINK("https://mapas.cultura.gov.br/inscricao/786411991","on-786411991") -> on-786411991 | C43: Taquaritinga | D43: SP | E43: SUDESTE | F43: Avaliador 2 | G43: 10 | H43: 8 | I43: 8 | J43: 5 | K43: 5 | L43: 5 | M43: 5 | N43: 5 | O43: 0 | P43: 0 | Q43: 3 | R43: 0 | S43: 3 | T43: 3 | U43: 60 | W43: =W42 -> 72.5
A44: INSTITUIÇÕES SEM FINS LUCRATIVO | B44: =HYPERLINK("https://mapas.cultura.gov.br/inscricao/853868237","on-853868237") -> on-853868237 | C44: Ribeirão Preto | D44: SP | E44: SUDESTE | F44: Avaliador 1 | G44: 15 | H44: 15 | I44: 12 | J44: 10 | K44: 5 | L44: 10 | M44: 8 | N44: 3 | O44: 0 | P44: 0 | Q44: 3 | R44: 0 | S44: 0 | T44: 0 | U44: 81 | W44: =AVERAGE(U44,U45) -> 70.5 | X44: CLASSIFICADO
A45: INSTITUIÇÕES SEM FINS LUCRATIVO | B45: =HYPERLINK("https://mapas.cultura.gov.br/inscricao/853868237","on-853868237") -> on-853868237 | C45: Ribeirão Preto | D45: SP | E45: SUDESTE | F45: Avaliador 2 | G45: 10 | H45: 8 | I45: 8 | J45: 8 | K45: 5 | L45: 8 | M45: 5 | N45: 5 | O45: 0 | P45: 0 | Q45: 3 | R45: 0 | S45: 0 | T45: 0 | U45: 60 | W45: =W44 -> 70.5
A46: INSTITUIÇÕES SEM FINS LUCRATIVO | B46: =HYPERLINK("https://mapas.cultura.gov.br/inscricao/484362480","on-484362480") -> on-484362480 | C46: Teresópolis | D46: RJ | E46: SUDESTE | F46: Avaliador 1 | G46: 20 | H46: 15 | I46: 12 | J46: 8 | K46: 5 | L46: 5 | M46: 5 | N46: 5 | O46: 0 | P46: 0 | Q46: 0 | R46: 0 | S46: 0 | T46: 3 | U46: 78 | W46: =AVERAGE(U46,U47) -> 69 | X46: CLASSIFICADO
A47: INSTITUIÇÕES SEM FINS LUCRATIVO | B47: =HYPERLINK("https://mapas.cultura.gov.br/inscricao/484362480","on-484362480") -> on-484362480 | C47: Teresópolis | D47: RJ | E47: SUDESTE | F47: Avaliador 2 | G47: 10 | H47: 8 | I47: 8 | J47: 8 | K47: 5 | L47: 8 | M47: 5 | N47: 5 | O47: 0 | P47: 0 | Q47: 0 | R47: 0 | S47: 0 | T47: 3 | U47: 60 | W47: =W46 -> 69
A48: INSTITUIÇÕES SEM FINS LUCRATIVO | B48: =HYPERLINK("https://mapas.cultura.gov.br/inscricao/92659654","on-92659654") -> on-92659654 | C48: São Paulo | D48: SP | E48: SUDESTE | F48: Avaliador 1 | G48: 20 | H48: 15 | I48: 15 | J48: 3 | K48: 3 | L48: 5 | M48: 5 | N48: 3 | O48: 0 | P48: 0 | Q48: 3 | R48: 0 | S48: 0 | T48: 0 | U48: 72 | W48: =AVERAGE(U48,U49) -> 68 | X48: CLASSIFICADO
A49: INSTITUIÇÕES SEM FINS LUCRATIVO | B49: =HYPERLINK("https://mapas.cultura.gov.br/inscricao/92659654","on-92659654") -> on-92659654 | C49: São Paulo | D49: SP | E49: SUDESTE | F49: Avaliador 2 | G49: 10 | H49: 12 | I49: 8 | J49: 8 | K49: 8 | L49: 5 | M49: 5 | N49: 5 | O49: 0 | P49: 0 | Q49: 3 | R49: 0 | S49: 0 | T49: 0 | U49: 64 | W49: =W48 -> 68
A50: INSTITUIÇÕES SEM FINS LUCRATIVO | B50: =HYPERLINK("https://mapas.cultura.gov.br/inscricao/1534630568","on-1534630568") -> on-1534630568 | C50: Campinas | D50: SP | E50: SUDESTE | F50: Avaliador 1 | G50: 15 | H50: 15 | I50: 15 | J50: 5 | K50: 3 | L50: 10 | M50: 8 | N50: 3 | O50: 0 | P50: 0 | Q50: 3 | R50: 0 | S50: 0 | T50: 0 | U50: 77 | W50: =AVERAGE(U50,U51) -> 67.5 | X50: CLASSIFICADO
A51: INSTITUIÇÕES SEM FINS LUCRATIVO | B51: =HYPERLINK("https://mapas.cultura.gov.br/inscricao/1534630568","on-1534630568") -> on-1534630568 | C51: Campinas | D51: SP | E51: SUDESTE | F51: Avaliador 2 | G51: 15 | H51: 8 | I51: 4 | J51: 5 | K51: 5 | L51: 5 | M51: 5 | N51: 8 | O51: 0 | P51: 0 | Q51: 3 | R51: 0 | S51: 0 | T51: 0 | U51: 58 | W51: =W50 -> 67.5
A52: INSTITUIÇÕES SEM FINS LUCRATIVO | B52: =HYPERLINK("https://mapas.cultura.gov.br/inscricao/929080785","on-929080785") -> on-929080785 | C52: São Paulo | D52: SP | E52: SUDESTE | F52: Avaliador 1 | G52: 20 | H52: 8 | I52: 8 | J52: 3 | K52: 3 | L52: 5 | M52: 8 | N52: 3 | O52: 0 | P52: 3 | Q52: 0 | R52: 0 | S52: 0 | T52: 3 | U52: 64 | W52: =AVERAGE(U52,U53) -> 67 | X52: CLASSIFICADO
A53: INSTITUIÇÕES SEM FINS LUCRATIVO | B53: =HYPERLINK("https://mapas.cultura.gov.br/inscricao/929080785","on-929080785") -> on-929080785 | C53: São Paulo | D53: SP | E53: SUDESTE | F53: Avaliador 2 | G53: 15 | H53: 12 | I53: 4 | J53: 8 | K53: 5 | L53: 10 | M53: 5 | N53: 5 | O53: 0 | P53: 3 | Q53: 0 | R53: 0 | S53: 0 | T53: 3 | U53: 70 | W53: =W52 -> 67
A54: INSTITUIÇÕES SEM FINS LUCRATIVO | B54: =HYPERLINK("https://mapas.cultura.gov.br/inscricao/42860486","on-42860486") -> on-42860486 | C54: Bariri | D54: SP | E54: SUDESTE | F54: Avaliador 1 | G54: 15 | H54: 4 | I54: 4 | J54: 8 | K54: 8 | L54: 3 | M54: 8 | N54: 0 | O54: 0 | P54: 0 | Q54: 0 | R54: 0 | S54: 0 | T54: 0 | U54: 50 | W54: =AVERAGE(U54,U55) -> 64 | X54: CLASSIFICADO
A55: INSTITUIÇÕES SEM FINS LUCRATIVO | B55: =HYPERLINK("https://mapas.cultura.gov.br/inscricao/42860486","on-42860486") -> on-42860486 | C55: Bariri | D55: SP | E55: SUDESTE | F55: Avaliador 2 | G55: 10 | H55: 12 | I55: 12 | J55: 10 | K55: 8 | L55: 8 | M55: 10 | N55: 8 | O55: 0 | P55: 0 | Q55: 0 | R55: 0 | S55: 0 | T55: 0 | U55: 78 | W55: =W54 -> 64
A56: INSTITUIÇÕES SEM FINS LUCRATIVO | B56: =HYPERLINK("https://mapas.cultura.gov.br/inscricao/1078898026","on-1078898026") -> on-1078898026 | C56: Rio de Janeiro | D56: RJ | E56: SUDESTE | F56: Avaliador 1 | G56: 10 | H56: 8 | I56: 12 | J56: 8 | K56: 5 | L56: 5 | M56: 5 | N56: 5 | O56: 0 | P56: 0 | Q56: 3 | R56: 0 | S56: 3 | T56: 0 | U56: 64 | W56: =AVERAGE(U56,U57) -> 63.5 | X56: CLASSIFICADO
A57: INSTITUIÇÕES SEM FINS LUCRATIVO | B57: =HYPERLINK("https://mapas.cultura.gov.br/inscricao/C3","on-1078898026") -> on-1078898026 | C57: Rio de Janeiro | D57: RJ | E57: SUDESTE | F57: Avaliador 2 | G57: 10 | H57: 4 | I57: 8 | J57: 3 | K57: 8 | L57: 8 | M57: 8 | N57: 8 | O57: 0 | P57: 0 | Q57: 3 | R57: 0 | S57: 3 | T57: 0 | U57: 63 | W57: =W56 -> 63.5
A58: INSTITUIÇÕES SEM FINS LUCRATIVO | B58: =HYPERLINK("https://mapas.cultura.gov.br/inscricao/1051627675","on-1051627675") -> on-1051627675 | C58: Viçosa | D58: MG | E58: SUDESTE | F58: Avaliador 1 | G58: 15 | H58: 12 | I58: 8 | J58: 8 | K58: 5 | L58: 5 | M58: 3 | N58: 3 | O58: 0 | P58: 3 | Q58: 0 | R58: 0 | S58: 0 | T58: 3 | U58: 65 | W58: =AVERAGE(U58,U59) -> 63.5 | X58: CLASSIFICADO
A59: INSTITUIÇÕES SEM FINS LUCRATIVO | B59: =HYPERLINK("https://mapas.cultura.gov.br/inscricao/1051627675","on-1051627675") -> on-1051627675 | C59: Viçosa | D59: MG | E59: SUDESTE | F59: Avaliador 2 | G59: 15 | H59: 8 | I59: 8 | J59: 5 | K59: 5 | L59: 5 | M59: 5 | N59: 5 | O59: 0 | P59: 3 | Q59: 0 | R59: 0 | S59: 0 | T59: 3 | U59: 62 | W59: =W58 -> 63.5
A60: INSTITUIÇÕES SEM FINS LUCRATIVO | B60: =HYPERLINK("https://mapas.cultura.gov.br/inscricao/1721608042","on-1721608042") -> on-1721608042 | C60: São Paulo | D60: SP | E60: SUDESTE | F60: Avaliador 1 | G60: 20 | H60: 0 | I60: 0 | J60: 10 | K60: 0 | L60: 0 | M60: 3 | N60: 10 | O60: 0 | P60: 3 | Q60: 3 | R60: 0 | S60: 3 | T60: 0 | U60: 52 | W60: =AVERAGE(U60,U61) -> 60.5 | X60: CLASSIFICADO
A61: INSTITUIÇÕES SEM FINS LUCRATIVO | B61: =HYPERLINK("https://mapas.cultura.gov.br/inscricao/1721608042","on-1721608042") -> on-1721608042 | C61: São Paulo | D61: SP | E61: SUDESTE | F61: Avaliador 2 | G61: 15 | H61: 8 | I61: 8 | J61: 5 | K61: 8 | L61: 8 | M61: 3 | N61: 5 | O61: 0 | P61: 3 | Q61: 3 | R61: 0 | S61: 3 | T61: 0 | U61: 69 | W61: =W60 -> 60.5
A62: INSTITUIÇÕES SEM FINS LUCRATIVO | B62: =HYPERLINK("https://mapas.cultura.gov.br/inscricao/129083403","on-129083403") -> on-129083403 | C62: Cubatão | D62: SP | E62: SUDESTE | F62: Avaliador 1 | G62: 20 | H62: 15 | I62: 15 | J62: 3 | K62: 3 | L62: 10 | M62: 5 | N62: 3 | O62: 0 | P62: 0 | Q62: 3 | R62: 0 | S62: 0 | T62: 0 | U62: 77 | V62: DESCLASSIFICADA COM BASE NO ITEM 6.1 | W62: =AVERAGE(U62,U63) -> 71 | X62: DESCLASSIFICADO
A63: INSTITUIÇÕES SEM FINS LUCRATIVO | B63: =HYPERLINK("https://mapas.cultura.gov.br/inscricao/129083403","on-129083403") -> on-129083403 | C63: Cubatão | D63: SP | E63: SUDESTE | F63: Avaliador 2 | G63: 15 | H63: 8 | I63: 8 | J63: 5 | K63: 5 | L63: 8 | M63: 5 | N63: 8 | O63: 0 | P63: 0 | Q63: 3 | R63: 0 | S63: 0 | T63: 0 | U63: 65 | W63: =W62 -> 71
A64: INSTITUIÇÕES SEM FINS LUCRATIVO | B64: =HYPERLINK("https://mapas.cultura.gov.br/inscricao/292141907","on-292141907") -> on-292141907 | C64: Linhares | D64: ES | E64: SUDESTE | F64: Avaliador 1 | G64: 20 | H64: 12 | I64: 8 | J64: 3 | K64: 3 | L64: 5 | M64: 5 | N64: 8 | O64: 0 | P64: 3 | Q64: 3 | R64: 0 | S64: 3 | T64: 0 | U64: 73 | V64: DESCLASSIFICADA COM BASE NO ITEM 6.1 | W64: =AVERAGE(U64,U65) -> 70 | X64: DESCLASSIFICADO
A65: INSTITUIÇÕES SEM FINS LUCRATIVO | B65: =HYPERLINK("https://mapas.cultura.gov.br/inscricao/292141907","on-292141907") -> on-292141907 | C65: Linhares | D65: ES | E65: SUDESTE | F65: Avaliador 2 | G65: 20 | H65: 8 | I65: 4 | J65: 8 | K65: 3 | L65: 5 | M65: 5 | N65: 5 | O65: 0 | P65: 3 | Q65: 3 | R65: 0 | S65: 3 | T65: 0 | U65: 67 | W65: =W64 -> 70
A66: INSTITUIÇÕES SEM FINS LUCRATIVO | B66: =HYPERLINK("https://mapas.cultura.gov.br/inscricao/1116130592","on-1116130592") -> on-1116130592 | C66: Rio de Janeiro | D66: RJ | E66: SUDESTE | F66: Avaliador 1 | G66: 15 | H66: 12 | I66: 8 | J66: 3 | K66: 3 | L66: 8 | M66: 8 | N66: 0 | O66: 0 | P66: 0 | Q66: 0 | R66: 0 | S66: 0 | T66: 3 | U66: =SUM(G66:T66) -> 60 | V66: DESCLASSIFICADO COM BASE NO ITEM 61 E 7.13 | W66: =AVERAGE(U66,U67) -> 64 | X66: DESCLASSIFICADO
A67: INSTITUIÇÕES SEM FINS LUCRATIVO | B67: =HYPERLINK("https://mapas.cultura.gov.br/inscricao/1116130592","on-1116130592") -> on-1116130592 | C67: Rio de Janeiro | D67: RJ | E67: SUDESTE | F67: Avaliador 2 | G67: 10 | H67: 8 | I67: 12 | J67: 8 | K67: 8 | L67: 8 | M67: 8 | N67: 3 | O67: 0 | P67: 0 | Q67: 0 | R67: 0 | S67: 0 | T67: 3 | U67: 68 | W67: =W66 -> 64
A68: INSTITUIÇÕES SEM FINS LUCRATIVO | B68: =HYPERLINK("https://mapas.cultura.gov.br/inscricao/541033031","on-541033031") -> on-541033031 | C68: Divinópolis | D68: MG | E68: SUDESTE | F68: Avaliador 1 | G68: 15 | H68: 8 | I68: 8 | J68: 5 | K68: 5 | L68: 5 | M68: 5 | N68: 5 | O68: 0 | P68: 0 | Q68: 3 | R68: 3 | S68: 0 | T68: 3 | U68: 65 | V68: DESCLASSIFICADA COM BASE NO ITEM 7.7 | W68: =AVERAGE(U68,U69) -> 59.5 | X68: DESCLASSIFICADO
A69: INSTITUIÇÕES SEM FINS LUCRATIVO | B69: =HYPERLINK("https://mapas.cultura.gov.br/inscricao/541033031","on-541033031") -> on-541033031 | C69: Divinópolis | D69: MG | E69: SUDESTE | F69: Avaliador 2 | G69: 20 | H69: 4 | I69: 4 | J69: 3 | K69: 3 | L69: 3 | M69: 3 | N69: 5 | O69: 0 | P69: 0 | Q69: 3 | R69: 3 | S69: 0 | T69: 3 | U69: 54 | W69: =W68 -> 59.5
A70: INSTITUIÇÕES SEM FINS LUCRATIVO | B70: =HYPERLINK("https://mapas.cultura.gov.br/inscricao/1506868170","on-1506868170") -> on-1506868170 | C70: Franco da Rocha | D70: SP | E70: SUDESTE | F70: Avaliador 1 | G70: 20 | H70: 8 | I70: 15 | J70: 0 | K70: 3 | L70: 10 | M70: 8 | N70: 0 | O70: 0 | P70: 0 | Q70: 0 | R70: 0 | S70: 0 | T70: 0 | U70: 64 | V70: DESCLASSIFICADA COM BASE NO ITEM 7.7 | W70: =AVERAGE(U70,U71) -> 56.5 | X70: DESCLASSIFICADO
A71: INSTITUIÇÕES SEM FINS LUCRATIVO | B71: =HYPERLINK("https://mapas.cultura.gov.br/inscricao/1506868170","on-1506868170") -> on-1506868170 | C71: Franco da Rocha | D71: SP | E71: SUDESTE | F71: Avaliador 2 | G71: 5 | H71: 8 | I71: 8 | J71: 5 | K71: 5 | L71: 8 | M71: 5 | N71: 5 | O71: 0 | P71: 0 | Q71: 0 | R71: 0 | S71: 0 | T71: 0 | U71: 49 | W71: =W70 -> 56.5
A72: INSTITUIÇÕES SEM FINS LUCRATIVO | B72: =HYPERLINK("https://mapas.cultura.gov.br/inscricao/1143517671","on-1143517671") -> on-1143517671 | C72: Rio de Janeiro | D72: RJ | E72: SUDESTE | F72: Avaliador 1 | G72: 10 | H72: 8 | I72: 8 | J72: 10 | K72: 5 | L72: 3 | M72: 3 | N72: 3 | O72: 3 | P72: 3 | Q72: 3 | R72: 0 | S72: 0 | T72: 0 | U72: 59 | V72: DESCLASSIFICADA COM BASE NO ITEM 7.7 | W72: =AVERAGE(U72,U73) -> 56.5 | X72: DESCLASSIFICADO
A73: INSTITUIÇÕES SEM FINS LUCRATIVO | B73: =HYPERLINK("https://mapas.cultura.gov.br/inscricao/1143517671","on-1143517671") -> on-1143517671 | C73: Rio de Janeiro | D73: RJ | E73: SUDESTE | F73: Avaliador 2 | G73: 10 | H73: 8 | I73: 8 | J73: 5 | K73: 3 | L73: 3 | M73: 3 | N73: 5 | O73: 3 | P73: 3 | Q73: 3 | R73: 0 | S73: 0 | T73: 0 | U73: 54 | W73: =W72 -> 56.5
A74: INSTITUIÇÕES SEM FINS LUCRATIVO | B74: =HYPERLINK("https://mapas.cultura.gov.br/inscricao/104249064","on-104249064") -> on-104249064 | C74: Belo Horizonte | D74: MG | E74: SUDESTE | F74: Avaliador 1 | G74: 10 | H74: 8 | I74: 4 | J74: 5 | K74: 3 | L74: 3 | M74: 3 | N74: 5 | O74: 0 | P74: 0 | Q74: 0 | R74: 0 | S74: 3 | T74: 0 | U74: 44 | V74: DESCLASSIFICADA COM BASE NO ITEM 7.7 | W74: =AVERAGE(U74,U75) -> 51 | X74: DESCLASSIFICADO
A75: INSTITUIÇÕES SEM FINS LUCRATIVO | B75: =HYPERLINK("https://mapas.cultura.gov.br/inscricao/104249064","on-104249064") -> on-104249064 | C75: Belo Horizonte | D75: MG | E75: SUDESTE | F75: Avaliador 2 | G75: 20 | H75: 8 | I75: 4 | J75: 5 | K75: 5 | L75: 3 | M75: 5 | N75: 5 | O75: 0 | P75: 0 | Q75: 0 | R75: 0 | S75: 3 | T75: 0 | U75: 58 | W75: =W74 -> 51
A76: INSTITUIÇÕES SEM FINS LUCRATIVO | B76: =HYPERLINK("https://mapas.cultura.gov.br/inscricao/10211142","on-10211142") -> on-10211142 | C76: Rio de Janeiro | D76: RJ | E76: SUDESTE | F76: Avaliador 1 | G76: 10 | H76: 4 | I76: 4 | J76: 10 | K76: 3 | L76: 3 | M76: 3 | N76: 3 | O76: 0 | P76: 0 | Q76: 3 | R76: 0 | S76: 0 | T76: 3 | U76: 46 | V76: DESCLASSIFICADA COM BASE NO ITEM 7.7 | W76: =AVERAGE(U76,U77) -> 50.5 | X76: DESCLASSIFICADO
A77: INSTITUIÇÕES SEM FINS LUCRATIVO | B77: =HYPERLINK("https://mapas.cultura.gov.br/inscricao/10211142","on-10211142") -> on-10211142 | C77: Rio de Janeiro | D77: RJ | E77: SUDESTE | F77: Avaliador 2 | G77: 5 | H77: 4 | I77: 4 | J77: 5 | K77: 5 | L77: 8 | M77: 8 | N77: 10 | O77: 0 | P77: 0 | Q77: 3 | R77: 0 | S77: 0 | T77: 3 | U77: 55 | W77: =W76 -> 50.5
A78: INSTITUIÇÕES SEM FINS LUCRATIVO | B78: =HYPERLINK("https://mapas.cultura.gov.br/inscricao/1656018155","on-1656018155") -> on-1656018155 | C78: Rio de Janeiro | D78: RJ | E78: SUDESTE | F78: Avaliador 1 | G78: 10 | H78: 12 | I78: 8 | J78: 8 | K78: 5 | L78: 3 | M78: 5 | N78: 3 | O78: 0 | P78: 3 | Q78: 0 | R78: 0 | S78: 0 | T78: 3 | U78: 60 | V78: DESCLASSIFICADA COM BASE NO ITEM 7.7 | W78: =AVERAGE(U78,U79) -> 50.5 | X78: DESCLASSIFICADO
A79: INSTITUIÇÕES SEM FINS LUCRATIVO | B79: =HYPERLINK("https://mapas.cultura.gov.br/inscricao/1656018155","on-1656018155") -> on-1656018155 | C79: Rio de Janeiro | D79: RJ | E79: SUDESTE | F79: Avaliador 2 | G79: 10 | H79: 4 | I79: 4 | J79: 5 | K79: 3 | L79: 3 | M79: 3 | N79: 3 | O79: 0 | P79: 3 | Q79: 0 | R79: 0 | S79: 0 | T79: 3 | U79: 41 | W79: =W78 -> 50.5
A80: INSTITUIÇÕES SEM FINS LUCRATIVO | B80: =HYPERLINK("https://mapas.cultura.gov.br/inscricao/832739624","on-832739624") -> on-832739624 | C80: Rio de Janeiro | D80: RJ | E80: SUDESTE | F80: Avaliador 1 | G80: 10 | H80: 4 | I80: 4 | J80: 5 | K80: 3 | L80: 5 | M80: 3 | N80: 3 | O80: 0 | P80: 3 | Q80: 3 | R80: 0 | S80: 3 | T80: 0 | U80: 46 | V80: DESCLASSIFICADA COM BASE NO ITEM 7.7 | W80: =AVERAGE(U80,U81) -> 48.5 | X80: DESCLASSIFICADO
A81: INSTITUIÇÕES SEM FINS LUCRATIVO | B81: =HYPERLINK("https://mapas.cultura.gov.br/inscricao/832739624","on-832739624") -> on-832739624 | C81: Rio de Janeiro | D81: RJ | E81: SUDESTE | F81: Avaliador 2 | G81: 10 | H81: 8 | I81: 4 | J81: 3 | K81: 3 | L81: 3 | M81: 3 | N81: 8 | O81: 0 | P81: 3 | Q81: 3 | R81: 0 | S81: 3 | T81: 0 | U81: 51 | W81: =W80 -> 48.5
A82: INSTITUIÇÕES SEM FINS LUCRATIVO | B82: =HYPERLINK("https://mapas.cultura.gov.br/inscricao/865199131","on-865199131") -> on-865199131 | C82: Rio de Janeiro | D82: RJ | E82: SUDESTE | F82: Avaliador 1 | G82: 5 | H82: 8 | I82: 4 | J82: 5 | K82: 3 | L82: 3 | M82: 10 | N82: 10 | O82: 0 | P82: 0 | Q82: 3 | R82: 0 | S82: 0 | T82: 3 | U82: 54 | V82: DESCLASSIFICADA COM BASE NO ITEM 7.7 | W82: =AVERAGE(U82,U83) -> 48.5 | X82: DESCLASSIFICADO
A83: INSTITUIÇÕES SEM FINS LUCRATIVO | B83: =HYPERLINK("https://mapas.cultura.gov.br/inscricao/865199131","on-865199131") -> on-865199131 | C83: Rio de Janeiro | D83: RJ | E83: SUDESTE | F83: Avaliador 2 | G83: 10 | H83: 4 | I83: 4 | J83: 5 | K83: 3 | L83: 3 | M83: 3 | N83: 5 | O83: 0 | P83: 0 | Q83: 3 | R83: 0 | S83: 0 | T83: 3 | U83: 43 | W83: =W82 -> 48.5
A84: INSTITUIÇÕES SEM FINS LUCRATIVO | B84: =HYPERLINK("https://mapas.cultura.gov.br/inscricao/1361297127","on-1361297127") -> on-1361297127 | C84: Rio de janeiro | D84: RJ | E84: SUDESTE | F84: Avaliador 1 | G84: 5 | H84: 4 | I84: 8 | J84: 5 | K84: 5 | L84: 5 | M84: 5 | N84: 5 | O84: 0 | P84: 0 | Q84: 0 | R84: 0 | S84: 0 | T84: 0 | U84: 42 | V84: DESCLASSIFICADA COM BASE NO ITEM 7.7 | W84: =AVERAGE(U84,U85) -> 47 | X84: DESCLASSIFICADO
A85: INSTITUIÇÕES SEM FINS LUCRATIVO | B85: =HYPERLINK("https://mapas.cultura.gov.br/inscricao/1361297127","on-1361297127") -> on-1361297127 | C85: Rio de janeiro | D85: RJ | E85: SUDESTE | F85: Avaliador 2 | G85: 10 | H85: 8 | I85: 8 | J85: 5 | K85: 5 | L85: 5 | M85: 8 | N85: 3 | O85: 0 | P85: 0 | Q85: 0 | R85: 0 | S85: 0 | T85: 0 | U85: 52 | W85: =W84 -> 47
A86: INSTITUIÇÕES SEM FINS LUCRATIVO | B86: =HYPERLINK("https://mapas.cultura.gov.br/inscricao/1588510136","on-1588510136") -> on-1588510136 | C86: Rio de Janeiro | D86: RJ | E86: SUDESTE | F86: Avaliador 1 | G86: 15 | H86: 8 | I86: 4 | J86: 5 | K86: 5 | L86: 5 | M86: 5 | N86: 5 | O86: 0 | P86: 0 | Q86: 0 | R86: 0 | S86: 0 | T86: 0 | U86: 52 | V86: DESCLASSIFICADA COM BASE NO ITEM 7.7 | W86: =AVERAGE(U86,U87) -> 46 | X86: DESCLASSIFICADO
A87: INSTITUIÇÕES SEM FINS LUCRATIVO | B87: =HYPERLINK("https://mapas.cultura.gov.br/inscricao/1588510136","on-1588510136") -> on-1588510136 | C87: Rio de Janeiro | D87: RJ | E87: SUDESTE | F87: Avaliador 2 | G87: 5 | H87: 12 | I87: 8 | J87: 3 | K87: 3 | L87: 3 | M87: 3 | N87: 3 | O87: 0 | P87: 0 | Q87: 0 | R87: 0 | S87: 0 | T87: 0 | U87: 40 | W87: =W86 -> 46
A88: INSTITUIÇÕES SEM FINS LUCRATIVO | B88: =HYPERLINK("https://mapas.cultura.gov.br/inscricao/2008066659","on-2008066659") -> on-2008066659 | C88: Nova Odessa | D88: SP | E88: SUDESTE | F88: Avaliador 1 | G88: 15 | H88: 0 | I88: 4 | J88: 0 | K88: 3 | L88: 3 | M88: 0 | N88: 0 | O88: 0 | P88: 3 | Q88: 0 | R88: 0 | S88: 0 | T88: 3 | U88: 31 | V88: DESCLASSIFICADA COM BASE NO ITEM 7.7 | W88: =AVERAGE(U88,U89) -> 45 | X88: DESCLASSIFICADO
A89: INSTITUIÇÕES SEM FINS LUCRATIVO | B89: =HYPERLINK("https://mapas.cultura.gov.br/inscricao/2008066659","on-2008066659") -> on-2008066659 | C89: Nova Odessa | D89: SP | E89: SUDESTE | F89: Avaliador 2 | G89: 15 | H89: 12 | I89: 0 | J89: 3 | K89: 5 | L89: 8 | M89: 5 | N89: 5 | O89: 0 | P89: 3 | Q89: 0 | R89: 0 | S89: 0 | T89: 3 | U89: 59 | W89: =W88 -> 45
A90: INSTITUIÇÕES SEM FINS LUCRATIVO | B90: =HYPERLINK("https://mapas.cultura.gov.br/inscricao/2066739343","on-2066739343") -> on-2066739343 | C90: Belford Roxo | D90: RJ | E90: SUDESTE | F90: Avaliador 1 | G90: 5 | H90: 8 | I90: 4 | J90: 10 | K90: 3 | L90: 3 | M90: 5 | N90: 3 | O90: 0 | P90: 0 | Q90: 0 | R90: 0 | S90: 0 | T90: 3 | U90: 44 | V90: DESCLASSIFICADA COM BASE NO ITEM 7.7 | W90: =AVERAGE(U90,U91) -> 44.5 | X90: DESCLASSIFICADO
A91: INSTITUIÇÕES SEM FINS LUCRATIVO | B91: =HYPERLINK("https://mapas.cultura.gov.br/inscricao/2066739343","on-2066739343") -> on-2066739343 | C91: Belford Roxo | D91: RJ | E91: SUDESTE | F91: Avaliador 2 | G91: 15 | H91: 8 | I91: 4 | J91: 3 | K91: 3 | L91: 3 | M91: 3 | N91: 3 | O91: 0 | P91: 0 | Q91: 0 | R91: 0 | S91: 0 | T91: 3 | U91: 45 | W91: =W90 -> 44.5
A92: INSTITUIÇÕES SEM FINS LUCRATIVO | B92: =HYPERLINK("https://mapas.cultura.gov.br/inscricao/1305196869","on-1305196869") -> on-1305196869 | C92: Duque de Caxias | D92: RJ | E92: SUDESTE | F92: Avaliador 1 | G92: 15 | H92: 4 | I92: 4 | J92: 3 | K92: 3 | L92: 3 | M92: 3 | N92: 3 | O92: 0 | P92: 0 | Q92: 3 | R92: 0 | S92: 0 | T92: 0 | U92: 41 | V92: DESCLASSIFICADA COM BASE NO ITEM 7.7 | W92: =AVERAGE(U92,U93) -> 43.5 | X92: DESCLASSIFICADO
A93: INSTITUIÇÕES SEM FINS LUCRATIVO | B93: =HYPERLINK("https://mapas.cultura.gov.br/inscricao/1305196869","on-1305196869") -> on-1305196869 | C93: Duque de Caxias | D93: RJ | E93: SUDESTE | F93: Avaliador 2 | G93: 10 | H93: 8 | I93: 4 | J93: 5 | K93: 3 | L93: 5 | M93: 5 | N93: 3 | O93: 0 | P93: 0 | Q93: 3 | R93: 0 | S93: 0 | T93: 0 | U93: 46 | W93: =W92 -> 43.5
A94: INSTITUIÇÕES SEM FINS LUCRATIVO | B94: =HYPERLINK("https://mapas.cultura.gov.br/inscricao/930610726","on-930610726") -> on-930610726 | C94: Pirapozinho | D94: SP | E94: SUDESTE | F94: Avaliador 1 | G94: 15 | H94: 12 | I94: 8 | J94: 0 | K94: 5 | L94: 3 | M94: 3 | N94: 8 | O94: 0 | P94: 0 | Q94: 0 | R94: 0 | S94: 0 | T94: 0 | U94: 54 | V94: DESCLASSIFICADA COM BASE NO ITEM 7.7 | W94: =AVERAGE(U94,U95) -> 42.5 | X94: DESCLASSIFICADO
A95: INSTITUIÇÕES SEM FINS LUCRATIVO | B95: =HYPERLINK("https://mapas.cultura.gov.br/inscricao/930610726","on-930610726") -> on-930610726 | C95: Pirapozinho | D95: SP | E95: SUDESTE | F95: Avaliador 2 | G95: 5 | H95: 4 | I95: 4 | J95: 0 | K95: 5 | L95: 5 | M95: 5 | N95: 3 | O95: 0 | P95: 0 | Q95: 0 | R95: 0 | S95: 0 | T95: 0 | U95: 31 | W95: =W94 -> 42.5
A96: INSTITUIÇÕES SEM FINS LUCRATIVO | B96: =HYPERLINK("https://mapas.cultura.gov.br/inscricao/1137945720","on-1137945720") -> on-1137945720 | C96: Rio de Janeiro | D96: RJ | E96: SUDESTE | F96: Avaliador 1 | G96: 15 | H96: 8 | I96: 4 | J96: 0 | K96: 5 | L96: 3 | M96: 3 | N96: 0 | O96: 0 | P96: 0 | Q96: 3 | R96: 0 | S96: 0 | T96: 0 | U96: 41 | V96: DESCLASSIFICADA COM BASE NO ITEM 7.7 | W96: =AVERAGE(U96,U97) -> 41 | X96: DESCLASSIFICADO
A97: INSTITUIÇÕES SEM FINS LUCRATIVO | B97: =HYPERLINK("https://mapas.cultura.gov.br/inscricao/1137945720","on-1137945720") -> on-1137945720 | C97: Rio de Janeiro | D97: RJ | E97: SUDESTE | F97: Avaliador 2 | G97: 5 | H97: 4 | I97: 4 | J97: 5 | K97: 5 | L97: 5 | M97: 5 | N97: 5 | O97: 0 | P97: 0 | Q97: 3 | R97: 0 | S97: 0 | T97: 0 | U97: 41 | W97: =W96 -> 41
A98: INSTITUIÇÕES SEM FINS LUCRATIVO | B98: =HYPERLINK("https://mapas.cultura.gov.br/inscricao/487239901","on-487239901") -> on-487239901 | C98: Linhares | D98: ES | E98: SUDESTE | F98: Avaliador 1 | G98: 10 | H98: 4 | I98: 4 | J98: 5 | K98: 3 | L98: 5 | M98: 5 | N98: 5 | O98: 0 | P98: 3 | Q98: 0 | R98: 0 | S98: 0 | T98: 0 | U98: =SUM(G98:T98) -> 44 | V98: DESCLASSIFICADA COM BASE NO ITEM 7.7 | W98: =AVERAGE(U98,U99) -> 40.5 | X98: DESCLASSIFICADO
A99: INSTITUIÇÕES SEM FINS LUCRATIVO | B99: =HYPERLINK("https://mapas.cultura.gov.br/inscricao/487239901","on-487239901") -> on-487239901 | C99: Linhares | D99: ES | E99: SUDESTE | F99: Avaliador 2 | G99: 20 | H99: 4 | I99: 4 | J99: 3 | K99: 0 | L99: 3 | M99: 0 | N99: 0 | O99: 0 | P99: 3 | Q99: 0 | R99: 0 | S99: 0 | T99: 0 | U99: 37 | W99: =W98 -> 40.5
A100: INSTITUIÇÕES SEM FINS LUCRATIVO | B100: =HYPERLINK("https://mapas.cultura.gov.br/inscricao/1550892405","on-1550892405") -> on-1550892405 | C100: Rio de Janeiro | D100: RJ | E100: SUDESTE | F100: Avaliador 1 | G100: 15 | H100: 8 | I100: 4 | J100: 3 | K100: 3 | L100: 5 | M100: 3 | N100: 3 | O100: 0 | P100: 0 | Q100: 0 | R100: 0 | S100: 0 | T100: 0 | U100: 44 | V100: DESCLASSIFICADA COM BASE NO ITEM 7.7 | W100: =AVERAGE(U100,U101) -> 40.5 | X100: DESCLASSIFICADO
A101: INSTITUIÇÕES SEM FINS LUCRATIVO | B101: =HYPERLINK("https://mapas.cultura.gov.br/inscricao/1550892405","on-1550892405") -> on-1550892405 | C101: Rio de Janeiro | D101: RJ | E101: SUDESTE | F101: Avaliador 2 | G101: 10 | H101: 8 | I101: 4 | J101: 3 | K101: 3 | L101: 3 | M101: 3 | N101: 3 | O101: 0 | P101: 0 | Q101: 0 | R101: 0 | S101: 0 | T101: 0 | U101: 37 | W101: =W100 -> 40.5
A102: INSTITUIÇÕES SEM FINS LUCRATIVO | B102: =HYPERLINK("https://mapas.cultura.gov.br/inscricao/867205344","on-867205344") -> on-867205344 | C102: Rio de Janeiro | D102: RJ | E102: SUDESTE | F102: Avaliador 1 | G102: 10 | H102: 4 | I102: 4 | J102: 5 | K102: 3 | L102: 3 | M102: 3 | N102: 3 | O102: 0 | P102: 0 | Q102: 3 | R102: 0 | S102: 0 | T102: 0 | U102: 38 | V102: DESCLASSIFICADA COM BASE NO ITEM 7.7 | W102: =AVERAGE(U102,U103) -> 39.5 | X102: DESCLASSIFICADO
A103: INSTITUIÇÕES SEM FINS LUCRATIVO | B103: =HYPERLINK("https://mapas.cultura.gov.br/inscricao/867205344","on-867205344") -> on-867205344 | C103: Rio de Janeiro | D103: RJ | E103: SUDESTE | F103: Avaliador 2 | G103: 10 | H103: 4 | I103: 4 | J103: 3 | K103: 3 | L103: 3 | M103: 8 | N103: 3 | O103: 0 | P103: 0 | Q103: 3 | R103: 0 | S103: 0 | T103: 0 | U103: 41 | W103: =W102 -> 39.5
A104: INSTITUIÇÕES SEM FINS LUCRATIVO | B104: =HYPERLINK("https://mapas.cultura.gov.br/inscricao/1844939380","on-1844939380") -> on-1844939380 | C104: Cachoeira Paulista | D104: SP | E104: SUDESTE | F104: Avaliador 1 | G104: 20 | H104: 0 | I104: 0 | J104: 0 | K104: 0 | L104: 0 | M104: 0 | N104: 3 | O104: 0 | P104: 3 | Q104: 3 | R104: 0 | S104: 0 | T104: 0 | U104: 29 | V104: DESCLASSIFICADA COM BASE NO ITEM 7.7 | W104: =AVERAGE(U104,U105) -> 38.5 | X104: DESCLASSIFICADO
A105: INSTITUIÇÕES SEM FINS LUCRATIVO | B105: =HYPERLINK("https://mapas.cultura.gov.br/inscricao/1844939380","on-1844939380") -> on-1844939380 | C105: Cachoeira Paulista | D105: SP | E105: SUDESTE | F105: Avaliador 2 | G105: 5 | H105: 8 | I105: 4 | J105: 5 | K105: 5 | L105: 5 | M105: 5 | N105: 5 | O105: 0 | P105: 3 | Q105: 3 | R105: 0 | S105: 0 | T105: 0 | U105: 48 | W105: =W104 -> 38.5
A106: INSTITUIÇÕES SEM FINS LUCRATIVO | B106: =HYPERLINK("https://mapas.cultura.gov.br/inscricao/858954913","on-858954913") -> on-858954913 | C106: Ribeirão das Neves | D106: MG | E106: SUDESTE | F106: Avaliador 1 | G106: 5 | H106: 4 | I106: 4 | J106: 3 | K106: 3 | L106: 3 | M106: 3 | N106: 3 | O106: 0 | P106: 0 | Q106: 3 | R106: 0 | S106: 0 | T106: 0 | U106: 31 | V106: DESCLASSIFICADA COM BASE NO ITEM 7.7 | W106: =AVERAGE(U106,U107) -> 34.5 | X106: DESCLASSIFICADO
A107: INSTITUIÇÕES SEM FINS LUCRATIVO | B107: =HYPERLINK("https://mapas.cultura.gov.br/inscricao/858954913","on-858954913") -> on-858954913 | C107: Ribeirão das Neves | D107: MG | E107: SUDESTE | F107: Avaliador 2 | G107: 10 | H107: 4 | I107: 4 | J107: 3 | K107: 3 | L107: 5 | M107: 3 | N107: 3 | O107: 0 | P107: 0 | Q107: 3 | R107: 0 | S107: 0 | T107: 0 | U107: 38 | W107: =W106 -> 34.5
A108: INSTITUIÇÕES SEM FINS LUCRATIVO | B108: =HYPERLINK("https://mapas.cultura.gov.br/inscricao/117080838","on-117080838") -> on-117080838 | C108: Rio de Janeiro | D108: RJ | E108: SUDESTE | F108: Avaliador 1 | G108: 10 | H108: 4 | I108: 4 | J108: 0 | K108: 3 | L108: 0 | M108: 3 | N108: 8 | O108: 0 | P108: 0 | Q108: 3 | R108: 0 | S108: 0 | T108: 0 | U108: 35 | V108: DESCLASSIFICADA COM BASE NO ITEM 7.7 | W108: =AVERAGE(U108,U109) -> 29 | X108: DESCLASSIFICADO
A109: INSTITUIÇÕES SEM FINS LUCRATIVO | B109: =HYPERLINK("https://mapas.cultura.gov.br/inscricao/C5","on-117080838") -> on-117080838 | C109: Rio de Janeiro | D109: RJ | E109: SUDESTE | F109: Avaliador 2 | G109: 0 | H109: 4 | I109: 4 | J109: 3 | K109: 3 | L109: 3 | M109: 3 | N109: 0 | O109: 0 | P109: 0 | Q109: 3 | R109: 0 | S109: 0 | T109: 0 | U109: 23 | W109: =W108 -> 29
A110: INSTITUIÇÕES SEM FINS LUCRATIVO | B110: =HYPERLINK("https://mapas.cultura.gov.br/inscricao/1773634313","on-1773634313") -> on-1773634313 | C110: Rio de Janeiro | D110: RJ | E110: SUDESTE | F110: Avaliador 1 | G110: 5 | H110: 4 | I110: 4 | J110: 5 | K110: 3 | L110: 3 | M110: 3 | N110: 3 | O110: 0 | P110: 0 | Q110: 0 | R110: 0 | S110: 0 | T110: 0 | U110: 30 | V110: DESCLASSIFICADA COM BASE NO ITEM 7.7 | W110: =AVERAGE(U110,U111) -> 29 | X110: DESCLASSIFICADO
A111: INSTITUIÇÕES SEM FINS LUCRATIVO | B111: =HYPERLINK("https://mapas.cultura.gov.br/inscricao/1773634313","on-1773634313") -> on-1773634313 | C111: Rio de Janeiro | D111: RJ | E111: SUDESTE | F111: Avaliador 2 | G111: 5 | H111: 4 | I111: 4 | J111: 3 | K111: 3 | L111: 3 | M111: 3 | N111: 3 | O111: 0 | P111: 0 | Q111: 0 | R111: 0 | S111: 0 | T111: 0 | U111: 28 | W111: =W110 -> 29
A112: INSTITUIÇÕES SEM FINS LUCRATIVO | B112: =HYPERLINK("https://mapas.cultura.gov.br/inscricao/1219664458","on-1219664458") -> on-1219664458 | C112: Belo Horizonte | D112: MG | E112: SUDESTE | F112: Avaliador 1 | G112: 5 | H112: 4 | I112: 4 | J112: 3 | K112: 3 | L112: 3 | M112: 3 | N112: 5 | O112: 0 | P112: 0 | Q112: 3 | R112: 0 | S112: 3 | T112: 0 | U112: 36 | V112: DESCLASSIFICADA COM BASE NO ITEM 7.7 | W112: =AVERAGE(U112,U113) -> 26 | X112: DESCLASSIFICADO
A113: INSTITUIÇÕES SEM FINS LUCRATIVO | B113: =HYPERLINK("https://mapas.cultura.gov.br/inscricao/1219664458","on-1219664458") -> on-1219664458 | C113: Belo Horizonte | D113: MG | E113: SUDESTE | F113: Avaliador 2 | G113: 5 | H113: 0 | I113: 0 | J113: 5 | K113: 0 | L113: 0 | M113: 0 | N113: 0 | O113: 0 | P113: 0 | Q113: 3 | R113: 0 | S113: 3 | T113: 0 | U113: 16 | W113: =W112 -> 26
A114: INSTITUIÇÕES SEM FINS LUCRATIVO | B114: =HYPERLINK("https://mapas.cultura.gov.br/inscricao/267831217","on-267831217") -> on-267831217 | C114: Rio de Janeiro | D114: RJ | E114: SUDESTE | F114: Avaliador 1 | G114: 5 | H114: 0 | I114: 4 | J114: 3 | K114: 5 | L114: 3 | M114: 3 | N114: 5 | O114: 0 | P114: 3 | Q114: 3 | R114: 0 | S114: 0 | T114: 0 | U114: 34 | V114: DESCLASSIFICADA COM BASE NO ITEM 7.7 | W114: =AVERAGE(U114,U115) -> 20 | X114: DESCLASSIFICADO
A115: INSTITUIÇÕES SEM FINS LUCRATIVO | B115: =HYPERLINK("https://mapas.cultura.gov.br/inscricao/I8","on-267831217") -> on-267831217 | C115: Rio de Janeiro | D115: RJ | E115: SUDESTE | F115: Avaliador 2 | G115: 0 | H115: 0 | I115: 0 | J115: 0 | K115: 0 | L115: 0 | M115: 0 | N115: 0 | O115: 0 | P115: 3 | Q115: 3 | R115: 0 | S115: 0 | T115: 0 | U115: 6 | W115: =W114 -> 20
A116: INSTITUIÇÕES SEM FINS LUCRATIVO | B116: =HYPERLINK("https://mapas.cultura.gov.br/inscricao/615291492","on-615291492") -> on-615291492 | C116: Brasília de Minas | D116: MG | E116: SUDESTE | F116: Avaliador 1 | G116: 5 | H116: 0 | I116: 4 | J116: 3 | K116: 0 | L116: 3 | M116: 0 | N116: 3 | O116: 0 | P116: 0 | Q116: 3 | R116: 0 | S116: 3 | T116: 0 | U116: 24 | V116: DESCLASSIFICADA COM BASE NO ITEM 7.7 | W116: =AVERAGE(U116,U117) -> 19 | X116: DESCLASSIFICADO
A117: INSTITUIÇÕES SEM FINS LUCRATIVO | B117: =HYPERLINK("https://mapas.cultura.gov.br/inscricao/615291492","on-615291492") -> on-615291492 | C117: Brasília de Minas | D117: MG | E117: SUDESTE | F117: Avaliador 2 | G117: 5 | H117: 0 | I117: 0 | J117: 3 | K117: 0 | L117: 0 | M117: 0 | N117: 0 | O117: 0 | P117: 0 | Q117: 3 | R117: 0 | S117: 3 | T117: 0 | U117: 14 | W117: =W116 -> 19
A118: INSTITUIÇÕES SEM FINS LUCRATIVO | B118: =HYPERLINK("https://mapas.cultura.gov.br/inscricao/1441635558","on-1441635558") -> on-1441635558 | C118: Unaí | D118: MG | E118: SUDESTE | F118: Avaliador 1 | G118: 5 | H118: 0 | I118: 0 | J118: 3 | K118: 3 | L118: 3 | M118: 3 | N118: 0 | O118: 0 | P118: 0 | Q118: 3 | R118: 0 | S118: 0 | T118: 0 | U118: 20 | V118: DESCLASSIFICADA COM BASE NO ITEM 7.7 | W118: =AVERAGE(U118,U119) -> 18 | X118: DESCLASSIFICADO
A119: INSTITUIÇÕES SEM FINS LUCRATIVO | B119: =HYPERLINK("https://mapas.cultura.gov.br/inscricao/1441635558","on-1441635558") -> on-1441635558 | C119: Unaí | D119: MG | E119: SUDESTE | F119: Avaliador 2 | G119: 10 | H119: 0 | I119: 0 | J119: 3 | K119: 0 | L119: 0 | M119: 0 | N119: 0 | O119: 0 | P119: 0 | Q119: 3 | R119: 0 | S119: 0 | T119: 0 | U119: 16 | W119: =W118 -> 18
A120: INSTITUIÇÕES SEM FINS LUCRATIVO | B120: =HYPERLINK("https://mapas.cultura.gov.br/inscricao/433647645","on-433647645") -> on-433647645 | C120: Juiz de Fora | D120: MG | E120: SUDESTE | F120: Avaliador 1 | G120: 0 | H120: 0 | I120: 0 | J120: 0 | K120: 0 | L120: 0 | M120: 0 | N120: 0 | O120: 0 | P120: 0 | Q120: 3 | R120: 0 | S120: 0 | T120: 0 | U120: 3 | V120: DESCLASSIFICADA COM BASE NO ITEM 7.13 | W120: =AVERAGE(U120,U121) -> 13.5 | X120: DESCLASSIFICADO
A121: INSTITUIÇÕES SEM FINS LUCRATIVO | B121: =HYPERLINK("https://mapas.cultura.gov.br/inscricao/433647645","on-433647645") -> on-433647645 | C121: Juiz de Fora | D121: MG | E121: SUDESTE | F121: Avaliador 2 | G121: 10 | H121: 4 | I121: 4 | J121: 0 | K121: 0 | L121: 3 | M121: 0 | N121: 0 | O121: 0 | P121: 0 | Q121: 3 | R121: 0 | S121: 0 | T121: 0 | U121: 24 | W121: =W120 -> 13.5
A122: INSTITUIÇÕES SEM FINS LUCRATIVO | B122: =HYPERLINK("https://mapas.cultura.gov.br/inscricao/1796770910","on-1796770910") -> on-1796770910 | C122: Rio de Janeiro | D122: RJ | E122: SUDESTE | F122: Avaliador 1 | O122: 3 | P122: 3 | U122: 6 | V122: DESCLASSIFICADA COM BASE NOS ITENS 2.1 E 6.1.3 | W122: =AVERAGE(U122,U123) -> 10.5 | X122: DESCLASSIFICADO
A123: INSTITUIÇÕES SEM FINS LUCRATIVO | B123: =HYPERLINK("https://mapas.cultura.gov.br/inscricao/1796770910","on-1796770910") -> on-1796770910 | C123: Rio de Janeiro | D123: RJ | E123: SUDESTE | F123: Avaliador 2 | G123: 5 | H123: 4 | I123: 0 | J123: 0 | K123: 0 | L123: 0 | M123: 0 | N123: 0 | O123: 3 | P123: 3 | Q123: 0 | R123: 0 | S123: 0 | T123: 0 | U123: 15 | W123: =W122 -> 10.5
A124: INSTITUIÇÕES SEM FINS LUCRATIVO | B124: =HYPERLINK("https://mapas.cultura.gov.br/inscricao/1236321683","on-1236321683") -> on-1236321683 | C124: Araxá | D124: MG | E124: SUDESTE | F124: Avaliador 1 | G124: 0 | H124: 0 | I124: 0 | J124: 0 | K124: 0 | L124: 0 | M124: 0 | N124: 0 | O124: 0 | P124: 0 | Q124: 3 | R124: 0 | S124: 0 | T124: 0 | U124: 3 | V124: DESCLASSIFICADA COM BASE NO ITEM 6.1 | W124: =AVERAGE(U124,U125) -> 3 | X124: DESCLASSIFICADO
A125: INSTITUIÇÕES SEM FINS LUCRATIVO | B125: =HYPERLINK("https://mapas.cultura.gov.br/inscricao/1236321683","on-1236321683") -> on-1236321683 | C125: Araxá | D125: MG | E125: SUDESTE | F125: Avaliador 2 | G125: 0 | H125: 0 | I125: 0 | J125: 0 | K125: 0 | L125: 0 | M125: 0 | N125: 0 | O125: 0 | P125: 0 | Q125: 3 | R125: 0 | S125: 0 | T125: 0 | U125: 3 | W125: =W124 -> 3
A126: INSTITUIÇÕES SEM FINS LUCRATIVO | B126: =HYPERLINK("https://mapas.cultura.gov.br/inscricao/734253797","on-734253797") -> on-734253797 | C126: Niterói | D126: RJ | E126: SUDESTE | F126: Avaliador 1 | G126: 0 | H126: 0 | I126: 0 | J126: 0 | K126: 0 | L126: 0 | M126: 0 | N126: 0 | O126: 0 | P126: 3 | Q126: 0 | R126: 0 | S126: 0 | T126: 0 | U126: 3 | V126: DESCLASSIFICADA COM BASE NO ITEM 8.1, alínea "a" | W126: =AVERAGE(U126,U127) -> 3 | X126: DESCLASSIFICADO
A127: INSTITUIÇÕES SEM FINS LUCRATIVO | B127: =HYPERLINK("https://mapas.cultura.gov.br/inscricao/734253797","on-734253797") -> on-734253797 | C127: Niterói | D127: RJ | E127: SUDESTE | F127: Avaliador 2 | G127: 0 | H127: 0 | I127: 0 | J127: 0 | K127: 0 | L127: 0 | M127: 0 | N127: 0 | O127: 0 | P127: 3 | Q127: 0 | R127: 0 | S127: 0 | T127: 0 | U127: 3 | W127: =W126 -> 3
A128: INSTITUIÇÕES SEM FINS LUCRATIVO | B128: =HYPERLINK("https://mapas.cultura.gov.br/inscricao/572378254","on-572378254") -> on-572378254 | C128: Rio de Janeiro | D128: RJ | E128: SUDESTE | F128: Avaliador 1 | G128: 0 | H128: 0 | I128: 0 | J128: 0 | K128: 0 | L128: 0 | M128: 0 | N128: 0 | O128: 0 | P128: 0 | Q128: 3 | R128: 0 | S128: 0 | T128: 0 | U128: 3 | V128: DESCLASSIFICADA COM BASE NOS ITENS 2.1 E 6.1.3 | W128: =AVERAGE(U128,U129) -> 3 | X128: DESCLASSIFICADO
A129: INSTITUIÇÕES SEM FINS LUCRATIVO | B129: =HYPERLINK("https://mapas.cultura.gov.br/inscricao/572378254","on-572378254") -> on-572378254 | C129: Rio de Janeiro | D129: RJ | E129: SUDESTE | F129: Avaliador 2 | G129: 0 | H129: 0 | I129: 0 | J129: 0 | K129: 0 | L129: 0 | M129: 0 | N129: 0 | O129: 0 | P129: 0 | Q129: 3 | R129: 0 | S129: 0 | T129: 0 | U129: 3 | W129: =W128 -> 3
A130: INSTITUIÇÕES SEM FINS LUCRATIVO | B130: =HYPERLINK("https://mapas.cultura.gov.br/inscricao/784838615","on-784838615") -> on-784838615 | C130: Vitória | D130: ES | E130: SUDESTE | F130: Avaliador 1 | G130: 20 | H130: 15 | I130: 8 | J130: 5 | K130: 8 | L130: 5 | M130: 5 | N130: 8 | O130: 0 | P130: 3 | Q130: 3 | R130: 3 | S130: 3 | T130: 0 | U130: 0 | V130: DESCLASSIFICADA COM BASE NO ITEM 6.1 | W130: =AVERAGE(U130,U131) -> 0 | X130: DESCLASSIFICADO
A131: INSTITUIÇÕES SEM FINS LUCRATIVO | B131: =HYPERLINK("https://mapas.cultura.gov.br/inscricao/784838615","on-784838615") -> on-784838615 | C131: Vitória | D131: ES | E131: SUDESTE | F131: Avaliador 2 | G131: 15 | H131: 12 | I131: 8 | J131: 8 | K131: 5 | L131: 5 | M131: 5 | N131: 8 | O131: 0 | P131: 3 | Q131: 3 | R131: 3 | S131: 3 | T131: 0 | U131: 0 | W131: =W130 -> 0
A132: INSTITUIÇÕES SEM FINS LUCRATIVO | B132: =HYPERLINK("https://mapas.cultura.gov.br/inscricao/1998298816","on-1998298816") -> on-1998298816 | C132: Rio de Janeiro | D132: RJ | E132: SUDESTE | F132: Avaliador 1 | U132: 0 | V132: DESCLASSIFICADA COM BASE NO ITEM 7.5 | W132: =AVERAGE(U132,U133) -> 0 | X132: DESCLASSIFICADO
A133: INSTITUIÇÕES SEM FINS LUCRATIVO | B133: =HYPERLINK("https://mapas.cultura.gov.br/inscricao/1998298816","on-1998298816") -> on-1998298816 | C133: Rio de Janeiro | D133: RJ | E133: SUDESTE | F133: Avaliador 2 | G133: 0 | H133: 0 | I133: 0 | J133: 0 | K133: 0 | L133: 0 | M133: 0 | N133: 0 | O133: 0 | P133: 0 | Q133: 0 | R133: 0 | S133: 0 | T133: 0 | U133: =SUM(G133:T133) -> 0 | W133: =W132 -> 0
A134: INSTITUIÇÕES SEM FINS LUCRATIVO | B134: POSTAL 4 | C134: Sumaré | D134: SP | E134: SUDESTE | F134: Avaliador 1 | U134: =SUM(G134:T134) -> 0 | V134: DESCLASSIFICADO COM BASE NO ITEM 7.13 | W134: =AVERAGE(U134,U135) -> 0 | X134: DESCLASSIFICADO
A135: INSTITUIÇÕES SEM FINS LUCRATIVO | B135: POSTAL 4 | C135: Sumaré | D135: SP | E135: SUDESTE | F135: Avaliador 2 | G135: 0 | H135: 0 | I135: 0 | J135: 0 | K135: 0 | L135: 0 | M135: 0 | N135: 0 | O135: 0 | P135: 0 | Q135: 0 | R135: 0 | S135: 0 | T135: 0 | U135: =SUM(G135:T135) -> 0 | W135: =W134 -> 0
A136: INSTITUIÇÕES SEM FINS LUCRATIVO | B136: =HYPERLINK("https://mapas.cultura.gov.br/inscricao/443456535","on-443456535") -> on-443456535 | C136: Carapicuíba | D136: SP | E136: SUDESTE | F136: Avaliador 1 | U136: 0 | V136: DESCLASSIFICADA COM BASE NO ITEM 8.1, alínea "a" | W136: =AVERAGE(U136,U137) -> 0 | X136: DESCLASSIFICADO
A137: INSTITUIÇÕES SEM FINS LUCRATIVO | B137: =HYPERLINK("https://mapas.cultura.gov.br/inscricao/443456535","on-443456535") -> on-443456535 | C137: Carapicuíba | D137: SP | E137: SUDESTE | F137: Avaliador 2 | G137: 0 | H137: 0 | I137: 0 | J137: 0 | K137: 0 | L137: 0 | M137: 0 | N137: 0 | O137: 0 | P137: 0 | Q137: 0 | R137: 0 | S137: 0 | T137: 0 | U137: =SUM(G137:T137) -> 0 | W137: =W136 -> 0
A138: INSTITUIÇÕES SEM FINS LUCRATIVO | B138: =HYPERLINK("https://mapas.cultura.gov.br/inscricao/305974003","on-305974003") -> on-305974003 | C138: São Paulo | D138: SP | E138: SUDESTE | F138: Avaliador 1 | U138: 0 | V138: DESCLASSIFICADA COM BASE NO ITEM 8.1, alínea "a" | W138: =AVERAGE(U138,U139) -> 0 | X138: DESCLASSIFICADO
A139: INSTITUIÇÕES SEM FINS LUCRATIVO | B139: =HYPERLINK("https://mapas.cultura.gov.br/inscricao/305974003","on-305974003") -> on-305974003 | C139: São Paulo | D139: SP | E139: SUDESTE | F139: Avaliador 2 | G139: 0 | H139: 0 | I139: 0 | J139: 0 | K139: 0 | L139: 0 | M139: 0 | N139: 0 | O139: 0 | P139: 0 | Q139: 0 | R139: 0 | S139: 0 | T139: 0 | U139: =SUM(G139:T139) -> 0 | W139: =W138 -> 0
A140: INSTITUIÇÕES SEM FINS LUCRATIVO | B140: =HYPERLINK("https://mapas.cultura.gov.br/inscricao/730462560","on-730462560") -> on-730462560 | C140: São Paulo | D140: SP | E140: SUDESTE | F140: Avaliador 1 | G140: 0 | H140: 0 | I140: 0 | J140: 0 | K140: 0 | L140: 0 | M140: 0 | N140: 0 | O140: 0 | P140: 0 | Q140: 0 | R140: 0 | S140: 0 | T140: 0 | U140: 0 | V140: DESCLASSIFICADA COM BASE NO ITEM 7.7 | W140: =AVERAGE(U140,U141) -> 0 | X140: DESCLASSIFICADO
A141: INSTITUIÇÕES SEM FINS LUCRATIVO | B141: =HYPERLINK("https://mapas.cultura.gov.br/inscricao/730462560","on-730462560") -> on-730462560 | C141: São Paulo | D141: SP | E141: SUDESTE | F141: Avaliador 2 | G141: 0 | H141: 0 | I141: 0 | J141: 0 | K141: 0 | L141: 0 | M141: 0 | N141: 0 | O141: 0 | P141: 0 | Q141: 0 | R141: 0 | S141: 0 | T141: 0 | U141: 0 | W141: =W140 -> 0
A142: INSTITUIÇÕES SEM FINS LUCRATIVO | B142: =HYPERLINK("https://mapas.cultura.gov.br/inscricao/1853136726","on-1853136726") -> on-1853136726 | C142: Ribeirão Preto | D142: SP | E142: SUDESTE | F142: Avaliador 1 | U142: 0 | V142: DESCLASSIFICADA COM BASE NO ITEM 7.5 | W142: =AVERAGE(U142,U143) -> 0 | X142: DESCLASSIFICADO
A143: INSTITUIÇÕES SEM FINS LUCRATIVO | B143: =HYPERLINK("https://mapas.cultura.gov.br/inscricao/1853136726","on-1853136726") -> on-1853136726 | C143: Ribeirão Preto | D143: SP | E143: SUDESTE | F143: Avaliador 2 | U143: 0 | W143: =W142 -> 0
A144: INSTITUIÇÕES SEM FINS LUCRATIVO | B144: =HYPERLINK("https://mapas.cultura.gov.br/inscricao/797678831","on-797678831") -> on-797678831 | C144: São Paulo | D144: SP | E144: SUDESTE | F144: Avaliador 1 | U144: 0 | V144: DESCLASSIFICADO COM BASE NO ITEM 8.1, alínea "h" | W144: =AVERAGE(U144,U145) -> 0 | X144: DESCLASSIFICADO
A145: INSTITUIÇÕES SEM FINS LUCRATIVO | B145: =HYPERLINK("https://mapas.cultura.gov.br/inscricao/797678831","on-797678831") -> on-797678831 | C145: São Paulo | D145: SP | E145: SUDESTE | F145: Avaliador 2 | G145: 0 | H145: 0 | I145: 0 | J145: 0 | K145: 0 | L145: 0 | M145: 0 | N145: 0 | O145: 0 | P145: 0 | Q145: 0 | R145: 0 | S145: 0 | T145: 0 | U145: 0 | W145: =W144 -> 0
A146: INSTITUIÇÕES SEM FINS LUCRATIVO | B146: =HYPERLINK("https://mapas.cultura.gov.br/inscricao/1565183503","on-1565183503") -> on-1565183503 | C146: Limeira | D146: SP | E146: SUDESTE | F146: Avaliador 1 | U146: 0 | V146: DESCLASSIFICADO COM BASE NO ITEM 8.1, alínea "a" | W146: =AVERAGE(U146,U147) -> 0 | X146: DESCLASSIFICADO
A147: INSTITUIÇÕES SEM FINS LUCRATIVO | B147: =HYPERLINK("https://mapas.cultura.gov.br/inscricao/1565183503","on-1565183503") -> on-1565183503 | C147: Limeira | D147: SP | E147: SUDESTE | F147: Avaliador 2 | U147: 0 | W147: =W146 -> 0
A148: INSTITUIÇÕES SEM FINS LUCRATIVO | B148: =HYPERLINK("https://mapas.cultura.gov.br/inscricao/1382341467","on-1382341467") -> on-1382341467 | C148: São Carlos | D148: SP | E148: SUDESTE | F148: Avaliador 1 | U148: 0 | V148: DESCLASSIFICADO COM BASE NO ITEM 8.1, alínea "a" | W148: =AVERAGE(U148,U149) -> 0 | X148: DESCLASSIFICADO
A149: INSTITUIÇÕES SEM FINS LUCRATIVO | B149: =HYPERLINK("https://mapas.cultura.gov.br/inscricao/1382341467","on-1382341467") -> on-1382341467 | C149: São Carlos | D149: SP | E149: SUDESTE | F149: Avaliador 2 | U149: 0 | W149: =W148 -> 0
